Workbook

Sheet wksInfo
F2: Current Fiscal Year
D3: Actuals thru Period -> | E3: APR | F3: FY 2022 Actual | G3: =+IF(Data_Input!G12=" "," *** Index Error ***",IF(Data_Input!G19=" "," *** Index Error ***",IF(Data_Input!G31=" "," *** Index Error ***",""))) -> 
E4: =VLOOKUP(E$3,C20:F31,3,FALSE) -> Pd 08 YTD
E5: =VLOOKUP($E$3,$C$20:$F$31,4,FALSE) -> 8
G6: =IF('Essbase_P&L'!H35=SUM('Essbase_P&L'!H4:H32),"Revenue OK","Revenue does not match - INVESTIGATE VARIANCE of $"&"('Essbase_P&L'!H35-SUM('Essbase_P&L'!H4:H32))") -> Revenue OK
B7: Essbase Unit Name :-> | C7: ENCOMPASS REHAB HOSP OF SEWICK : 77061-000 : 70-00857 | G7: =IF('Essbase_P&L'!O76='Essbase_P&L'!O75,"Operating Costs OK","Operating Processing Costs do not match. INVESTIGATE VARIANCE of $"&"'Essbase_P&L'!O77") -> Operating Costs OK
E10: CPI | F10: ECI Labor
D11: Index Thru -> | E11: FEB | F11: DEC
E12: =VLOOKUP($E$11,$C$20:$F$31,4,FALSE) -> 6 | F12: =VLOOKUP($F$11,$H$20:$I$32,2,FALSE) -> 4
F14: If "Index Error" displayed in cell G36 then verify if the indexies are updated through the peirod you are running
F15: If not either update if available or manually change cell E43 to reflect last month of valid indexes.
C17: =+C18-1 -> 2021
C18: =MID(F3,4,4) -> 2022
C19: Month
B20: 1 | C20: SEP | D20: Period 01 | E20: Pd 01 YTD | F20: =+B20 -> 1 | G20: 1 | H20: SEP | I20: 1
B21: =+B20+1 -> 2 | C21: OCT | D21: Period 02 | E21: Pd 02 YTD | F21: =+B21 -> 2 | G21: 4 | H21: DEC | I21: 4
B22: 3 | C22: NOV | D22: Period 03 | E22: Pd 03 YTD | F22: 3 | G22: 7 | H22: MAR | I22: 7
B23: 4 | C23: DEC | D23: Period 04 | E23: Pd 04 YTD | F23: 4 | G23: 10 | H23: JUN | I23: 10
B24: 5 | C24: JAN | D24: Period 05 | E24: Pd 05 YTD | F24: 5
B25: 6 | C25: FEB | D25: Period 06 | E25: Pd 06 YTD | F25: 6 | G25: 2 | H25: SEP | I25: 1
B26: 7 | C26: MAR | D26: Period 07 | E26: Pd 07 YTD | F26: 7 | G26: 3 | H26: SEP | I26: 1
B27: 8 | C27: APR | D27: Period 08 | E27: Pd 08 YTD | F27: 8 | G27: 5 | H27: DEC | I27: 4
B28: 9 | C28: MAY | D28: Period 09 | E28: Pd 09 YTD | F28: 9 | G28: 6 | H28: DEC | I28: 4
B29: 10 | C29: JUN | D29: Period 10 | E29: Pd 10 YTD | F29: 10 | G29: 8 | H29: MAR | I29: 7
B30: 11 | C30: JUL | D30: Period 11 | E30: Pd 11 YTD | F30: 11 | G30: 9 | H30: MAR | I30: 7
B31: 12 | C31: AUG | D31: Period 12 | E31: Pd 12 YTD | F31: 12 | G31: 11 | H31: JUN | I31: 10
G32: 12 | H32: JUN | I32: 10

Sheet Essbase_stat
B2: Document Type | C2: Document Type | D2: Document Type | E2: Document Type | F2: Document Type | G2: Document Type | H2: Document Type | I2: Document Type | J2: Document Type | K2: Document Type | L2: Document Type | M2: Document Type | N2: Document Type | O2: Document Type | P2: Document Type | Q2: Document Type | R2: Document Type | S2: Document Type | T2: Document Type | U2: Document Type | V2: Document Type | W2: Document Type | X2: Document Type | Y2: Document Type
B3: Quantity | C3: Quantity | D3: Quantity | E3: Quantity | F3: Quantity | G3: Quantity | H3: Quantity | I3: Quantity | J3: Quantity | K3: Quantity | L3: Quantity | M3: Quantity | N3: Quantity | O3: Quantity | P3: Quantity | Q3: Quantity | R3: Quantity | S3: Quantity | T3: Quantity | U3: Quantity | V3: Quantity | W3: Quantity | X3: Quantity | Y3: Quantity
B4: MANHOURS-REGULAR HOURS WORKED-HOURLY : 9999.6325 | C4: #MAN HOURS-OVERTIME-HOURLY-FULL TIME : 9999.9300 | D4: #MAN HOURS-SICK-HOURLY-FULL TIME : 9999.9400 | E4: #MAN HOURS-HOLIDAY-HOURLY-FULL TIME : 9999.9520 | F4: #MAN HOURS-PERSONAL-HOURLY-FULL TIME : 9999.9561 | G4: #MAN HOURS-JURY DUTY-HOURLY-FULL TIME : 9999.9569 | H4: MAN HOURS-BEREAVEMENT/FUNERAL LEAVE-HOURLY-FT : 9999.9578 | I4: MAN HOURS-VACATION TAKEN-HOURLY-FULL TIME : 9999.9900 | J4: MANHOURS-REGULAR HOURS WORKED-HOURLY : 9999.6325 | K4: #MAN HOURS-OVERTIME-HOURLY-FULL TIME : 9999.9300 | L4: #MAN HOURS-SICK-HOURLY-FULL TIME : 9999.9400 | M4: #MAN HOURS-HOLIDAY-HOURLY-FULL TIME : 9999.9520 | N4: #MAN HOURS-PERSONAL-HOURLY-FULL TIME : 9999.9561 | O4: #MAN HOURS-JURY DUTY-HOURLY-FULL TIME : 9999.9569 | P4: MAN HOURS-BEREAVEMENT/FUNERAL LEAVE-HOURLY-FT : 9999.9578 | Q4: MAN HOURS-VACATION TAKEN-HOURLY-FULL TIME : 9999.9900 | R4: MANHOURS-REGULAR HOURS WORKED-HOURLY : 9999.6325 | S4: #MAN HOURS-OVERTIME-HOURLY-FULL TIME : 9999.9300 | T4: #MAN HOURS-SICK-HOURLY-FULL TIME : 9999.9400 | U4: #MAN HOURS-HOLIDAY-HOURLY-FULL TIME : 9999.9520 | V4: #MAN HOURS-PERSONAL-HOURLY-FULL TIME : 9999.9561 | W4: #MAN HOURS-JURY DUTY-HOURLY-FULL TIME : 9999.9569 | X4: MAN HOURS-BEREAVEMENT/FUNERAL LEAVE-HOURLY-FT : 9999.9578 | Y4: MAN HOURS-VACATION TAKEN-HOURLY-FULL TIME : 9999.9900
B5: =wksInfo!E4 -> Pd 08 YTD | C5: =+B5 -> Pd 08 YTD | D5: Pd 08 YTD | E5: Pd 08 YTD | F5: Pd 08 YTD | G5: Pd 08 YTD | H5: Pd 08 YTD | I5: Pd 08 YTD | J5: Pd 12 YTD | K5: Pd 12 YTD | L5: Pd 12 YTD | M5: Pd 12 YTD | N5: Pd 12 YTD | O5: Pd 12 YTD | P5: Pd 12 YTD | Q5: Pd 12 YTD | R5: =+B5 -> Pd 08 YTD | S5: =+R5 -> Pd 08 YTD | T5: Pd 08 YTD | U5: Pd 08 YTD | V5: Pd 08 YTD | W5: Pd 08 YTD | X5: Pd 08 YTD | Y5: Pd 08 YTD
B6: ="FY "&wksInfo!C17&" Actual" -> FY 2021 Actual | C6: FY 2021 Actual | D6: FY 2021 Actual | E6: FY 2021 Actual | F6: FY 2021 Actual | G6: FY 2021 Actual | H6: FY 2021 Actual | I6: FY 2021 Actual | J6: =+I6 -> FY 2021 Actual | K6: FY 2021 Actual | L6: FY 2021 Actual | M6: FY 2021 Actual | N6: FY 2021 Actual | O6: FY 2021 Actual | P6: FY 2021 Actual | Q6: FY 2021 Actual | R6: ="FY "&wksInfo!C18&" Actual" -> FY 2022 Actual | S6: FY 2022 Actual | T6: FY 2022 Actual | U6: FY 2022 Actual | V6: FY 2022 Actual | W6: FY 2022 Actual | X6: FY 2022 Actual | Y6: FY 2022 Actual
A7: =wksInfo!C7 -> ENCOMPASS REHAB HOSP OF SEWICK : 77061-000 : 70-00857 | B7: 0 | C7: 0 | D7: 0 | E7: 0 | F7: 0 | G7: 0 | H7: 0 | I7: 0 | J7: 0 | K7: 0 | L7: 0 | M7: 0 | N7: 0 | O7: 0 | P7: 0 | Q7: 0 | R7: 0 | S7: 0 | T7: 0 | U7: 0 | V7: 0 | W7: 0 | X7: 0 | Y7: 0
B13: Document Type | C13: Document Type | D13: Document Type | E13: Document Type | F13: Document Type | G13: Document Type | H13: Document Type | I13: Document Type | J13: Document Type | K13: Document Type | L13: Document Type | M13: Document Type | N13: Document Type | O13: Document Type | P13: Document Type | Q13: Document Type | R13: Document Type | S13: Document Type | T13: Document Type | U13: Document Type | V13: Document Type | W13: Document Type | X13: Document Type | Y13: Document Type
B14: Quantity | C14: Quantity | D14: Quantity | E14: Quantity | F14: Quantity | G14: Quantity | H14: Quantity | I14: Quantity | J14: Quantity | K14: Quantity | L14: Quantity | M14: Quantity | N14: Quantity | O14: Quantity | P14: Quantity | Q14: Quantity | R14: Quantity | S14: Quantity | T14: Quantity | U14: Quantity | V14: Quantity | W14: Quantity | X14: Quantity | Y14: Quantity
B15: MANHOURS-REGULAR HOURS WORKED-HOURLY : 9999.6325 | C15: #MAN HOURS-OVERTIME-HOURLY-FULL TIME : 9999.9300 | D15: #MAN HOURS-SICK-HOURLY-FULL TIME : 9999.9400 | E15: #MAN HOURS-HOLIDAY-HOURLY-FULL TIME : 9999.9520 | F15: #MAN HOURS-PERSONAL-HOURLY-FULL TIME : 9999.9561 | G15: #MAN HOURS-JURY DUTY-HOURLY-FULL TIME : 9999.9569 | H15: MAN HOURS-BEREAVEMENT/FUNERAL LEAVE-HOURLY-FT : 9999.9578 | I15: MAN HOURS-VACATION TAKEN-HOURLY-FULL TIME : 9999.9900 | J15: MANHOURS-REGULAR HOURS WORKED-HOURLY : 9999.6325 | K15: #MAN HOURS-OVERTIME-HOURLY-FULL TIME : 9999.9300 | L15: #MAN HOURS-SICK-HOURLY-FULL TIME : 9999.9400 | M15: #MAN HOURS-HOLIDAY-HOURLY-FULL TIME : 9999.9520 | N15: #MAN HOURS-PERSONAL-HOURLY-FULL TIME : 9999.9561 | O15: #MAN HOURS-JURY DUTY-HOURLY-FULL TIME : 9999.9569 | P15: MAN HOURS-BEREAVEMENT/FUNERAL LEAVE-HOURLY-FT : 9999.9578 | Q15: MAN HOURS-VACATION TAKEN-HOURLY-FULL TIME : 9999.9900 | R15: MANHOURS-REGULAR HOURS WORKED-HOURLY : 9999.6325 | S15: #MAN HOURS-OVERTIME-HOURLY-FULL TIME : 9999.9300 | T15: #MAN HOURS-SICK-HOURLY-FULL TIME : 9999.9400 | U15: #MAN HOURS-HOLIDAY-HOURLY-FULL TIME : 9999.9520 | V15: #MAN HOURS-PERSONAL-HOURLY-FULL TIME : 9999.9561 | W15: #MAN HOURS-JURY DUTY-HOURLY-FULL TIME : 9999.9569 | X15: MAN HOURS-BEREAVEMENT/FUNERAL LEAVE-HOURLY-FT : 9999.9578 | Y15: MAN HOURS-VACATION TAKEN-HOURLY-FULL TIME : 9999.9900
B16: =+B5 -> Pd 08 YTD | C16: Pd 08 YTD | D16: Pd 08 YTD | E16: Pd 08 YTD | F16: Pd 08 YTD | G16: Pd 08 YTD | H16: Pd 08 YTD | I16: Pd 08 YTD | J16: Pd 12 YTD | K16: Pd 12 YTD | L16: Pd 12 YTD | M16: Pd 12 YTD | N16: Pd 12 YTD | O16: Pd 12 YTD | P16: Pd 12 YTD | Q16: Pd 12 YTD | R16: Pd 08 YTD | S16: Pd 08 YTD | T16: Pd 08 YTD | U16: Pd 08 YTD | V16: Pd 08 YTD | W16: Pd 08 YTD | X16: Pd 08 YTD | Y16: Pd 08 YTD
B17: ="FY "&wksInfo!C17-1&" Actual" -> FY 2020 Actual | C17: =+B17 -> FY 2020 Actual | D17: FY 2020 Actual | E17: FY 2020 Actual | F17: FY 2020 Actual | G17: FY 2020 Actual | H17: FY 2020 Actual | I17: FY 2020 Actual | J17: FY 2020 Actual | K17: FY 2020 Actual | L17: FY 2020 Actual | M17: FY 2020 Actual | N17: FY 2020 Actual | O17: FY 2020 Actual | P17: FY 2020 Actual | Q17: FY 2020 Actual | R17: ="FY "&wksInfo!C18-1&" Actual" -> FY 2021 Actual | S17: =+R17 -> FY 2021 Actual | T17: FY 2021 Actual | U17: FY 2021 Actual | V17: FY 2021 Actual | W17: FY 2021 Actual | X17: FY 2021 Actual | Y17: FY 2021 Actual
A18: =A7 -> ENCOMPASS REHAB HOSP OF SEWICK : 77061-000 : 70-00857 | B18: 0 | C18: 0 | D18: 0 | E18: 0 | F18: 0 | G18: 0 | H18: 0 | I18: 0 | J18: 0 | K18: 0 | L18: 0 | M18: 0 | N18: 0 | O18: 0 | P18: 0 | Q18: 0 | R18: 0 | S18: 0 | T18: 0 | U18: 0 | V18: 0 | W18: 0 | X18: 0 | Y18: 0

Sheet Essbase_P&L
F1: =+Essbase_stat!A7 -> ENCOMPASS REHAB HOSP OF SEWICK : 77061-000 : 70-00857 | G1: Admin Total | H1: Currency | I1: Document Type
E2: =+G2 -> Pd 08 YTD | F2: Pd 12 YTD | G2: =+Essbase_stat!B5 -> Pd 08 YTD | H2: Pd 12 YTD | I2: =+G2 -> Pd 08 YTD | L2: Prior | O2: Current
E3: =+Essbase_stat!B17 -> FY 2020 Actual | F3: =+Essbase_stat!J17 -> FY 2020 Actual | G3: =+Essbase_stat!B6 -> FY 2021 Actual | H3: =+G3 -> FY 2021 Actual | I3: =+Essbase_stat!R6 -> FY 2022 Actual | L3: 12 MONTHS | O3: 12 MONTHS | P3: OLD CATEGORY ROLL UP | Q3: DATA INPUT CATEGORY | R3: Exclude from "All Other Operating Expenses" | S3: Exclude from "All Other Operating Expenses" and Inflation | T3: Include in "Inflation" for "All Other Operating Expenses"
B4: =D4 -> CAFÉ REVENUE : CAF0000_7110 | C4: =MID(D4,FIND(":",D4)+1,256) -> CAF0000_7110 | D4: CAFÉ REVENUE : CAF0000_7110 | E4: 3844.5 | F4: 8082.25 | G4: 15831.75 | H4: 23457.5 | I4: 18051 | L4: =SUM(F4)-SUM(E4)+SUM(G4) -> 20069.5 | O4: =SUM(H4)-SUM(G4)+SUM(I4) -> 25676.75 | P4: BOARD | Q4: Retail Sales
B5: =D5 -> VENDING REVENUE : VEN0000_7110 | C5: =MID(D5,FIND(":",D5)+1,256) -> VEN0000_7110 | D5: VENDING REVENUE : VEN0000_7110 | E5: 447.68 | F5: 447.68 | G5: 0 | H5: 0 | I5: 0 | L5: =SUM(F5)-SUM(E5)+SUM(G5) -> 0 | O5: =SUM(H5)-SUM(G5)+SUM(I5) -> 0 | P5: RETAIL | Q5: Retail Sales
B6: CONVENIENCE STORES REVENUE : CNV0000_7110 | C6: CNV0000_7110 | D6: CONVENIENCE STORES REVENUE : CNV0000_7110 | E6: 0 | F6: 0 | G6: 0 | H6: 0 | I6: 0 | L6: =SUM(F6)-SUM(E6)+SUM(G6) -> 0 | O6: =SUM(H6)-SUM(G6)+SUM(I6) -> 0 | Q6: Retail Sales
B7: BOARD REVENUE : BRD0000_7110 | C7: BRD0000_7110 | D7: BOARD REVENUE : BRD0000_7110 | E7: 0 | F7: 0 | G7: 0 | H7: 0 | I7: 0 | L7: =SUM(F7)-SUM(E7)+SUM(G7) -> 0 | O7: =SUM(H7)-SUM(G7)+SUM(I7) -> 0 | P7: RETAIL | Q7: Retail Sales
B8: REV-MEALS ON WHEELS : 7110 : 7001.1300 | C8: 7110 : 7001.1300 | D8: REV-MEALS ON WHEELS : 7110 : 7001.1300 | E8: 0 | F8: 0 | G8: 0 | H8: 0 | I8: 0 | L8: 0 | O8: 0 | P8: CATERING | Q8: Resident Revenue
B9: REV-LIQUOR : 7110 : 7001.6170 | C9: 7110 : 7001.6170 | D9: REV-LIQUOR : 7110 : 7001.6170 | E9: 0 | F9: 0 | G9: 0 | H9: 0 | I9: 0 | L9: 0 | O9: 0 | P9: CATERING | Q9: Catering Sales
B10: REV-FOOD SPCL FUNC : 7110 : 7004.1000 | C10: 7110 : 7004.1000 | D10: REV-FOOD SPCL FUNC : 7110 : 7004.1000 | E10: 0 | F10: 0 | G10: 0 | H10: 0 | I10: 0 | L10: 0 | O10: 0 | P10: CATERING | Q10: Catering Sales
B11: REV-BANQUET & CATER : 7110 : 7004.3000 | C11: 7110 : 7004.3000 | D11: REV-BANQUET & CATER : 7110 : 7004.3000 | E11: 0 | F11: 0 | G11: 0 | H11: 0 | I11: 0 | L11: 0 | O11: 0 | P11: CATERING | Q11: Catering Sales
B12: REV-BQT&CATER-N/TAX : 7110 : 7004.3100 | C12: 7110 : 7004.3100 | D12: REV-BQT&CATER-N/TAX : 7110 : 7004.3100 | E12: 0 | F12: 0 | G12: 0 | H12: 0 | I12: 0 | L12: 0 | O12: 0 | P12: CATERING | Q12: Catering Sales
B13: REV-FOOD SPCL FUNC : 7110 : 7004.9002 | C13: 7110 : 7004.9002 | D13: REV-FOOD SPCL FUNC : 7110 : 7004.9002 | E13: 0 | F13: 0 | G13: 0 | H13: 0 | I13: 0 | L13: 0 | O13: 0 | P13: CATERING | Q13: Catering Sales
B14: REV-CATERING : 7110 : 7004.9012 | C14: 7110 : 7004.9012 | D14: REV-CATERING : 7110 : 7004.9012 | E14: 0 | F14: 0 | G14: 0 | H14: 0 | I14: 0 | L14: 0 | O14: 0 | P14: CATERING | Q14: Catering Sales
B15: PATIENT DAY RATE REVENUE : PDR0000_7110 | C15: PDR0000_7110 | D15: PATIENT DAY RATE REVENUE : PDR0000_7110 | E15: 300292.01 | F15: 432441 | G15: 264134.06 | H15: 399072.72 | I15: 262886.43 | L15: 396283.05 | O15: 397825.09 | P15: CATERING | Q15: Resident Revenue
B16: REV-H/C-NOURISHMENTS : 7110 : 7001.1420 | C16: 7110 : 7001.1420 | D16: REV-H/C-NOURISHMENTS : 7110 : 7001.1420 | E16: 0 | F16: 0 | G16: 0 | H16: 0 | I16: 0 | L16: 0 | O16: 0 | P16: CATERING | Q16: Client Reimbursement Sales
B17: REV-H/C-SUP FEEDINGS : 7110 : 7001.1430 | C17: 7110 : 7001.1430 | D17: REV-H/C-SUP FEEDINGS : 7110 : 7001.1430 | E17: 0 | F17: 0 | G17: 0 | H17: 0 | I17: 0 | L17: 0 | O17: 0 | P17: CATERING | Q17: Client Reimbursement Sales
B18: REV-H/C-OUTPNT MEALS : 7110 : 7001.1440 | C18: 7110 : 7001.1440 | D18: REV-H/C-OUTPNT MEALS : 7110 : 7001.1440 | E18: 0 | F18: 0 | G18: 0 | H18: 0 | I18: 0 | L18: 0 | O18: 0 | P18: CATERING | Q18: Client Reimbursement Sales
B19: REV-MED NUTR THERAPY : 7110 : 7001.1480 | C19: 7110 : 7001.1480 | D19: REV-MED NUTR THERAPY : 7110 : 7001.1480 | E19: 0 | F19: 0 | G19: 0 | H19: 0 | I19: 0 | L19: 0 | O19: 0 | P19: CATERING | Q19: Client Reimbursement Sales
B20: REV-FLOOR SUPPLIES : 7110 : 7001.7210 | C20: 7110 : 7001.7210 | D20: REV-FLOOR SUPPLIES : 7110 : 7001.7210 | E20: 0 | F20: 0 | G20: 0 | H20: 0 | I20: 0 | L20: 0 | O20: 0 | P20: CATERING | Q20: Client Reimbursement Sales
B21: REV-REQUISITIONS : 7110 : 7001.7700 | C21: 7110 : 7001.7700 | D21: REV-REQUISITIONS : 7110 : 7001.7700 | E21: 0 | F21: 0 | G21: 0 | H21: 0 | I21: 0 | L21: 0 | O21: 0 | P21: CATERING | Q21: Client Reimbursement Sales
B22: REV-REIMBURSEMENT : 7110 : 7089.9001 | C22: 7110 : 7089.9001 | D22: REV-REIMBURSEMENT : 7110 : 7089.9001 | E22: 0 | F22: 0 | G22: 0 | H22: 0 | I22: 0 | L22: 0 | O22: 0 | P22: CONFERENCE/CONCESSIONS | Q22: Client Reimbursement Sales
B23: PATIENT REVENUE CONTRA SALES : PCT0000_7110 | C23: PCT0000_7110 | D23: PATIENT REVENUE CONTRA SALES : PCT0000_7110 | E23: 0 | F23: 0 | G23: 0 | H23: 0 | I23: 0 | L23: 0 | O23: 0 | P23: CONFERENCE/CONCESSIONS | Q23: Resident Revenue
B24: PROCUREMENT SERVICES REVENUE : PRO0000_7110 | C24: PRO0000_7110 | D24: PROCUREMENT SERVICES REVENUE : PRO0000_7110 | E24: 0 | F24: 0 | G24: 0 | H24: 0 | I24: 0 | L24: 0 | O24: 0 | P24: RETAIL | Q24: Resident Revenue
B25: FACILITIES REVENUE : FAC9999_7110 | C25: FAC9999_7110 | D25: FACILITIES REVENUE : FAC9999_7110 | E25: 0 | F25: 0 | G25: 0 | H25: 0 | I25: 0 | L25: 0 | O25: 0 | P25: RETAIL | Q25: Resident Revenue
B26: OTHER REVENUE : ORV0000_7110 | C26: ORV0000_7110 | D26: OTHER REVENUE : ORV0000_7110 | E26: 2620 | F26: 2894.35 | G26: 0.08 | H26: 0.08 | I26: 0 | L26: 274.43 | O26: 0 | P26: RETAIL | Q26: Resident Revenue
B27: REV-SPECIAL SERVICES : 7110 : 7001.1295 | C27: 7110 : 7001.1295 | D27: REV-SPECIAL SERVICES : 7110 : 7001.1295 | E27: 0 | F27: 0 | G27: 0 | H27: 0 | I27: 0 | L27: =-(SUM(F27)-SUM(E27)+SUM(G27)) -> 0 | O27: =-(SUM(H27)-SUM(G27)+SUM(I27)) -> 0 | Q27: Client Reimbursement Sales
B28: REV-REIMB-LABOR : 7110 : 7001.1296 | C28: 7110 : 7001.1296 | D28: REV-REIMB-LABOR : 7110 : 7001.1296 | E28: 0 | F28: 0 | G28: 0 | H28: 0 | I28: 0 | L28: =-(SUM(F28)-SUM(E28)+SUM(G28)) -> 0 | O28: =-(SUM(H28)-SUM(G28)+SUM(I28)) -> 0 | Q28: Client Reimbursement Sales
B29: CLIENT SETTLEMENT REVENUE : CLS0000_7110 | C29: CLS0000_7110 | D29: CLIENT SETTLEMENT REVENUE : CLS0000_7110 | E29: -4583.61 | F29: -773.54 | G29: 33293.04 | H29: 49028.86 | I29: 22882.5 | L29: 37103.11 | O29: 38618.32 | P29: RETAIL | Q29: Client Reimbursement Sales
B30: MANAGEMENT FEE REVENUE : MFR0000_7110 | C30: MFR0000_7110 | D30: MANAGEMENT FEE REVENUE : MFR0000_7110 | E30: 0 | F30: 0 | G30: 530 | H30: 530 | I30: 0 | L30: 530 | O30: 0 | P30: RETAIL | Q30: Client Reimbursement Sales
B31: COST OF OPERATIONS REVENUE : COP0000_7110 | C31: COP0000_7110 | D31: COST OF OPERATIONS REVENUE : COP0000_7110 | E31: 6173.61 | F31: 4780.96 | G31: -31703.04 | H31: -47438.86 | I31: -22882.5 | L31: -33095.69 | O31: =SUM(H31)-SUM(G31)+SUM(I31) -> -38618.32 | P31: RETAIL | Q31: Client Reimbursement Sales
B32: CLIENT SETTLEMENT REVENUE CONTRA SALES : SCT0000_7110 | C32: SCT0000_7110 | D32: CLIENT SETTLEMENT REVENUE CONTRA SALES : SCT0000_7110 | E32: -5948.52 | F32: -9420.45 | G32: -7169.59 | H32: -10832.19 | I32: -7521.93 | L32: -10641.52 | O32: -11184.53 | P32: RETAIL | Q32: Client Reimbursement Sales
B35: REVENUES : REV9999 | C35: REV9999 | D35: REVENUES : REV9999 | E35: 302845.67 | F35: 438452.25 | G35: 274916.3 | H35: 413818.11 | I35: 273415.5 | L35: 410522.88 | O35: 412317.31
B37: RAW MATERIALS COSTS (PERISHABLE) : RFC0000_7110 | C37: RFC0000_7110 | D37: RAW MATERIALS COSTS (PERISHABLE) : RFC0000_7110 | E37: 141700.91 | F37: 228085.73 | G37: 157460.61 | H37: 238154.88 | I37: 162055.51 | L37: 243845.43 | O37: 242749.78 | P37: FOOD | Q37: Food Cost | R37: Exclude
B38: PAPER/PLASTIC SUPPLIES : PPS0000_7110 | C38: PPS0000_7110 | D38: PAPER/PLASTIC SUPPLIES : PPS0000_7110 | E38: 7236.32 | F38: 11717.25 | G38: 8608.43 | H38: 13022.97 | I38: 11394.75 | L38: 13089.36 | O38: 15809.29 | P38: PAPER | Q38: Paper Expense | R38: Exclude
B39: RAW MATERIAL COSTS : RAW0000 | C39: RAW0000 | D39: RAW MATERIAL COSTS : RAW0000 | E39: 156929.92 | F39: 251537.06 | G39: 173501.24 | H39: 262710.18 | I39: 181372.23 | L39: 268108.38 | O39: 270581.17 | P39: Total Non-Controllable Exp | Q39: All Other Operating Expenses
B41: HOURLY SODEXO WAGES : HRL1199_7110 | C41: HRL1199_7110 | D41: HOURLY SODEXO WAGES : HRL1199_7110 | E41: 22209.88 | F41: 23457.92 | G41: 0 | H41: 0 | I41: 0 | L41: 1248.04 | O41: 0 | P41: HRLY WAGES FROM HOURS /RATE | Q41: Avg Hourly Rate
B42: OUTSIDE LABOR : HRL2199_7110 | C42: HRL2199_7110 | D42: OUTSIDE LABOR : HRL2199_7110 | E42: 0 | F42: 0 | G42: 0 | H42: 0 | I42: 0 | L42: 0 | O42: 0 | P42: OTHER LABOR | Q42: Other labor: Temp, Outside
B43: ADMINISTRATIVE WAGES : ADL1999_7110 | C43: ADL1999_7110 | D43: ADMINISTRATIVE WAGES : ADL1999_7110 | E43: 64301.59 | F43: 88256.62 | G43: 45481.36 | H43: 69035.84 | I43: 47863.1 | L43: 69436.39 | O43: 71417.58 | P43: MANAGEMENT WAGES | Q43: Management Wages
B44: ADMINISTRATIVE INCENTIVE PAY : ADL3000_7110 | C44: =MID(D44,FIND(":",D44)+1,256) -> ADL3000_7110 | D44: ADMINISTRATIVE INCENTIVE PAY : ADL3000_7110 | E44: 785.09 | F44: -818.24 | G44: 2290.84 | H44: 3461.57 | I44: 2380 | L44: 687.51 | O44: 3550.73 | Q44: Management Wages
B46: OTHER (INCOME)/EXPENSES (GROSS PROFIT) : OIE0000_7110 | C46: =TRIM(MID(D46,FIND(":",D46)+1,256)) -> OIE0000_7110 | D46: OTHER (INCOME)/EXPENSES (GROSS PROFIT) : OIE0000_7110 | E46: 0 | F46: 0 | G46: 0 | H46: 0 | I46: 0 | Q46: All Other Operating Expenses
B47: NET (GAIN)/LOSS OF PPE/IFA (GROSS PROF) : DIS0001_7110 | C47: =TRIM(MID(D47,FIND(":",D47)+1,256)) -> DIS0001_7110 | D47: NET (GAIN)/LOSS OF PPE/IFA (GROSS PROF) : DIS0001_7110 | E47: 0 | F47: 0 | G47: 0 | H47: 0 | I47: 0 | Q47: All Other Operating Expenses
B48: OPERATING DEPR AMORT AND IMPAIRMENT : DAI0000_7110 | C48: DAI0000_7110 | D48: OPERATING DEPRECIATION AMORTIZATION : DAI0000_7110 | E48: 4581.4 | F48: 7002.37 | G48: 1954.24 | H48: 2083.08 | I48: 253.48 | L48: =SUM(F48)-SUM(E48)+SUM(G48) -> 4375.21 | O48: =SUM(H48)-SUM(G48)+SUM(I48) -> 382.32 | Q48: All Other Operating Expenses
B49: SUBCONTRACTING COSTS : SUB0000 | C49: SUB0000 | D49: SUBCONTRACTING COSTS : SUB0000 | E49: 0 | F49: 0 | G49: 0 | H49: 0 | I49: 0 | L49: =SUM(F49)-SUM(E49)+SUM(G49) -> 0 | O49: =SUM(H49)-SUM(G49)+SUM(I49) -> 0 | P49: Total Non-Controllable Exp | Q49: All Other Operating Expenses | U49: a
B50: OPERATING OTHER DIRECT COSTS : ODC0000_7110 | C50: ODC0000_7110 | D50: OPERATING OTHER DIRECT COSTS : ODC0000_7110 | E50: 30951.78 | F50: 34068.06 | G50: 6812.67 | H50: 9077.88 | I50: 4770.73 | L50: 9928.95 | O50: 7035.94 | P50: Total Non-Controllable Exp | Q50: All Other Operating Expenses
B51: OTHER (INCOME)/EXPENSES (GROSS PROFIT) : OIE0000_7110 | C51: =TRIM(MID(D51,FIND(":",D51)+1,256)) -> OIE0000_7110 | D51: OTHER (INCOME)/EXPENSES (GROSS PROFIT) : OIE0000_7110 | E51: 0 | F51: 0 | G51: 0 | H51: 0 | I51: 0 | L51: 0 | O51: 0 | Q51: All Other Operating Expenses
B52: NET (GAIN)/LOSS OF PPE/IFA (GROSS PROF) : DIS0001_7110 | C52: =TRIM(MID(D52,FIND(":",D52)+1,256)) -> DIS0001_7110 | D52: NET (GAIN)/LOSS OF PPE/IFA (GROSS PROF) : DIS0001_7110 | E52: 0 | F52: 0 | G52: 0 | H52: 0 | I52: 0 | L52: 0 | O52: 0 | Q52: All Other Operating Expenses
B54: ADMIN INSURED BENEFITS : ADL2199_7110 | C54: ADL2199_7110 | D54: ADMINISTRATIVE INSURED BENEFITS : ADL2199_7110 | E54: 0 | F54: 0 | G54: 0 | H54: 0 | I54: 0 | L54: 0 | O54: 0 | P54: Benefits | Q54: Benefits
B55: HOURLY TAXES : HRL2399_7110 | C55: HRL2399_7110 | D55: HOURLY TAXES : HRL2399_7110 | E55: 0 | F55: 0 | G55: 0 | H55: 0 | I55: 0 | L55: 0 | O55: 0 | P55: Tax | Q55: Taxes
B56: ADMIN OTHER BENEFITS : ADL2499_7110 | C56: ADL2499_7110 | D56: ADMINISTRATIVE OTHER BENEFITS : ADL2499_7110 | E56: 29413.91 | F56: 37982.96 | G56: 15463.67 | H56: 23472.19 | I56: 16273.46 | L56: 24032.72 | O56: 24281.98 | P56: Benefits | Q56: Benefits
B57: HOURLY INSURED BENEFITS : HRL2001_7110 | C57: HRL2001_7110 | D57: HOURLY INSURED BENEFITS : HRL2001_7110 | E57: 0 | F57: 0 | G57: 0 | H57: 0 | I57: 0 | L57: 0 | O57: 0 | P57: Benefits | Q57: Benefits
B58: ADMIN TAXES : ADL2299_7110 | C58: ADL2299_7110 | D58: ADMINISTRATIVE TAXES : ADL2299_7110 | E58: 0 | F58: 0 | G58: 0 | H58: 0 | I58: 0 | L58: 0 | O58: 0 | P58: Tax | Q58: Taxes
B59: ADMIN WORKERS COMP : ADL2399_7110 | C59: ADL2399_7110 | D59: ADMINISTRATIVE WORKERS COMP : ADL2399_7110 | E59: 0 | F59: 0 | G59: 0 | H59: 0 | I59: 0 | L59: =SUM(F59)-SUM(E59)+SUM(G59) -> 0 | O59: =SUM(H59)-SUM(G59)+SUM(I59) -> 0 | P59: Tax | Q59: Taxes
B60: HOURLY WORKERS COMP : HRL2003_7110 | C60: HRL2003_7110 | D60: HOURLY WORKERS COMPENSATION : HRL2003_7110 | E60: 0 | F60: 0 | G60: 0 | H60: 0 | I60: 0 | L60: =SUM(F60)-SUM(E60)+SUM(G60) -> 0 | O60: =SUM(H60)-SUM(G60)+SUM(I60) -> 0 | P60: Tax | Q60: Taxes
B61: UNION RELATED COSTS : UNI3999_7110 | C61: UNI3999_7110 | D61: UNION RELATED COSTS : UNI3999_7110 | E61: 0 | F61: 0 | G61: 0 | H61: 0 | I61: 0 | L61: 0 | O61: 0 | Q61: Avg Hourly Rate
B62: HOURLY OTHER BENEFITS : HRL2004_7110 | C62: HRL2004_7110 | D62: HOURLY OTHER BENEFITS : HRL2004_7110 | E62: 0 | F62: 0 | G62: 0 | H62: 0 | I62: 0 | L62: 0 | O62: 0 | Q62: Benefits
L63: 0 | O63: 0
L64: 0 | O64: 0
B65: RAW MATERIALS COSTS (PERISHABLE) : RFC0000_7110 | C65: RFC0000_7110 | D65: RAW MATERIALS COSTS (PERISHABLE) : RFC0000_7110 | E65: 141700.91 | F65: 228085.73 | G65: 157460.61 | H65: 238154.88 | I65: 162055.51 | L65: 243845.43 | O65: 242749.78
B66: RAW MATERIALS COSTS (NON - PERISHABLE) : RNF0000_7110 | C66: RNF0000_7110 | D66: RAW MATERIALS COSTS (NON-PERISHABLE) : RNF0000_7110 | E66: 7239.75 | F66: 11720.68 | G66: 8608.43 | H66: 13022.97 | I66: 11452.6 | L66: 13089.36 | O66: 15867.14
B67: OTHER RAW MATERIALS COSTS : OMC0000_7110 | C67: OMC0000_7110 | D67: OTHER RAW MATERIALS COSTS : OMC0000_7110 | E67: 7989.26 | F67: 11730.65 | G67: 7432.2 | H67: 11532.33 | I67: 7864.12 | L67: 11173.59 | O67: 11964.25
B68: OPERATING PERSONNEL COSTS : PER0000_7110 | C68: PER0000_7110 | D68: OPERATING PERSONNEL COSTS : PER0000_7110 | E68: 116710.47 | F68: 148879.26 | G68: 63235.87 | H68: 95969.6 | I68: 66516.56 | L68: =SUM(F68)-SUM(E68)+SUM(G68) -> 95404.66 | O68: 99250.29
B69: OPERATING DEPR AMORT AND IMPAIRMENT : DAI0000_7110 | C69: DAI0000_7110 | D69: OPERATING DEPRECIATION AMORTIZATION : DAI0000_7110 | E69: 4581.4 | F69: 7002.37 | G69: 1954.24 | H69: 2083.08 | I69: 253.48 | L69: 4375.21 | O69: 382.32
B70: OTHER (INCOME)/EXPENSES (GROSS PROFIT) : OIE0000_7110 | C70: =TRIM(MID(D70,FIND(":",D70)+1,256)) -> OIE0000_7110 | D70: OTHER (INCOME)/EXPENSES (GROSS PROFIT) : OIE0000_7110 | E70: 0 | F70: 0 | G70: 0 | H70: 0 | I70: 0 | L70: 0 | O70: 0
B71: NET (GAIN)/LOSS OF PPE/IFA (GROSS PROF) : DIS0001_7110 | C71: =TRIM(MID(D71,FIND(":",D71)+1,256)) -> DIS0001_7110 | D71: NET (GAIN)/LOSS OF PPE/IFA (GROSS PROF) : DIS0001_7110 | E71: 0 | F71: 0 | G71: 0 | H71: 0 | I71: 0 | L71: 0 | O71: 0
B72: PROVISION FOR ONEROUS CONTRACTS : PRC0000 | C72: PRC0000 | D72: PROVISION FOR ONEROUS CONTRACTS : PRC0000 | E72: 0 | F72: 0 | G72: 0 | H72: 0 | I72: 0 | L72: 0 | O72: 0
B73: SUBCONTRACTING COSTS : SUB0000 | C73: SUB0000 | D73: SUBCONTRACTING COSTS : SUB0000 | E73: 0 | F73: 0 | G73: 0 | H73: 0 | I73: 0 | L73: 0 | O73: 0
B74: OPERATING OTHER DIRECT COSTS : ODC0000_7110 | C74: ODC0000_7110 | D74: OPERATING OTHER DIRECT COSTS : ODC0000_7110 | E74: 30951.78 | F74: 34068.06 | G74: 6812.67 | H74: 9077.88 | I74: 4770.73 | L74: 9928.95 | O74: 7035.94
B75: OPERATING PROCESSING COSTS : TPC9999_7110 | C75: TPC9999_7110 | D75: TOTAL OPERATING PROCESSING COSTS : TPC9999_7110 | E75: 309173.57 | F75: 441486.75 | G75: 245504.02 | H75: 369840.74 | I75: 252913 | L75: =SUM(F75)-SUM(E75)+SUM(G75) -> 377817.2 | O75: 377249.72
O76: =SUM(O39:O62) -> 377249.72
O77: =O76-O75 -> 0

Sheet Data_Input
B1: PAGE NOT INTENDED FOR CLIENT PRESENTATION-USE CLIENT DATA SHEET | Q1: Rate Ren Fy14 v1.2
B2: =+'Essbase_P&L'!F1 -> ENCOMPASS REHAB HOSP OF SEWICK : 77061-000 : 70-00857
C3: 12 Month Period | E3: Categories Subject to Inflation | G3: Inflation Index | I3: Adj. | K3: Ann'l avg Inflation Index | M3: $ Inflation | O3: Notes
B4: Resident Revenue | C4: =SUMIF(DATA_CATEGORIES,"="&B4,Essbase_DATA) -> 397825.09 | E4: =C4+I4 -> 397825.09 | M4: =E4*K4 -> 0 | O4: N/A
B5: Client Reimbursement Sales | C5: =SUMIF(DATA_CATEGORIES,"="&B5,Essbase_DATA) -> -11184.53 | E5: =C5 -> -11184.53 | M5: =E5*K5 -> 0 | O5: N/A
B6: Retail Sales | C6: =SUMIF(DATA_CATEGORIES,"="&B6,Essbase_DATA) -> 25676.75 | E6: =C6 -> 25676.75 | M6: =E6*K6 -> 0 | O6: N/A
B7: Catering Sales | C7: =SUMIF(DATA_CATEGORIES,"="&B7,Essbase_DATA) -> 0 | E7: =+C7 -> 0 | M7: =E7*K7 -> 0 | O7: N/A
B8: Annual Revenue/Rate increase | C8: =SUM(C4:C7) -> 412317.31 | E8: =SUM(E4:E7) -> 412317.31 | M8: =SUM(M4:M7) -> 0
B11: Food Cost | C11: =SUMIF(DATA_CATEGORIES,"="&B11,Essbase_DATA) -> 242749.78 | E11: =C11 -> 242749.78 | G11: =IF(wksInfo!E10="PPI",VLOOKUP(wksInfo!E12,'PPI - Food'!$A$25:$BO$36,'PPI - Food'!$BO$22,FALSE),VLOOKUP(wksInfo!E12,'CPI - Index'!$A$78:$BP$90,'CPI - Index'!$BP$76,FALSE)) -> 0.05005048832 | K11: =SUM(G11:J11) -> 0.05005048832 | L11: =IF(G11<>K11,"*","") ->  | M11: =E11*K11 -> 12149.74503 | O11: =IF(wksInfo!E10="PPI","Producer Price Index for Finished Consumer Foods (WPUFD4111)","Consumer Price Index FAH (CUUR0000SAF11)") -> Consumer Price Index FAH (CUUR0000SAF11)
B13: Labor: | Q13: Last Year Hourly rate
B15: Hourly Labor Hrs | C15: =SUM(Essbase_stat!J7:Q7)-SUM(Essbase_stat!B7:I7)+SUM(Essbase_stat!R7:Y7) -> 0 | E15: =C15 -> 0 | L15: =IF(G15<>K15,"*","") ->  | M15: =E15+K15 -> 0 | O15: N/A | Q15: Rate | R15: YOY Change
B18: Avg Hourly Rate | C18: =IF(ISERR((SUMIF(DATA_CATEGORIES,"="&B18,Essbase_DATA))/Data_Input!C15),0,(SUMIF(DATA_CATEGORIES,"="&B18,Essbase_DATA))/Data_Input!C15) -> 0 | E18: =C18 -> 0 | G18: =IF(wksInfo!F12=4,VLOOKUP(wksInfo!$F$12,'Hrly Labor Comp. Index'!$A$16:$AC$19,'Hrly Labor Comp. Index'!$AC$13,FALSE),VLOOKUP(wksInfo!$F$12,'Hrly Labor Comp. Index'!$A$16:$AC$19,'Hrly Labor Comp. Index'!$AC$13,FALSE)) -> 0.03108897286 | I18: 0 | K18: =SUM(G18:J18) -> 0.03108897286 | L18: =IF(G18<>K18,"*","") ->  | M18: =+E18*(1+K18) -> 0 | O18: Employment Cost Index (ECI) - Accommodation and food services | Q18: =(SUMIF(DATA_CATEGORIES,"="&B18,Essbase_DATA_PY))/(SUM(Essbase_stat!J18:Q18)-SUM(Essbase_stat!B18:I18)+SUM(Essbase_stat!R18:Y18)) ->  | R18: =+(C18-Q18)/Q18 -> 
B21: Total Hourly Labor $ | C21: =C15*C18 -> 0 | E21: =E15*E18 -> 0 | G21: =IF(ISERROR(G15*G18),"",G15*G18) -> 0 | I21: =I15*I18 -> 0 | K21: =K15*K18 -> 0 | L21: =IF(G21<>K21,"*","") ->  | M21: =(M15*M18)-(C15*C18) -> 0
B23: Other labor: Temp, Outside | C23: =SUMIF(DATA_CATEGORIES,"="&B23,Essbase_DATA) -> 0 | E23: =+C23 -> 0 | G23: =IF(wksInfo!$F$12=4,VLOOKUP(wksInfo!$F$12,'Hrly Labor Comp. Index'!$A$16:$AC$19,'Hrly Labor Comp. Index'!$AC$13,FALSE),VLOOKUP(wksInfo!$F$12,'Hrly Labor Comp. Index'!$A$16:$AC$19,'Hrly Labor Comp. Index'!$AC$13,FALSE)) -> 0.03108897286 | K23: =SUM(G23:J23) -> 0.03108897286 | L23: =IF(G23<>K23,"*","") ->  | M23: =+E23*K23 -> 0 | O23: =+O18 -> Employment Cost Index (ECI) - Accommodation and food services
B24: Management Wages | C24: =SUMIF(DATA_CATEGORIES,"="&B24,Essbase_DATA) -> 74968.31 | E24: =C24 -> 74968.31 | G24: ='Sodexo Comp Guidelines'!D9 -> 0.02 | K24: =SUM(G24:J24) -> 0.02 | L24: =IF(G24<>K24,"*","") ->  | M24: =E24*K24 -> 1499.3662 | O24: Sodexo Compensation guidelines
B26: Taxes | C26: =SUMIF(DATA_CATEGORIES,"="&B26,Essbase_DATA) -> 0 | E26: =C26 -> 0 | G26: =IF(wksInfo!$F$12=4,VLOOKUP(wksInfo!$F$12,'Hrly Labor Comp. Index'!$A$16:$AC$19,'Hrly Labor Comp. Index'!$AC$13,FALSE),VLOOKUP(wksInfo!$F$12,'Hrly Labor Comp. Index'!$A$16:$AC$19,'Hrly Labor Comp. Index'!$AC$13,FALSE)) -> 0.03108897286 | K26: =SUM(G26:J26) -> 0.03108897286 | L26: =IF(G26<>K26,"*","") ->  | M26: =E26*K26 -> 0 | O26: =+O18 -> Employment Cost Index (ECI) - Accommodation and food services
B27: Benefits | C27: =SUMIF(DATA_CATEGORIES,"="&B27,Essbase_DATA) -> 24281.98 | E27: =C27 -> 24281.98 | G27: =+'Sodexo Comp Guidelines'!C9 -> 0.06 | K27: =SUM(G27:J27) -> 0.06 | L27: =IF(G27<>K27,"*","") ->  | M27: =E27*K27 -> 1456.9188 | O27: =+O24 -> Sodexo Compensation guidelines
B28: Total Labor | C28: =C21+C24+C27+C26+C23 -> 99250.29 | E28: =E21+E24+E27+E26+E23 -> 99250.29 | K28: =M28/E28 -> 0.02978615982 | M28: =M21+M24+M27+M26+M23 -> 2956.285
B30: Paper Expense | C30: =SUMIF(DATA_CATEGORIES,"="&B30,Essbase_DATA) -> 15809.29 | E30: =C30 -> 15809.29 | G30: =VLOOKUP(wksInfo!$E$12,'PPI - Paper'!$A$20:$AH$31,'PPI - Paper'!$AH$17,FALSE) -> 0.1043045701 | K30: =SUM(G30:J30) -> 0.1043045701 | L30: =IF(G30<>K30,"*","") ->  | M30: =E30*K30 -> 1648.981197 | O30: PPI Series– WPU091503. Paper, Boxes and Containers.
B32: All Other Operating Expenses | C32: =SUMIF(DATA_CATEGORIES,"="&B32,Essbase_DATA) -SUMIF(Exclude1,"=Exclude",Essbase_DATA) -> 19440.36 | E32: =SUMIF(DATA_CATEGORIES,"="&B32,Essbase_DATA) -SUMIF(Exclude1,"=Exclude",Essbase_DATA)-SUMIF(Exclude2,"=Exclude",Essbase_DATA) + SUMIF(Include1,"=Include",Essbase_DATA) -> 19440.36 | G32: =VLOOKUP(wksInfo!$E$12,'PPI - Other controllable'!$A$24:$AH$35,'PPI - Other controllable'!$AH$21,FALSE) -> 0.06649748322 | K32: =SUM(G32:J32) -> 0.06649748322 | L32: =IF(G32<>K32,"*","") ->  | M32: =E32*K32 -> 1292.735013 | O32: PPI Series “WPUFD49209 Finished Goods Excluding Food”
B34: Projected Profit Margin | C34: 0.14 | M34: =M32+M28+M11+M30 -> 18047.74624
B36: Net Cost Subject to Inflation (before Program Adj) | M36: =-M8+M34 -> 18047.74624
B37: Client Rate increase needed to offset Inflation and Wage Pressure | M37: =M36/E4 -> 0.04536603319
B39: PAGE NOT INTENDED FOR CLIENT PRESENTATION-USE CLIENT DATA SHEET
B41: Data (Column C) 12 months thru -> | C41: ="PD "&wksInfo!E5&" : "&MID(wksInfo!F3,1,7) -> PD 8 : FY 2022 | K41: Essbase retrieval names used | M41: =+B2 -> ENCOMPASS REHAB HOSP OF SEWICK : 77061-000 : 70-00857
C44: PPI | E44: ECI Labor
B45: Indexes thru -> | C45: =+wksInfo!E11 -> FEB | E45: =+wksInfo!F11 -> DEC
C46: Monthly | E46: Quarterly
B47: Notes:

Sheet Client Budget Input (hidden)
B1: PAGE NOT INTENDED FOR CLIENT PRESENTATION-USE CLIENT DATA SHEET | Q1: Rate Ren Fy14 v1.2
B2: =+'Essbase_P&L'!F1 -> ENCOMPASS REHAB HOSP OF SEWICK : 77061-000 : 70-00857
C3: 12 Month Period | E3: Categories Subject to Inflation | G3: Inflation Index | I3: Adj. | K3: Ann'l avg Inflation Index | M3: $ Inflation | O3: Notes
B4: Retail Sales | E4: =C4 -> 0 | M4: =E4*K4 -> 0 | O4: N/A
B5: Catering Sales | E5: =+C5 -> 0 | M5: =E5*K5 -> 0 | O5: N/A
B6: Annual Revenue/Rate increase | E6: =SUM(E2:E5) -> 0 | M6: =SUM(M2:M5) -> 0
B10: Food Cost | E10: =C10 -> 0 | G10: =IF(wksInfo!E10="PPI",VLOOKUP(wksInfo!E12,'PPI - Food'!$A$25:$BO$36,'PPI - Food'!$BO$22,FALSE),VLOOKUP(wksInfo!E12,'CPI - Index'!$A$78:$BP$90,'CPI - Index'!$BP$76,FALSE)) -> 0.05005048832 | K10: =SUM(G10:J10) -> 0.05005048832 | L10: =IF(G10<>K10,"*","") ->  | M10: =E10*K10 -> 0 | O10: =IF(wksInfo!E10="PPI","Producer Price Index for Finished Consumer Foods (WPUFD4111)","Consumer Price Index FAH (CUUR0000SAF11)") -> Consumer Price Index FAH (CUUR0000SAF11)
B12: Labor: | Q12: Last Year Hourly rate
B14: Hourly Labor Hrs | E14: =C14 -> 0 | L14: =IF(G14<>K14,"*","") ->  | M14: =E14+K14 -> 0 | O14: N/A | Q14: Rate | R14: YOY Change
B17: Avg Hourly Rate | E17: =C17 -> 0 | G17: =IF(wksInfo!F12=4,VLOOKUP(wksInfo!$F$12,'Hrly Labor Comp. Index'!$A$16:$AC$19,'Hrly Labor Comp. Index'!$AC$13-1,FALSE),VLOOKUP(wksInfo!$F$12,'Hrly Labor Comp. Index'!$A$16:$AC$19,'Hrly Labor Comp. Index'!$AC$13,FALSE)) -> 0.04187544739 | K17: =SUM(G17:J17) -> 0.04187544739 | L17: =IF(G17<>K17,"*","") ->  | M17: =+E17*(1+K17) -> 0 | O17: Employment Cost Index (ECI) - Accommodation and food services | Q17: =(SUMIF(DATA_CATEGORIES,"="&B17,Essbase_DATA_PY))/(SUM(Essbase_stat!J18:Q18)-SUM(Essbase_stat!B18:I18)+SUM(Essbase_stat!R18:Y18)) ->  | R17: =+(C17-Q17)/Q17 -> 
B20: Total Hourly Labor $ | C20: =C14*C17 -> 0 | E20: =E14*E17 -> 0 | G20: =IF(ISERROR(G14*G17),"",G14*G17) -> 0 | I20: =I14*I17 -> 0 | K20: =K14*K17 -> 0 | L20: =IF(G20<>K20,"*","") ->  | M20: =(M14*M17)-(C14*C17) -> 0
B22: Other labor: Temp, Outside | E22: =+C22 -> 0 | G22: =IF(wksInfo!$F$12=4,VLOOKUP(wksInfo!$F$12,'Hrly Labor Comp. Index'!$A$16:$AC$19,'Hrly Labor Comp. Index'!$AC$13-1,FALSE),VLOOKUP(wksInfo!$F$12,'Hrly Labor Comp. Index'!$A$16:$AC$19,'Hrly Labor Comp. Index'!$AC$13,FALSE)) -> 0.04187544739 | K22: =SUM(G22:J22) -> 0.04187544739 | L22: =IF(G22<>K22,"*","") ->  | M22: =+E22*K22 -> 0 | O22: =+O17 -> Employment Cost Index (ECI) - Accommodation and food services
B24: Taxes | E24: =C24 -> 0 | G24: =IF(wksInfo!$F$12=4,VLOOKUP(wksInfo!$F$12,'Hrly Labor Comp. Index'!$A$16:$AC$19,'Hrly Labor Comp. Index'!$AC$13-1,FALSE),VLOOKUP(wksInfo!$F$12,'Hrly Labor Comp. Index'!$A$16:$AC$19,'Hrly Labor Comp. Index'!$AC$13,FALSE)) -> 0.04187544739 | K24: =SUM(G24:J24) -> 0.04187544739 | L24: =IF(G24<>K24,"*","") ->  | M24: =E24*K24 -> 0 | O24: =+O17 -> Employment Cost Index (ECI) - Accommodation and food services
B25: Benefits | E25: =C25 -> 0 | G25: =+'Sodexo Comp Guidelines'!C9 -> 0.06 | K25: =SUM(G25:J25) -> 0.06 | L25: =IF(G25<>K25,"*","") ->  | M25: =E25*K25 -> 0 | O25: Sodexo Compensation guidelines
B26: Total Labor | C26: =C20+C32+C25+C24+C22 -> 0 | E26: =E20+E32+E25+E24+E22 -> 0 | K26: =IFERROR(M26/E26,0) -> 0 | M26: =M20+M32+M25+M24+M22 -> 0
B28: Paper Expense | E28: =C28 -> 0 | G28: =VLOOKUP(wksInfo!$E$12,'PPI - Paper'!$A$20:$AH$31,'PPI - Paper'!$AH$17,FALSE) -> 0.1043045701 | K28: =SUM(G28:J28) -> 0.1043045701 | L28: =IF(G28<>K28,"*","") ->  | M28: =E28*K28 -> 0 | O28: PPI Series– WPU091503. Paper, Boxes and Containers.
B30: All Other Operating Expenses | E30: =D30 -> 0 | G30: =VLOOKUP(wksInfo!$E$12,'PPI - Other controllable'!$A$24:$AH$35,'PPI - Other controllable'!$AH$21,FALSE) -> 0.06649748322 | K30: =SUM(G30:J30) -> 0.06649748322 | L30: =IF(G30<>K30,"*","") ->  | M30: =E30*K30 -> 0 | O30: PPI Series “WPUFD49209 Finished Goods Excluding Food”
B32: Sodexo Contract Expenses | E32: =C32 -> 0 | G32: ='Sodexo Comp Guidelines'!D9 -> 0.02 | K32: =SUM(G32:J32) -> 0.02 | L32: =IF(G32<>K32,"*","") ->  | M32: =E32*K32 -> 0 | O32: Sodexo Compensation guidelines
M35: =M30+M26+M10+M28 -> 0
B37: Net Cost Subject to Inflation (before Program Adj) | M37: =-SUM(M4:M6)+M35 -> 0
B38: Recommended Client Budget Based on Inflationary Indexes and Prgram Changes | M38: =M37-SUM(C14:C32,C10) -> 0
B40: PAGE NOT INTENDED FOR CLIENT PRESENTATION-USE CLIENT DATA SHEET
B41: Notes:

Sheet Client Data Sheet
B1: =Data_Input!B2 -> ENCOMPASS REHAB HOSP OF SEWICK : 77061-000 : 70-00857 | M1: Convert back | N1: Regular
E2: Cost Categories Subject to Inflation | G2: Ann'l avg Inflation Index | I2: $ Inflation | K2: Notes | M2: Y | N2: Y
B3: Board Sales | E3: =Data_Input!E4 -> 397825.09 | G3: =+Data_Input!K4 -> 0 | I3: =E3*G3 -> 0 | K3: =+Data_Input!O4 -> N/A | M3: N | N3: Y
B4: Settlement Sales | E4: =Data_Input!E5 -> -11184.53 | G4: =+Data_Input!K5 -> 0 | I4: =E4*G4 -> 0 | K4: =+Data_Input!O5 -> N/A | M4: N | N4: Y
B5: Retail Sales | E5: =Data_Input!E6 -> 25676.75 | G5: =+Data_Input!K6 -> 0 | I5: =E5*G5 -> 0 | K5: =+Data_Input!O6 -> N/A | M5: N | N5: Y
B6: Catering Sales | E6: =Data_Input!E7 -> 0 | G6: =+Data_Input!K7 -> 0 | I6: =E6*G6 -> 0 | K6: =+Data_Input!O7 -> N/A | M6: N | N6: Y
B7: Camp/Conference Sales | E7: =Data_Input!#REF! ->  | G7: =+Data_Input!#REF! ->  | I7: =E7*G7 ->  | K7: =+Data_Input!#REF! ->  | M7: N | N7: Y
B8: Annual Revenue/Rate increase | E8: =SUM(E3:E7) ->  | I8: =SUM(I3:I7) ->  | M8: N | N8: Y
M9: N | N9: Y
B10: Food Cost | E10: =Data_Input!E11 -> 242749.78 | G10: =Data_Input!K11 -> 0.05005048832 | I10: =E10*G10 -> 12149.74503 | K10: =+Data_Input!O11&" " &Data_Input!L11 -> Consumer Price Index FAH (CUUR0000SAF11) | M10: Y | N10: Y
M11: Y | N11: Y
B12: Labor: | M12: Y | N12: Y
M13: Y | N13: Y
B14: Hourly Labor Hrs | E14: =Data_Input!E15 -> 0 | G14: =+Data_Input!K15 -> 0 | I14: =E14+G14 -> 0 | K14: =+Data_Input!O15 -> N/A | M14: Y | N14: Y
M15: Y | N15: Y
B16: Avg Hourly Rate | E16: =Data_Input!E18 -> 0 | G16: =+Data_Input!K18 -> 0.03108897286 | I16: =+E16*(1+G16) -> 0 | K16: =+Data_Input!O18&" " &Data_Input!L18 -> Employment Cost Index (ECI) - Accommodation and food services | M16: Y | N16: Y
M17: Y | N17: Y
B18: Total Hourly Labor $ | E18: =Data_Input!E21 -> 0 | G18: =G14*G16 -> 0 | I18: =+I14*I16-E14*E16 -> 0 | M18: Y | N18: Y
B19: Outside Labor | E19: =+Data_Input!C23 -> 0 | G19: =+Data_Input!K23 -> 0.03108897286 | I19: =+E19*G19 -> 0 | K19: =++Data_Input!O23&" " &Data_Input!L23 -> Employment Cost Index (ECI) - Accommodation and food services | M19: Y | N19: Y
B20: Management Wages | E20: =Data_Input!E24 -> 74968.31 | G20: =Data_Input!K24 -> 0.02 | I20: =E20*G20 -> 1499.3662 | K20: =+Data_Input!O24&" " &Data_Input!L24 -> Sodexo Compensation guidelines | M20: Y | N20: Y
M21: Y | N21: Y
B22: Taxes | E22: =+Data_Input!C26 -> 0 | G22: =+Data_Input!K26 -> 0.03108897286 | I22: =E22*G22 -> 0 | K22: =+Data_Input!O26&" " &Data_Input!L26 -> Employment Cost Index (ECI) - Accommodation and food services | M22: Y | N22: Y
B23: Benefits | E23: =+Data_Input!C27 -> 24281.98 | G23: =+Data_Input!K27 -> 0.06 | I23: =+E23*G23 -> 1456.9188 | K23: =+Data_Input!O27&" " &Data_Input!L27 -> Sodexo Compensation guidelines | M23: Y | N23: Y
B24: Total Labor | E24: =E18+E20+E22+E19+E23 -> 99250.29 | I24: =I18+I20+I22+I19+I23 -> 2956.285 | M24: Y | N24: Y
M25: Y | N25: Y
B26: Paper Expense | E26: =Data_Input!E30 -> 15809.29 | G26: =+Data_Input!K30 -> 0.1043045701 | I26: =E26*G26 -> 1648.981197 | K26: =+Data_Input!O30&" " &Data_Input!L30 -> PPI Series– WPU091503. Paper, Boxes and Containers. | M26: Y | N26: Y
M27: Y | N27: Y
B28: All Other Operating Expenses | E28: =Data_Input!E32 -> 19440.36 | G28: =Data_Input!K32 -> 0.06649748322 | I28: =E28*G28 -> 1292.735013 | K28: =+Data_Input!O32&" " &Data_Input!L32 -> PPI Series “WPUFD49209 Finished Goods Excluding Food” | M28: Y | N28: Y
M29: Y | N29: Y
B30: Operating Expenses | E30: =+E28+E26+E23+E22+E20+E19+E18+E10 -> 377249.72 | M30: Y | N30: N
M31: Y | N31: Y
B32: Projected Annual Cost Increases | I32: =+I24+I10+I28+I26 -> 18047.74624 | M32: Y | N32: Y
B33: =+B8 -> Annual Revenue/Rate increase | I33: =IFERROR(-SUM(I8),0) -> 0 | M33: N | N33: Y
B34: Budgeted Census - Annual Resident Days | I34: =48*365 -> 17520
B35: Net Cost Subject to Inflation (before Adj) | I35: =SUM(I32:I33) -> 18047.74624 | M35: Y | N35: Y
I37: =I35/E$3 -> 0.04536603319 | K37: % before program changes | M37: Y | N37: Y
M38: Y | N38: Y
B39: Program Adjustments | K39: Financial impact of program adjustments. | M39: Y | N39: Y
B40: COVID Related Costs | M40: Y | N40: Y
M41: Y | N41: Y
B42: Net Cost Subject to Inflation | I42: =+I35+I40+I39 -> 18047.74624 | M42: Y | N42: Y
B44: Calculated PRD based on Annual Resident Days | I44: =IFERROR((I42+E30)/I34,0)*(1+Data_Input!C34) -> 25.72141047
B45: Client Patient Rate increase needed to offset Inflation | I45: =IF(Data_Input!$O$45="N",I42/E$3,I42/E$30) -> 0.04784031712 | K45: Net % increase required | M45: Y | N45: Y

Sheet CPI - Index (hidden)
BK2: Series Id: | BL2: CUUR0000SA0 | CK2: Series Id: | CL2: CUUR0000SA0
BK3: Not Seasonally Adjusted | CK3: Not Seasonally Adjusted
BK4: Area: | BL4: U.S. city average | CK4: Area: | CL4: U.S. city average
BK5: Item: | BL5: All items | CK5: Item: | CL5: All items
B7: The Consumer Price Index for all urban consumers is a measure of the average change in prices, over time, in a fixed market basket of goods and services. The CPI-U encompasses approximately 80% of the population, and includes food clothing, shelter, fuels, transportation fares, doctor and dentist services, drugs, and the other goods and services people buy for day to day living. Eighty-five urban areas which include about 57,000 housing units and approximately 19,000 retail establishments are surveyed on a monthly basis. All taxes directly associated with the purchase and use of these items are included. Food, fuel, and a few other items are surveyed every other month.
CK8: CONSUMER'S PRICE INDEX
CK9: ALL ITEMS, ALL URBAN CONSUMERS, US CITY AVERAGE (CPI-U)*
B12: https://www.bls.gov/news.release/pdf/cpi.pdf | CC12: Prelim
B13: CONSUMER'S PRICE INDEX | BK13: Commodity code: CUUR0000SA0 | CC13: The numbers are first published as Preliminary, and each month is updated in the publication 4 months later.
B14: ALL ITEMS, ALL URBAN CONSUMERS, US CITY AVERAGE (CPI-U)*
BO16: =COLUMN() -> 67
AJ17: Prelim | BG17: ANNUAL % CHANGE | BZ17: PERIOD % CHANGE
B18: =NOW() -> 2022-05-16T09:01:57.150 | C18: 1988 | D18: 1989 | E18: 1990 | F18: 1991 | G18: 1992 | H18: 1993 | I18: 1994 | J18: 1995 | K18: 1996 | L18: 1997 | M18: 1998 | N18: 1999 | O18: 2000 | P18: 2001 | Q18: 2002 | R18: 2003 | S18: 2004 | T18: 2005 | U18: 2006 | V18: 2007 | W18: 2008 | X18: 2009 | Y18: 2010 | Z18: 2011 | AA18: 2012 | AB18: 2013 | AC18: 2014 | AD18: 2015 | AE18: 2016 | AF18: 2017 | AG18: 2018 | AH18: 2019 | AI18: 2020 | AJ18: 2021 | AK18: 2022 | AL18: 92 VS 91 | AM18: 93 VS 92 | AN18: 94 VS 93 | AO18: 95 VS 94 | AP18: 96 VS 95 | AQ18: 97 VS 96 | AR18: 98 VS 97 | AS18: 99 VS 98 | AT18: 00 VS 99 | AU18: 01 VS 00 | AV18: 02 VS 01 | AW18: 03 VS 02 | AX18: 04 VS 03 | AY18: 05 VS 04 | AZ18: 06 VS 05 | BA18: 07 VS 06 | BB18: 08 VS 07 | BC18: 09 VS 08 | BD18: 10 VS 09 | BE18: 11 VS 10 | BF18: 12 VS 11 | BG18: 13 VS 12 | BH18: 14 VS 13 | BI18: 15 VS 14 | BJ18: 16 VS 15 | BK18: 17 VS 16 | BL18: 18 VS 17 | BM18: 19 VS 18 | BN18: 20 VS 19 | BO18: 21 VS 20 | BP18: 22 VS 20 | BR18: FY12 | BS18: FY11 | BU18: 09 VS 08 | BV18: 10 VS 09 | BW18: 11 VS 10 | BX18: 12 VS 11 | BY18: 13 VS 12 | BZ18: 14 VS 13 | CA18: 15 VS 14 | CB18: 16 VS 15 | CC18: 17 VS 16 | CD18: 18 VS 17 | CE18: 19 VS 18 | CF18: 20 VS 19 | CG18: 21 VS 20 | CI18: 22 VS 20
A19: =+A30+1 -> 5 | B19: JANUARY | C19: 115.7 | D19: 121.1 | E19: 127.4 | F19: 134.6 | G19: 138.1 | H19: 142.6 | I19: 146.2 | J19: 150.3 | K19: 154.4 | L19: 159.1 | M19: 161.6 | N19: 164.3 | O19: 168.8 | P19: 175.1 | Q19: 177.1 | R19: 181.7 | S19: 185.2 | T19: 190.7 | U19: 198.3 | V19: 202.416 | W19: 211.08 | X19: 211.143 | Y19: 216.687 | Z19: 220.223 | AA19: 226.665 | AB19: 230.28 | AC19: 233.916 | AD19: 233.707 | AE19: 236.916 | AF19: 242.839 | AG19: 247.867 | AH19: 251.712 | AI19: 257.971 | AJ19: 261.582 | AK19: 281.148 | AL19: =((SUM(F20:F30)+G19)-(SUM(E20:E30)+F19))/(SUM(E20:E30)+F19) -> 0.03980699638 | AM19: 0.03083404567 | AN19: 0.02890481549 | AO19: 0.02630821484 | AP19: 0.02793358761 | AQ19: 0.02963003383 | AR19: 0.02215273729 | AS19: 0.01560636698 | AT19: 0.02276904227 | AU19: 0.03459119497 | AV19: 0.02610122063 | AW19: 0.01706789543 | AX19: =IF(S19=0," ",((SUM(R20:R30)+S19)-(SUM(Q20:Q30)+R19))/(SUM(Q20:Q30)+R19)) -> 0.02214414498 | AY19: 0.0276345545 | AZ19: 0.03476959641 | BA19: 0.03067330186 | BB19: 0.03035511486 | BC19: 0.03481293654 | BD19: -0.001433993899 | BE19: 0.0155868942 | BF19: 0.03263488846 | BG19: 0.01959927738 | BH19: 0.01463674385 | BI19: 0.01482751192 | BJ19: 0.002389614961 | BK19: 0.01355476006 | BL19: 0.02094726662 | BM19: 0.0239826531 | BN19: 0.01889910501 | BO19: 0.01144935117 | BP19: 0.05205533641 | BR19: =(+AB19-Z19)/Z19 -> 0.04566734628 | BU19: =IF(X19=0," ",(X19-W19)/W19) -> 0.000298465037 | BV19: =IF(Y19=0," ",(Y19-X19)/X19) -> 0.02625708643 | BW19: =IF(Z19=0," ",(Z19-Y19)/Y19) -> 0.01631846857 | BX19: =IF(AA19=0," ",(AA19-Z19)/Z19) -> 0.02925216712 | BY19: =IF(AB19=0," ",(AB19-AA19)/AA19) -> 0.01594864668 | BZ19: =IF(AC19=0," ",(AC19-AB19)/AB19) -> 0.01578947368 | CA19: =IF(AD19=0," ",(AD19-AC19)/AC19) -> -0.0008934831307 | CB19: =IF(AE19=0," ",(AE19-AD19)/AD19) -> 0.01373086814 | CC19: =IF(AF19=0," ",(AF19-AE19)/AE19) -> 0.02500042209 | CD19: =IF(AG19=0," ",(AG19-AF19)/AF19) -> 0.0207050762 | CE19: =IF(AH19=0," ",(AH19-AG19)/AG19) -> 0.01551235138 | CF19: =IF(AI19=0," ",(AI19-AH19)/AH19) -> 0.02486571955 | CG19: =IF(AJ19=0," ",(AJ19-AI19)/AI19) -> 0.01399769742 | CI19: =IF(AK19=0," ",(AK19-AJ19)/AJ19) -> 0.07479872468
A20: =+A19+1 -> 6 | B20: FEBRUARY | C20: 116 | D20: 121.6 | E20: 128 | F20: 134.8 | G20: 138.6 | H20: 143.1 | I20: 146.7 | J20: 150.9 | K20: 154.9 | L20: 159.6 | M20: 161.9 | N20: 164.5 | O20: 169.8 | P20: 175.8 | Q20: 177.8 | R20: 183.1 | S20: 186.2 | T20: 191.8 | U20: 198.7 | V20: 203.499 | W20: 211.693 | X20: 212.193 | Y20: 216.741 | Z20: 221.309 | AA20: 227.663 | AB20: 232.166 | AC20: 234.781 | AD20: 234.722 | AE20: 237.111 | AF20: 243.603 | AG20: 248.991 | AH20: 252.776 | AI20: 258.678 | AJ20: 263.014 | AK20: 283.716 | AL20: =((SUM(F21:F30)+SUM(G19:G20))-(SUM(E21:E30)+SUM(F19:F20)))/(SUM(E21:E30)+SUM(F19:F20)) -> 0.03773942727 | AM20: 0.03118908382 | AN20: 0.0282963138 | AO20: 0.02659849486 | AP20: 0.02775601567 | AQ20: 0.02994664053 | AR20: 0.02082892789 | AS20: 0.01574313827 | AT20: 0.02411542776 | AU20: 0.03484840942 | AV20: 0.02410160196 | AW20: 0.01860202931 | AX20: =IF(S20=0," ",((SUM(R21:R30)+SUM(S19:S20))-(SUM(Q21:Q30)+SUM(R19:R20)))/(SUM(Q21:Q30)+SUM(R19:R20))) -> 0.02107544733 | AY20: 0.02872498984 | AZ20: 0.03525486236 | BA20: 0.02969253605 | BB20: 0.03169337916 | BC20: 0.03162756236 | BD20: 0.0001327300244 | BE20: 0.01556720433 | BF20: 0.03325853313 | BG20: 0.01887085344 | BH20: 0.01392963708 | BI20: 0.0138592644 | BJ20: 0.003251464673 | BK20: 0.0149831462 | BL20: 0.02051857545 | BM20: 0.02339582858 | BN20: 0.01957620745 | BO20: 0.01091897859 | BP20: 0.05723900425 | BR20: 0.04905810428 | BU20: 0.00236191088 | BV20: 0.02143331778 | BW20: 0.02107584629 | BX20: 0.0287109878 | BY20: 0.0197792351 | BZ20: 0.0112634925 | CA20: -0.0002512980182 | CB20: 0.0101779978 | CC20: 0.02737958171 | CD20: 0.02211795421 | CE20: 0.01520135266 | CF20: 0.02334873564 | CG20: 0.01676215217 | CI20: 0.07871063898
A21: 7 | B21: MARCH | C21: 116.5 | D21: 122.3 | E21: 128.7 | F21: 135 | G21: 139.3 | H21: 143.6 | I21: 147.2 | J21: 151.4 | K21: 155.7 | L21: 160 | M21: 162.2 | N21: 165 | O21: 171.2 | P21: 176.2 | Q21: 178.8 | R21: 184.2 | S21: 187.4 | T21: 193.3 | U21: 199.8 | V21: 205.352 | W21: 213.528 | X21: 212.709 | Y21: 217.631 | Z21: 223.467 | AA21: 229.392 | AB21: 232.773 | AC21: 236.293 | AD21: 236.119 | AE21: 238.132 | AF21: 243.801 | AG21: 249.554 | AH21: 254.202 | AI21: 258.115 | AJ21: 264.877 | AL21: =((SUM(F22:F30)+SUM(G19:G21))-(SUM(E22:E30)+SUM(F19:F21)))/(SUM(E22:E30)+SUM(F19:F21)) -> 0.03633043697 | AM21: 0.0311076007 | AN21: 0.02781215014 | AO21: 0.02688757668 | AP21: 0.02774676195 | AQ21: 0.02987669075 | AR21: 0.01967403344 | AS21: 0.01603558866 | AT21: 0.02581203543 | AU21: 0.03414561517 | AV21: 0.02289197101 | AW21: 0.01989302806 | AX21: =IF(S21=0," ",((SUM(R22:R30)+SUM(S19:S21))-(SUM(Q22:Q30)+SUM(R19:R21)))/(SUM(Q22:Q30)+SUM(R19:R21))) -> 0.02001104057 | AY21: 0.02990123123 | AZ21: 0.03542651953 | BA21: 0.02920998097 | BB21: 0.03269932572 | BC21: 0.027945485 | BD21: 0.002355059701 | BE21: 0.01589058405 | BF21: 0.03321858157 | BG21: 0.01789373107 | BH21: 0.01396285584 | BI21: 0.0125250601 | BJ21: 0.004021628001 | BK21: 0.01625456069 | BL21: 0.02050742365 | BM21: 0.02297670682 | BN21: 0.01930320337 | BO21: 0.01182893569 | BR21: 0.04164373263 | BU21: -0.003835562549 | BV21: 0.02313959447 | BW21: 0.02681603264 | BX21: 0.02651398193 | BY21: 0.01473896213 | BZ21: 0.01512202876 | CA21: -0.0007363739087 | CB21: 0.008525362211 | CC21: 0.02380612433 | CD21: 0.02359711404 | CE21: 0.01862522741 | CF21: 0.01539326992 | CG21: 0.02619762509
A22: 8 | B22: APRIL | C22: 117.1 | D22: 123.1 | E22: 128.9 | F22: 135.2 | G22: 139.5 | H22: 144 | I22: 147.4 | J22: 151.9 | K22: 156.3 | L22: 160.2 | M22: 162.5 | N22: 166.2 | O22: 171.3 | P22: 176.9 | Q22: 179.8 | R22: 183.8 | S22: 188 | T22: 194.6 | U22: 201.5 | V22: 206.686 | W22: 214.823 | X22: 213.24 | Y22: 218.009 | Z22: 224.906 | AA22: 230.085 | AB22: 232.531 | AC22: 237.072 | AD22: 236.599 | AE22: 239.261 | AF22: 244.524 | AG22: 250.546 | AH22: 255.548 | AI22: 256.389 | AJ22: 267.054 | AL22: =((SUM(F23:F30)+SUM(G19:G22))-(SUM(E23:E30)+SUM(F19:F22)))/(SUM(E23:E30)+SUM(F19:F22)) -> 0.03493258075 | AM22: 0.03114773967 | AN22: 0.02709214857 | AO22: 0.02746466785 | AP22: 0.02762154035 | AQ22: 0.02953449304 | AR22: 0.01879145173 | AS22: 0.0167398605 | AT22: 0.02647492251 | AU22: 0.03430693069 | AV22: 0.02153831427 | AW22: 0.02038138968 | AX22: =IF(S22=0," ",((SUM(R23:R30)+SUM(S19:S22))-(SUM(Q23:Q30)+SUM(R19:R22)))/(SUM(Q23:Q30)+SUM(R19:R22))) -> 0.02006612177 | AY22: 0.03092505064 | AZ22: 0.03545541874 | BA22: 0.02840220967 | BB22: 0.03383983536 | BC22: 0.02400011105 | BD22: 0.004816811276 | BE22: 0.01668165507 | BF22: 0.0324803422 | BG22: 0.01685609051 | BH22: 0.01470709321 | BI22: 0.01072034741 | BJ22: 0.005126202543 | BK22: 0.01715060237 | BL22: 0.02073166489 | BM22: 0.02258584585 | BN22: 0.01789833041 | BO22: 0.01501035398 | BR22: 0.03390305283 | BU22: -0.007368857152 | BV22: 0.02236447196 | BW22: 0.03163630859 | BX22: 0.02302739811 | BY22: 0.01063085381 | BZ22: 0.01952857899 | CA22: -0.001995174462 | CB22: 0.01125110419 | CC22: 0.02199689878 | CD22: 0.02462743943 | CE22: 0.01996439776 | CF22: 0.003290966863 | CG22: 0.04159694839
A23: 9 | B23: MAY | C23: 117.5 | D23: 123.8 | E23: 129.2 | F23: 135.6 | G23: 139.7 | H23: 144.2 | I23: 147.5 | J23: 152.2 | K23: 156.6 | L23: 160.1 | M23: 162.8 | N23: 166.2 | O23: 171.5 | P23: 177.7 | Q23: 179.8 | R23: 183.5 | S23: 189.1 | T23: 194.4 | U23: 202.5 | V23: 207.949 | W23: 216.632 | X23: 213.856 | Y23: 218.178 | Z23: 225.964 | AA23: 229.815 | AB23: 232.945 | AC23: 237.9 | AD23: 237.805 | AE23: 240.229 | AF23: 244.733 | AG23: 251.588 | AH23: 256.092 | AI23: 256.394 | AJ23: 269.195 | AL23: =((SUM(F24:F30)+SUM(G19:G23))-(SUM(E24:E30)+SUM(F19:F23)))/(SUM(E24:E30)+SUM(F19:F23)) -> 0.03335623712 | AM23: 0.03131233754 | AN23: 0.02631733193 | AO23: 0.02821245003 | AP23: 0.02738280382 | AQ23: 0.02897767205 | AR23: 0.01833657332 | AS23: 0.01707770096 | AT23: 0.02739309085 | AU23: 0.03466153162 | AV23: 0.01951801479 | AW23: 0.02111027897 | AX23: =IF(S23=0," ",((SUM(R24:R30)+SUM(S19:S23))-(SUM(Q24:Q30)+SUM(R19:R23)))/(SUM(Q24:Q30)+SUM(R19:R23))) -> 0.02090304836 | AY23: 0.03071258587 | AZ23: 0.03659333479 | BA23: 0.02719142677 | BB23: 0.0350875255 | BC23: 0.01938842584 | BD23: 0.007574209533 | BE23: 0.01798696118 | BF23: 0.0308971912 | BG23: 0.01656789588 | BH23: 0.01534880936 | BI23: 0.008907356669 | BJ23: 0.00601340083 | BK23: 0.0178641122 | BL23: 0.0215080313 | BM23: 0.02174227002 | BN23: 0.01648728561 | BO23: 0.01906028512 | BR23: 0.03089430175 | BU23: -0.01281435799 | BV23: 0.02020986084 | BW23: 0.03568645785 | BX23: 0.01704253775 | BY23: 0.01361965059 | BZ23: 0.0212711155 | CA23: -0.0003993274485 | CB23: 0.01019322554 | CC23: 0.01874877721 | CD23: 0.02801011715 | CE23: 0.01790228469 | CF23: 0.001179263702 | CG23: 0.04992706538
A24: 10 | B24: JUNE | C24: 118 | D24: 124.1 | E24: 129.9 | F24: 136 | G24: 140.2 | H24: 144.4 | I24: 148 | J24: 152.5 | K24: 156.7 | L24: 160.3 | M24: 163 | N24: 166.2 | O24: 172.4 | P24: 178 | Q24: 179.9 | R24: 183.7 | S24: 189.7 | T24: 194.5 | U24: 202.9 | V24: 208.352 | W24: 218.815 | X24: 215.693 | Y24: 217.965 | Z24: 225.722 | AA24: 229.478 | AB24: 233.504 | AC24: 238.343 | AD24: 238.638 | AE24: 241.018 | AF24: 244.955 | AG24: 251.989 | AH24: 256.143 | AI24: 257.797 | AJ24: 271.696 | AL24: =((SUM(F25:F30)+SUM(G19:G24))-(SUM(E25:E30)+SUM(F19:F24)))/(SUM(E25:E30)+SUM(F19:F24)) -> 0.03204729309 | AM24: 0.03123304191 | AN24: 0.02590188856 | AO24: 0.02866750256 | AP24: 0.02714831847 | AQ24: 0.02858838125 | AR24: 0.01782998584 | AS24: 0.01731155649 | AT24: 0.02886806787 | AU24: 0.03426039872 | AV24: 0.01770501166 | AW24: 0.02198007763 | AX24: =IF(S24=0," ",((SUM(R25:R30)+SUM(S19:S24))-(SUM(Q25:Q30)+SUM(R19:R24)))/(SUM(Q25:Q30)+SUM(R19:R24))) -> 0.02187342699 | AY24: 0.03009269625 | AZ24: 0.03808198931 | BA24: 0.02586121697 | BB24: 0.037055029 | BC24: 0.01396104433 | BD24: 0.009677420607 | BE24: 0.02008019775 | BF24: 0.02929877582 | BG24: 0.01664398082 | BH24: 0.01561939437 | BI24: 0.007280488553 | BJ24: 0.006746900394 | BK24: 0.01839378501 | BL24: 0.0225425276 | BM24: 0.02072365714 | BN24: 0.01564217135 | BO24: 0.0230170146 | BR24: 0.03447603689 | BU24: -0.01426776044 | BV24: 0.01053348973 | BW24: 0.03558828252 | BX24: 0.01663993762 | BY24: 0.01754416545 | BZ24: 0.02072341373 | CA24: 0.001237712037 | CB24: 0.009973264945 | CC24: 0.01633487955 | CD24: 0.02871547835 | CE24: 0.01648484656 | CF24: 0.006457330476 | CG24: 0.05391451413
A25: 11 | B25: JULY | C25: 118.5 | D25: 124.4 | E25: 130.4 | F25: 136.2 | G25: 140.5 | H25: 144.4 | I25: 148.4 | J25: 152.5 | K25: 157 | L25: 160.5 | M25: 163.2 | N25: 166.7 | O25: 172.8 | P25: 177.5 | Q25: 180.1 | R25: 183.9 | S25: 189.4 | T25: 195.4 | U25: 203.5 | V25: 208.299 | W25: 219.964 | X25: 215.351 | Y25: 218.011 | Z25: 225.922 | AA25: 229.104 | AB25: 233.596 | AC25: 238.25 | AD25: 238.654 | AE25: 240.628 | AF25: 244.786 | AG25: 252.006 | AH25: 256.571 | AI25: 259.101 | AJ25: 273.003 | AL25: =((SUM(F26:F30)+SUM(G19:G25))-(SUM(E26:E30)+SUM(F19:F25)))/(SUM(E26:E30)+SUM(F19:F25)) -> 0.03100198413 | AM25: 0.03091171518 | AN25: 0.02590129506 | AO25: 0.0286591607 | AP25: 0.02730790492 | AQ25: 0.02798105898 | AR25: 0.01737855946 | AS25: 0.01769911504 | AT25: 0.0301314459 | AU25: 0.0334707499 | AV25: 0.0166682496 | AW25: 0.02251389603 | AX25: =IF(S25=0," ",((SUM(R26:R30)+SUM(S19:S25))-(SUM(Q26:Q30)+SUM(R19:R25)))/(SUM(Q26:Q30)+SUM(R19:R25))) -> 0.02261203234 | AY25: 0.03024211561 | AZ25: 0.03889346572 | BA25: 0.02439607679 | BB25: 0.03977994282 | BC25: 0.007518932515 | BD25: 0.01252333468 | BE25: 0.02207659668 | BF25: 0.02743449067 | BG25: 0.01710376783 | BH25: 0.01565242096 | BI25: 0.005763664271 | BJ25: 0.007298655917 | BK25: 0.01914439643 | BL25: 0.02356044104 | BM25: 0.01978400092 | BN25: 0.0149501361 | BO25: 0.02667926935 | BR25: 0.0339674755 | BU25: -0.02097161354 | BV25: 0.01235192778 | BW25: 0.03628715982 | BX25: 0.01408450704 | BY25: 0.01960681612 | BZ25: 0.01992328636 | CA25: 0.001695697796 | CB25: 0.008271388705 | CC25: 0.01727978456 | CD25: 0.02949515087 | CE25: 0.01811464806 | CF25: 0.009860818253 | CG25: 0.05365475239
A26: 12 | B26: AUGUST | C26: 119 | D26: 124.6 | E26: 131.6 | F26: 136.6 | G26: 140.9 | H26: 144.8 | I26: 149 | J26: 152.9 | K26: 157.3 | L26: 160.8 | M26: 163.4 | N26: 167.1 | O26: 172.8 | P26: 177.5 | Q26: 180.7 | R26: 184.6 | S26: 189.5 | T26: 196.4 | U26: 203.9 | V26: 207.917 | W26: 219.086 | X26: 215.834 | Y26: 218.312 | Z26: 226.545 | AA26: 230.379 | AB26: 233.877 | AC26: 237.852 | AD26: 238.316 | AE26: 240.849 | AF26: 245.519 | AG26: 252.146 | AH26: 256.558 | AI26: 259.918 | AJ26: 273.567 | AL26: =((SUM(F27:F30)+SUM(G19:G26))-(SUM(E27:E30)+SUM(F19:F26)))/(SUM(E27:E30)+SUM(F19:F26)) -> 0.03047348251 | AM26: 0.03059204607 | AN26: 0.02601711193 | AO26: 0.02842069435 | AP26: 0.02752496001 | AQ26: 0.02743182306 | AR26: 0.01687653482 | AS26: 0.01824067413 | AT26: 0.03108442247 | AU26: 0.03288797533 | AV26: 0.01592039801 | AW26: 0.02280677207 | AX26: =IF(S26=0," ",((SUM(R27:R30)+SUM(S19:S26))-(SUM(Q27:Q30)+SUM(R19:R26)))/(SUM(Q27:Q30)+SUM(R19:R26))) -> 0.02302781578 | AY26: 0.03106752842 | AZ26: 0.03903683209 | BA26: 0.0228708134 | BB26: 0.04262407107 | BC26: 0.001860131239 | BD26: 0.01477047758 | BE26: 0.02426400415 | BF26: 0.02570180467 | BG26: 0.01695708916 | BH26: 0.01580407856 | BI26: 0.004514146707 | BJ26: 0.008025731902 | BK26: 0.0198736778 | BL26: 0.02419281392 | BM26: 0.01899970649 | BN26: 0.01458337502 | BO26: 0.02997720402 | BR26: 0.03236443091 | BU26: -0.01484348612 | BV26: 0.01148104562 | BW26: 0.03771208179 | BX26: 0.01692378998 | BY26: 0.0151836756 | BZ26: 0.01699611334 | CA26: 0.00195079293 | CB26: 0.01062874503 | CC26: 0.01938974212 | CD26: 0.02699180104 | CE26: 0.01749779889 | CF26: 0.01309645382 | CG26: 0.05251271555
A27: 1 | B27: SEPTEMBER | C27: 119.8 | D27: 125 | E27: 132.7 | F27: 137.2 | G27: 141.3 | H27: 145.1 | I27: 149.4 | J27: 153.2 | K27: 157.8 | L27: 161.2 | M27: 163.6 | N27: 167.9 | O27: 173.7 | P27: 178.3 | Q27: 181 | R27: 185.2 | S27: 189.9 | T27: 198.8 | U27: 202.9 | V27: 208.49 | W27: 218.783 | X27: 215.969 | Y27: 218.439 | Z27: 226.889 | AA27: 231.407 | AB27: 234.149 | AC27: 238.031 | AD27: 237.945 | AE27: 241.428 | AF27: 246.819 | AG27: 252.439 | AH27: 256.759 | AI27: 260.28 | AJ27: 274.31 | AL27: =((SUM(F28:F30)+SUM(G19:G27))-(SUM(E28:E30)+SUM(F19:F27)))/(SUM(E28:E30)+SUM(F19:F27)) -> 0.03014239043 | AM27: 0.03033748205 | AN27: 0.02625007259 | AO27: 0.02806858695 | AP27: 0.02790774481 | AQ27: 0.02672164507 | AR27: 0.01632504042 | AS27: 0.01919326696 | AT27: 0.03177240685 | AU27: 0.0322092626 | AV27: 0.01498747104 | AW27: 0.02347680268 | AX27: =IF(S27=0," ",((SUM(R28:R30)+SUM(S19:S27))-(SUM(Q28:Q30)+SUM(R19:R27)))/(SUM(Q28:Q30)+SUM(R19:R27))) -> 0.02321135991 | AY27: 0.03287074104 | AZ27: 0.03682011972 | BA27: 0.02345073933 | BB27: 0.04443601211 | BC27: -0.003240267443 | BD27: 0.0168465477 | BE27: 0.02653359551 | BF27: 0.02415223854 | BG27: 0.01628152314 | BH27: 0.01619757729 | BI27: 0.003106879625 | BJ27: 0.009282266436 | BK27: 0.02051497748 | BL27: 0.02422650271 | BM27: 0.01853030816 | BN27: 0.01430098506 | BO27: 0.03333730598 | BR27: 0.03199802547 | BS27: =(+Z27-Y27)/Y27 -> 0.03868356841 | BU27: -0.01286205967 | BV27: 0.01143682658 | BW27: 0.03868356841 | BX27: 0.01991282081 | BY27: 0.01184925262 | BZ27: 0.01657918676 | CA27: -0.0003612974781 | CB27: 0.01463783647 | CC27: 0.02232963865 | CD27: 0.02276972194 | CE27: 0.01711304513 | CF27: 0.01371324861 | CG27: 0.05390348855
A28: =+A27+1 -> 2 | B28: OCTOBER | C28: 120.2 | D28: 125.6 | E28: 133.5 | F28: 137.4 | G28: 141.8 | H28: 145.7 | I28: 149.5 | J28: 153.7 | K28: 158.3 | L28: 161.6 | M28: 164 | N28: 168.2 | O28: 174 | P28: 177.7 | Q28: 181.3 | R28: 185 | S28: 190.9 | T28: 199.2 | U28: 201.8 | V28: 208.936 | W28: 216.573 | X28: 216.177 | Y28: 218.711 | Z28: 226.421 | AA28: 231.317 | AB28: 233.546 | AC28: 237.433 | AD28: 237.838 | AE28: 241.729 | AF28: 246.663 | AG28: 252.885 | AH28: 257.346 | AI28: 260.388 | AJ28: 276.589 | AL28: =((SUM(F29:F30)+SUM(G19:G28))-(SUM(E29:E30)+SUM(F19:F28)))/(SUM(E29:E30)+SUM(F19:F28)) -> 0.03037756733 | AM28: 0.02995941752 | AN28: 0.02613280797 | AO28: 0.02823423118 | AP28: 0.02806304575 | AQ28: 0.02596153846 | AR28: 0.01582838696 | AS28: 0.02009226038 | AT28: 0.03250929555 | AU28: 0.03109640372 | AV28: 0.01491410232 | AW28: 0.02348400298 | AX28: =IF(S28=0," ",((SUM(R29:R30)+SUM(S19:S28))-(SUM(Q29:Q30)+SUM(R19:R28)))/(SUM(Q29:Q30)+SUM(R19:R28))) -> 0.02417192967 | AY28: 0.03384942993 | AZ28: 0.0342430484 | BA28: 0.02530744337 | BB28: 0.04451043139 | BC28: -0.006342810874 | BD28: 0.01799153 | BE28: 0.02849025436 | BF28: 0.02303498613 | BG28: 0.01528170247 | BH28: 0.01677907091 | BI28: 0.001874830967 | BJ28: 0.01050784393 | BK28: 0.02085044313 | BL28: 0.02462515698 | BM28: 0.01790554355 | BN28: 0.01381593194 | BO28: 0.03755050072 | BR28: 0.03146792921 | BS28: =(+Z28-Y28)/Y28 -> 0.03525199921 | BU28: -0.001828482775 | BV28: 0.01172187606 | BW28: 0.03525199921 | BX28: 0.02162343599 | BY28: 0.009636127046 | BZ28: 0.01664340216 | CA28: 0.001705744357 | CB28: 0.01635987521 | CC28: 0.02041128702 | CD28: 0.02522469929 | CE28: 0.01764042944 | CF28: 0.01182066168 | CG28: 0.06221868903
A29: =+A28+1 -> 3 | B29: NOVEMBER | C29: 120.3 | D29: 125.9 | E29: 133.8 | F29: 137.8 | G29: 142 | H29: 145.8 | I29: 149.7 | J29: 153.6 | K29: 158.6 | L29: 161.5 | M29: 164 | N29: 168.3 | O29: 174.1 | P29: 177.4 | Q29: 181.3 | R29: 184.5 | S29: 191 | T29: 197.6 | U29: 201.5 | V29: 210.177 | W29: 212.425 | X29: 216.33 | Y29: 218.803 | Z29: 226.23 | AA29: 230.221 | AB29: 233.069 | AC29: 236.151 | AD29: 237.336 | AE29: 241.353 | AF29: 246.669 | AG29: 252.038 | AH29: 257.208 | AI29: 260.229 | AJ29: 277.948 | AL29: =((F30+SUM(G19:G29))-(E30+SUM(F19:F29)))/(E30+SUM(F19:F29)) -> 0.03042571464 | AM29: 0.02964638647 | AN29: 0.02613320999 | AO29: 0.02817218842 | AP29: 0.02860587462 | AQ29: 0.02477357485 | AR29: 0.01559656875 | AS29: 0.02098797031 | AT29: 0.03319127601 | AU29: 0.02979570049 | AV29: 0.01517364874 | AW29: 0.02311655758 | AX29: =IF(S29=0," ",((R30+SUM(S19:S29))-(Q30+SUM(R19:R29)))/(Q30+SUM(R19:R29))) -> 0.02563404564 | AY29: 0.03379633726 | AZ29: 0.03299101412 | BA29: 0.02724535023 | BB29: 0.04176221927 | BC29: -0.005695898257 | BD29: 0.01740670364 | BE29: 0.03035888386 | BF29: 0.02169544675 | BG29: 0.01484407883 | BH29: 0.0168457653 | BI29: 0.001204619398 | BJ29: 0.01149977256 | BK29: 0.0212731103 | BL29: 0.02459862489 | BM29: 0.01780744559 | BN29: 0.01309081076 | BO29: 0.0422518095 | BR29: 0.0302302966 | BS29: =(+Z29-Y29)/Y29 -> 0.03394377591 | BU29: 0.01838295869 | BV29: 0.01143160912 | BW29: 0.03394377591 | BX29: 0.01764133846 | BY29: 0.01237072205 | BZ29: 0.01322355182 | CA29: 0.005017975787 | CB29: 0.01692537163 | CC29: 0.02202582939 | CD29: 0.02176601032 | CE29: 0.02051277982 | CF29: 0.01174535784 | CG29: 0.0680900284
A30: =+A29+1 -> 4 | B30: DECEMBER | C30: 120.5 | D30: 126.1 | E30: 133.8 | F30: 137.9 | G30: 141.9 | H30: 145.8 | I30: 149.7 | J30: 153.4 | K30: 158.6 | L30: 161.3 | M30: 163.9 | N30: 168.3 | O30: 174 | P30: 176.7 | Q30: 180.9 | R30: 184.3 | S30: 190.3 | T30: 196.8 | U30: 201.8 | V30: 210.036 | W30: 210.228 | X30: 215.949 | Y30: 219.179 | Z30: 225.672 | AA30: 229.601 | AB30: 233.049 | AC30: 234.812 | AD30: 236.525 | AE30: 241.432 | AF30: 246.524 | AG30: 251.233 | AH30: 256.974 | AI30: 260.474 | AJ30: 278.802 | AL30: =(SUM(G19:G30)-SUM(F19:F30))/SUM(F19:F30) -> 0.03028819678 | AM30: 0.02951656966 | AN30: 0.02607441592 | AO30: 0.02799797605 | AP30: 0.0293683347 | AQ30: 0.02337689937 | AR30: 0.01552279099 | AS30: 0.02188027197 | AT30: 0.03376857271 | AU30: 0.02826171119 | AV30: 0.01586031627 | AW30: 0.02270094973 | AX30: =IF(S30=0," ",(SUM(S19:S30)-SUM(R19:R30))/SUM(R19:R30)) -> 0.02677236693 | AY30: 0.03392746845 | AZ30: 0.03225944101 | BA30: 0.02852672482 | BB30: 0.03839100297 | BC30: -0.003555462663 | BD30: 0.01640043442 | BE30: 0.03156841569 | BF30: 0.02069337265 | BG30: 0.01464832656 | BH30: 0.01622222977 | BI30: 0.001186271356 | BJ30: 0.01261583206 | BK30: 0.02130110004 | BL30: 0.02442583297 | BM30: 0.01812210075 | BN30: 0.01233584396 | BO30: 0.04697858864 | BR30: 0.03268903541 | BS30: =(+Z30-Y30)/Y30 -> 0.02962418845 | BU30: 0.02721331126 | BV30: 0.01495723527 | BW30: 0.02962418845 | BX30: 0.01741022369 | BY30: 0.0150173562 | BZ30: 0.007564932697 | CA30: 0.00729519786 | CB30: 0.02074622133 | CC30: 0.02109082475 | CD30: 0.01910158849 | CE30: 0.0228512974 | CF30: 0.01362005495 | CG30: 0.07036402866
BK34: Series Id: | BL34: CUUR0000SAF11
BK35: Not Seasonally Adjusted
BK36: Area: | BL36: U.S. city average
BK37: Item: | BL37: Food at home
B39: Food at home refers to the total expenditures for food at grocery stores (or other food stores) and food prepared by the consumer unit on trips. It excludes the purchase of nonfood items.
CC42: Prelim
B43: CONSUMER'S PRICE INDEX | BK43: Commodity code: CUUR0000SAF11 | CC43: The numbers are first published as Preliminary, and each month is updated in the publication 4 months later.
B44: FOOD AT HOME* -
BO46: =COLUMN() -> 67
AI47: Prelim | BG47: ANNUAL % CHANGE | BZ47: PERIOD % CHANGE
B48: =NOW() -> 2022-05-16T09:01:57.150 | C48: 1988 | D48: 1989 | E48: 1990 | F48: 1991 | G48: 1992 | H48: 1993 | I48: 1994 | J48: 1995 | K48: 1996 | L48: 1997 | M48: 1998 | N48: 1999 | O48: 2000 | P48: 2001 | Q48: 2002 | R48: 2003 | S48: 2004 | T48: 2005 | U48: 2006 | V48: 2007 | W48: 2008 | X48: 2009 | Y48: 2010 | Z48: 2011 | AA48: 2012 | AB48: 2013 | AC48: 2014 | AD48: 2015 | AE48: 2016 | AF48: 2017 | AG48: 2018 | AH48: 2019 | AI48: 2020 | AJ48: 2021 | AL48: 92 VS 91 | AM48: 93 VS 92 | AN48: 94 VS 93 | AO48: 95 VS 94 | AP48: 96 VS 95 | AQ48: 97 VS 96 | AR48: 98 VS 97 | AS48: 99 VS 98 | AT48: 00 VS 99 | AU48: 01 VS 00 | AV48: 02 VS 01 | AW48: 03 VS 02 | AX48: 04 VS 03 | AY48: 05 VS 04 | AZ48: 06 VS 05 | BA48: 07 VS 06 | BB48: 08 VS 07 | BC48: 09 VS 08 | BD48: 10 VS 09 | BE48: 11 VS 10 | BF48: 12 VS 11 | BG48: 13 VS 12 | BH48: 14 VS 13 | BI48: 15 VS 14 | BJ48: 16 VS 15 | BK48: 17 VS 16 | BL48: 18 VS 17 | BM48: 19 VS 18 | BN48: 20 VS 19 | BO48: 21 VS 20 | BR48: FY12 | BS48: FY11 | BU48: 09 VS 08 | BV48: 10 VS 09 | BW48: 11 VS 10 | BX48: 12 VS 11 | BY48: 13 VS 12 | BZ48: 14 VS 13 | CA48: 15 VS 14 | CB48: 16 VS 15 | CC48: 17 VS 16 | CD48: 18 VS 17 | CE48: 19 VS 18 | CF48: 20 VS 19 | CG48: 21 VS 20
A49: =+A60+1 -> 5 | B49: JANUARY | Q49: 176.2 | R49: 176.7 | S49: 184 | T49: 188.9 | U49: 193.4 | V49: 196.671 | W49: 207.983 | X49: 219.744 | Y49: 215.404 | Z49: 220.016 | AA49: 231.694 | AB49: 234.24 | AC49: 235.356 | AD49: 243.123 | AE49: 242.017 | AF49: 237.365 | AG49: 239.828 | AH49: 241.381 | AI49: 243.11 | AJ49: 252.107 | AL49: 231.18 | AM49: 231.383 | AN49: 231.711 | AO49: 231.518 | AP49: 231.515 | AQ49: 231.306 | AR49: 231.708 | AS49: 231.615 | AX49: =IF(S49=0," ",((SUM(R50:R60)+S49)-(SUM(Q50:Q60)+R49))/(SUM(Q50:Q60)+R49)) -> 0.02471654253 | AY49: 0.03662037037 | AZ49: 0.01907016212 | BA49: 0.01703523534 | BB49: 0.04549589321 | BC49: 0.06388907665 | BD49: -0.001596505277 | BE49: 0.006788915783 | BF49: 0.05066063166 | BG49: 0.02118203254 | BH49: 0.008518845273 | BI49: 0.0262492863 | BJ49: 0.008557082561 | BK49: -0.01437251324 | BL49: 0.0004898522378 | BM49: 0.004171651198 | BN49: 0.008874760816 | BO49: 0.03746715062 | BR49: =(+AB49-Z49)/Z49 -> 0.06464984365 | BU49: =IF(X49=0," ",(X49-W49)/W49) -> 0.05654789093 | BV49: =IF(Y49=0," ",(Y49-X49)/X49) -> -0.01975025484 | BW49: =IF(Z49=0," ",(Z49-Y49)/Y49) -> 0.02141093016 | BX49: =IF(AA49=0," ",(AA49-Z49)/Z49) -> 0.05307795797 | BY49: =IF(AB49=0," ",(AB49-AA49)/AA49) -> 0.01098863156 | BZ49: =IF(AC49=0," ",(AC49-AB49)/AB49) -> 0.004764344262 | CA49: =IF(AD49=0," ",(AD49-AC49)/AC49) -> 0.03300107072 | CB49: =IF(AE49=0," ",(AE49-AD49)/AD49) -> -0.004549137679 | CC49: =IF(AF49=0," ",(AF49-AE49)/AE49) -> -0.0192217902 | CD49: =IF(AG49=0," ",(AG49-AF49)/AF49) -> 0.01037642449 | CE49: =IF(AH49=0," ",(AH49-AG49)/AG49) -> 0.00647547409 | CF49: =IF(AI49=0," ",(AI49-AH49)/AH49) -> 0.007162949859 | CG49: =IF(AJ49=0," ",(AJ49-AI49)/AI49) -> 0.03700793879
A50: =+A49+1 -> 6 | B50: FEBRUARY | Q50: 176 | R50: 177.6 | S50: 184 | T50: 188 | U50: 192.6 | V50: 198.193 | W50: 208.329 | X50: 218.389 | Y50: 215.118 | Z50: 221.241 | AA50: 231.18 | AB50: 234.033 | AC50: 236.114 | AD50: 242.906 | AE50: 242.062 | AF50: 237.918 | AG50: 239.19 | AH50: 242.057 | AI50: 244.054 | AJ50: 252.716 | AL50: 196.7 | AM50: 196.7 | AN50: 196.7 | AO50: 196.7 | AP50: 196.7 | AQ50: 196.7 | AR50: 196.7 | AS50: 196.7 | AT50: =((SUM(N51:N60)+SUM(O49:O50))-(SUM(M51:M60)+SUM(N49:N50)))/(SUM(M51:M60)+SUM(N49:N50)) ->  | AU50: =((SUM(O51:O60)+SUM(P49:P50))-(SUM(N51:N60)+SUM(O49:O50)))/(SUM(N51:N60)+SUM(O49:O50)) ->  | AV50: =((SUM(P51:P60)+SUM(Q49:Q50))-(SUM(O51:O60)+SUM(P49:P50)))/(SUM(O51:O60)+SUM(P49:P50)) ->  | AW50: =((SUM(Q51:Q60)+SUM(R49:R50))-(SUM(P51:P60)+SUM(Q49:Q50)))/(SUM(P51:P60)+SUM(Q49:Q50)) -> 4.989494605 | AX50: =IF(S50=0," ",((SUM(R51:R60)+SUM(S49:S50))-(SUM(Q51:Q60)+SUM(R49:R50)))/(SUM(Q51:Q60)+SUM(R49:R50))) -> 0.0269732164 | AY50: 0.03540435746 | AZ50: 0.01930364228 | BA50: 0.01743526942 | BB50: 0.04733942493 | BC50: 0.06359208796 | BD50: -0.006734783738 | BE50: 0.01044729903 | BF50: 0.05200862363 | BG50: 0.01851519523 | BH50: 0.008233091624 | BI50: 0.02790658109 | BJ50: 0.005892942285 | BK50: -0.01551264178 | BL50: 0.002384278239 | BM50: 0.004726168932 | BN50: 0.008563880885 | BO50: 0.03973569889 | BR50: 0.05781930112 | BU50: 0.04828900441 | BV50: -0.01497786061 | BW50: 0.02846344797 | BX50: 0.04492386131 | BY50: 0.01234103296 | BZ50: 0.008891908406 | CA50: 0.02876576569 | CB50: -0.003474595111 | CC50: -0.01711958093 | CD50: 0.005346379845 | CE50: 0.01198628705 | CF50: 0.008250122905 | CG50: 0.03549214518
A51: 7 | B51: MARCH | Q51: 176.3 | R51: 177.7 | S51: 184.3 | T51: 188.1 | U51: 192.3 | V51: 198.766 | W51: 208.203 | X51: 217.11 | Y51: 215.623 | Z51: 223.43 | AA51: 231.383 | AB51: 233.777 | AC51: 236.973 | AD51: 241.588 | AE51: 240.329 | AF51: 238.256 | AG51: 239.158 | AH51: 242.555 | AI51: 245.163 | AJ51: 253.231 | AL51: 197.3 | AM51: 197.3 | AN51: 197.3 | AO51: 197.3 | AP51: 197.3 | AQ51: 197.3 | AR51: 197.3 | AS51: 197.3 | AT51: =((SUM(N52:N60)+SUM(O49:O51))-(SUM(M52:M60)+SUM(N49:N51)))/(SUM(M52:M60)+SUM(N49:N51)) ->  | AU51: =((SUM(O52:O60)+SUM(P49:P51))-(SUM(N52:N60)+SUM(O49:O51)))/(SUM(N52:N60)+SUM(O49:O51)) ->  | AV51: =((SUM(P52:P60)+SUM(Q49:Q51))-(SUM(O52:O60)+SUM(P49:P51)))/(SUM(O52:O60)+SUM(P49:P51)) ->  | AW51: =((SUM(Q52:Q60)+SUM(R49:R51))-(SUM(P52:P60)+SUM(Q49:Q51)))/(SUM(P52:P60)+SUM(Q49:Q51)) -> 2.994134342 | AX51: =IF(S51=0," ",((SUM(R52:R60)+SUM(S49:S51))-(SUM(Q52:Q60)+SUM(R49:R51)))/(SUM(Q52:Q60)+SUM(R49:R51))) -> 0.02941873135 | AY51: 0.03400828348 | AZ51: 0.01944901865 | BA51: 0.0183925609 | BB51: 0.04848182173 | BC51: 0.0631300277 | BD51: -0.01070905266 | BE51: 0.01406632913 | BF51: 0.05190894008 | BG51: 0.01643563938 | BH51: 0.008513575289 | BI51: 0.02837934884 | BJ51: 0.003852873805 | BK51: -0.01579969082 | BL51: 0.003426977458 | BM51: 0.005594715776 | BN51: 0.008280190724 | BO51: 0.04157787723 | BR51: 0.0463098062 | BU51: 0.0427803634 | BV51: -0.006849062687 | BW51: 0.03620671264 | BX51: 0.03559504095 | BY51: 0.01034648181 | BZ51: 0.01367114815 | CA51: 0.01947479249 | CB51: -0.005211351557 | CC51: -0.008625675636 | CD51: 0.003785843798 | CE51: 0.01420399903 | CF51: 0.01075220053 | CG51: 0.03290871787
A52: 8 | B52: APRIL | Q52: 176.4 | R52: 177.3 | S52: 184.1 | T52: 189.8 | U52: 191.5 | V52: 199.02 | W52: 210.851 | X52: 215.783 | Y52: 215.737 | Z52: 224.233 | AA52: 231.711 | AB52: 234.082 | AC52: 238.103 | AD52: 241.305 | AE52: 240.635 | AF52: 238.817 | AG52: 240.129 | AH52: 241.878 | AI52: 251.717 | AJ52: 254.76 | AL52: 197.5 | AM52: 197.5 | AN52: 197.5 | AO52: 197.5 | AP52: 197.5 | AQ52: 197.5 | AR52: 197.5 | AS52: 197.5 | AT52: =((SUM(N53:N60)+SUM(O49:O52))-(SUM(M53:M60)+SUM(N49:N52)))/(SUM(M53:M60)+SUM(N49:N52)) ->  | AU52: =((SUM(O53:O60)+SUM(P49:P52))-(SUM(N53:N60)+SUM(O49:O52)))/(SUM(N53:N60)+SUM(O49:O52)) ->  | AV52: =((SUM(P53:P60)+SUM(Q49:Q52))-(SUM(O53:O60)+SUM(P49:P52)))/(SUM(O53:O60)+SUM(P49:P52)) ->  | AW52: =((SUM(Q53:Q60)+SUM(R49:R52))-(SUM(P53:P60)+SUM(Q49:Q52)))/(SUM(P53:P60)+SUM(Q49:Q52)) -> 1.995885941 | AX52: =IF(S52=0," ",((SUM(R53:R60)+SUM(S49:S52))-(SUM(Q53:Q60)+SUM(R49:R52)))/(SUM(Q53:Q60)+SUM(R49:R52))) -> 0.03220001894 | AY52: 0.03339755941 | AZ52: 0.01762407884 | BA52: 0.02091785543 | BB52: 0.05016814443 | BC52: 0.06001897743 | BD52: -0.01259960033 | BE52: 0.01738729514 | BF52: 0.0513514381 | BG52: 0.01453486048 | BH52: 0.009097435523 | BI52: 0.02804808649 | BJ52: 0.002511526848 | BK52: -0.01619877366 | BL52: 0.00452506115 | BM52: 0.005744474242 | BN52: 0.01107884633 | BO52: 0.03910824013 | BR52: 0.04392306217 | BU52: 0.02339092535 | BV52: -0.000213177127 | BW52: 0.03938128369 | BX52: 0.03334923941 | BY52: 0.0102325742 | BZ52: 0.01717774113 | CA52: 0.0134479616 | CB52: -0.002776569072 | CC52: -0.007555010701 | CD52: 0.005493746258 | CE52: 0.007283585073 | CF52: 0.04067753165 | CG52: 0.01208897293
A53: 9 | B53: MAY | Q53: 175.5 | R53: 177.8 | S53: 186.6 | T53: 190.3 | U53: 191.9 | V53: 200.334 | W53: 211.863 | X53: 215.088 | Y53: 215.793 | Z53: 225.356 | AA53: 231.518 | AB53: 233.302 | AC53: 239.504 | AD53: 241.019 | AE53: 239.354 | AF53: 238.964 | AG53: 239.287 | AH53: 242.145 | AI53: 253.827 | AJ53: 255.516 | AL53: 197.2 | AM53: 197.2 | AN53: 197.2 | AO53: 197.2 | AP53: 197.2 | AQ53: 197.2 | AR53: 197.2 | AS53: 197.2 | AT53: =((SUM(N54:N60)+SUM(O49:O53))-(SUM(M54:M60)+SUM(N49:N53)))/(SUM(M54:M60)+SUM(N49:N53)) ->  | AU53: =((SUM(O54:O60)+SUM(P49:P53))-(SUM(N54:N60)+SUM(O49:O53)))/(SUM(N54:N60)+SUM(O49:O53)) ->  | AV53: =((SUM(P54:P60)+SUM(Q49:Q53))-(SUM(O54:O60)+SUM(P49:P53)))/(SUM(O54:O60)+SUM(P49:P53)) ->  | AW53: =((SUM(Q54:Q60)+SUM(R49:R53))-(SUM(P54:P60)+SUM(Q49:Q53)))/(SUM(P54:P60)+SUM(Q49:Q53)) -> 1.401294866 | AX53: =IF(S53=0," ",((SUM(R54:R60)+SUM(S49:S53))-(SUM(Q54:Q60)+SUM(R49:R53)))/(SUM(Q54:Q60)+SUM(R49:R53))) -> 0.03523958186 | AY53: 0.03093301654 | AZ53: 0.01666445065 | BA53: 0.0238824709 | BB53: 0.0513057525 | BC53: 0.05637568671 | BD53: -0.01355013654 | BE53: 0.0208251475 | BF53: 0.04986966174 | BG53: 0.01291477856 | BH53: 0.01067330653 | BI53: 0.0263262019 | BJ53: 0.00141266386 | BK53: -0.01576863478 | BL53: 0.004775354869 | BM53: 0.006627305712 | BN53: 0.01412290794 | BO53: 0.035540698 | BR53: 0.03525976677 | BU53: 0.01522210107 | BV53: 0.003277728186 | BW53: 0.04431561728 | BX53: 0.02734340333 | BY53: 0.007705664354 | BZ53: 0.02658356979 | CA53: 0.006325572851 | CB53: -0.006908169066 | CC53: -0.001629385763 | CD53: 0.001351668034 | CE53: 0.01194381642 | CF53: 0.04824382085 | CG53: 0.006654138449
A54: 10 | B54: JUNE | Q54: 175 | R54: 178.9 | S54: 186.8 | T54: 189.4 | U54: 192.2 | V54: 200.95 | W54: 213.171 | X54: 214.824 | Y54: 215.361 | Z54: 225.588 | AA54: 231.515 | AB54: 233.499 | AC54: 239.147 | AD54: 241.494 | AE54: 238.43 | AF54: 238.3 | AG54: 239.158 | AH54: 241.407 | AI54: 255.042 | AJ54: 257.412 | AL54: 197.9 | AM54: 197.9 | AN54: 197.9 | AO54: 197.9 | AP54: 197.9 | AQ54: 197.9 | AR54: 197.9 | AS54: 197.9 | AT54: =((SUM(N55:N60)+SUM(O49:O54))-(SUM(M55:M60)+SUM(N49:N54)))/(SUM(M55:M60)+SUM(N49:N54)) ->  | AU54: =((SUM(O55:O60)+SUM(P49:P54))-(SUM(N55:N60)+SUM(O49:O54)))/(SUM(N55:N60)+SUM(O49:O54)) ->  | AV54: =((SUM(P55:P60)+SUM(Q49:Q54))-(SUM(O55:O60)+SUM(P49:P54)))/(SUM(O55:O60)+SUM(P49:P54)) ->  | AW54: =((SUM(Q55:Q60)+SUM(R49:R54))-(SUM(P55:P60)+SUM(Q49:Q54)))/(SUM(P55:P60)+SUM(Q49:Q54)) -> 1.006822058 | AX54: =IF(S54=0," ",((SUM(R55:R60)+SUM(S49:S54))-(SUM(Q55:Q60)+SUM(R49:R54)))/(SUM(Q55:Q60)+SUM(R49:R54))) -> 0.03706326723 | AY54: 0.02840883223 | AZ54: 0.01673380849 | BA54: 0.02644402839 | BB54: 0.05258768644 | BC54: 0.05183915893 | BD54: -0.01396913457 | BE54: 0.02458598528 | BF54: 0.04804551181 | BG54: 0.01146028848 | BH54: 0.01197654276 | BI54: 0.02510666595 | BJ54: -0.0004545282114 | BK54: -0.01477301897 | BL54: 0.00512156225 | BM54: 0.007109959971 | BN54: 0.01805088622 | BO54: 0.03154801712 | BR54: 0.0350683547 | BU54: 0.007754338067 | BV54: 0.002499720702 | BW54: 0.04748770669 | BX54: 0.02627356065 | BY54: 0.008569639116 | BZ54: 0.02418854042 | CA54: 0.009814047427 | CB54: -0.01268768582 | CC54: -0.0005452334018 | CD54: 0.003600503567 | CE54: 0.009403825086 | CF54: 0.05648137792 | CG54: 0.009292587103
A55: 11 | B55: JULY | Q55: 175.2 | R55: 178.9 | S55: 187.1 | T55: 189.8 | U55: 192.6 | V55: 201.401 | W55: 215.785 | X55: 213.815 | Y55: 215.256 | Z55: 226.891 | AA55: 231.306 | AB55: 233.591 | AC55: 239.82 | AD55: 241.993 | AE55: 238.207 | AF55: 238.953 | AG55: 239.82 | AH55: 241.359 | AI55: 252.563 | AJ55: 259.022 | AL55: 198.2 | AM55: 198.2 | AN55: 198.2 | AO55: 198.2 | AP55: 198.2 | AQ55: 198.2 | AR55: 198.2 | AS55: 198.2 | AT55: =((SUM(N56:N60)+SUM(O49:O55))-(SUM(M56:M60)+SUM(N49:N55)))/(SUM(M56:M60)+SUM(N49:N55)) ->  | AU55: =((SUM(O56:O60)+SUM(P49:P55))-(SUM(N56:N60)+SUM(O49:O55)))/(SUM(N56:N60)+SUM(O49:O55)) ->  | AV55: =((SUM(P56:P60)+SUM(Q49:Q55))-(SUM(O56:O60)+SUM(P49:P55)))/(SUM(O56:O60)+SUM(P49:P55)) ->  | AW55: =((SUM(Q56:Q60)+SUM(R49:R55))-(SUM(P56:P60)+SUM(Q49:Q55)))/(SUM(P56:P60)+SUM(Q49:Q55)) -> 0.7241183163 | AX55: =IF(S55=0," ",((SUM(R56:R60)+SUM(S49:S55))-(SUM(Q56:Q60)+SUM(R49:R55)))/(SUM(Q56:Q60)+SUM(R49:R55))) -> 0.03911957393 | AY55: 0.02580850002 | AZ55: 0.0167580474 | BA55: 0.02902152642 | BB55: 0.05475153567 | BC55: 0.04498775939 | BD55: -0.01267182246 | BE55: 0.02853102946 | BF55: 0.04510836179 | BG55: 0.01067248853 | BH55: 0.01337659102 | BI55: 0.02362077237 | BJ55: -0.002507682081 | BK55: -0.01322667057 | BL55: 0.005162586825 | BM55: 0.007341872322 | BN55: 0.0213830911 | BO55: 0.0298220575 | BR55: 0.02952959791 | BU55: -0.009129457562 | BV55: 0.006739471038 | BW55: 0.05405191957 | BX55: 0.0194586828 | BY55: 0.009878688836 | BZ55: 0.02666626711 | CA55: 0.009060962388 | CB55: -0.01564508064 | CC55: 0.003131729966 | CD55: 0.003628328583 | CE55: 0.006417312985 | CF55: 0.04642047738 | CG55: 0.02557381723
A56: 12 | B56: AUGUST | Q56: 174.9 | R56: 179.7 | S56: 186.7 | T56: 189.5 | U56: 193.1 | V56: 202.126 | W56: 217.259 | X56: 213.722 | Y56: 215.382 | Z56: 228.354 | AA56: 231.708 | AB56: 233.999 | AC56: 240.723 | AD56: 242.746 | AE56: 238.088 | AF56: 238.843 | AG56: 240.015 | AH56: 241.153 | AI56: 252.352 | AJ56: 259.825 | AL56: 200 | AM56: 200 | AN56: 200 | AO56: 200 | AP56: 200 | AQ56: 200 | AR56: 200 | AS56: 200 | AT56: =((SUM(N57:N60)+SUM(O49:O56))-(SUM(M57:M60)+SUM(N49:N56)))/(SUM(M57:M60)+SUM(N49:N56)) ->  | AU56: =((SUM(O57:O60)+SUM(P49:P56))-(SUM(N57:N60)+SUM(O49:O56)))/(SUM(N57:N60)+SUM(O49:O56)) ->  | AV56: =((SUM(P57:P60)+SUM(Q49:Q56))-(SUM(O57:O60)+SUM(P49:P56)))/(SUM(O57:O60)+SUM(P49:P56)) ->  | AW56: =((SUM(Q57:Q60)+SUM(R49:R56))-(SUM(P57:P60)+SUM(Q49:Q56)))/(SUM(P57:P60)+SUM(Q49:Q56)) -> 0.512984703 | AX56: =IF(S56=0," ",((SUM(R57:R60)+SUM(S49:S56))-(SUM(Q57:Q60)+SUM(R49:R56)))/(SUM(Q57:Q60)+SUM(R49:R56))) -> 0.04006583588 | AY56: 0.02382782475 | AZ56: 0.01709062003 | BA56: 0.03133211758 | BB56: 0.05711456552 | BC56: 0.03728111137 | BD56: -0.0106936637 | BE56: 0.03290279239 | BF56: 0.04127469837 | BG56: 0.01027599924 | BH56: 0.01494897832 | BI56: 0.021910556 | BJ56: -0.004806629416 | BK56: -0.01137494515 | BL56: 0.005307176045 | BM56: 0.007327039055 | BN56: 0.02485204524 | BO56: 0.02845284294 | BR56: 0.02472039027 | BU56: -0.01628010807 | BV56: 0.007767099316 | BW56: 0.0602278742 | BX56: 0.0146877217 | BY56: 0.009887444542 | BZ56: 0.02873516553 | CA56: 0.008403850068 | CB56: -0.01918878169 | CC56: 0.003171096401 | CD56: 0.00490698911 | CE56: 0.004741370331 | CF56: 0.0464393974 | CG56: 0.02961339716
A57: 1 | B57: SEPTEMBER | Q57: 175.2 | R57: 180.1 | S57: 186.1 | T57: 190 | U57: 194.1 | V57: 203.193 | W57: 218.629 | X57: 213.227 | Y57: 216.161 | Z57: 229.739 | AA57: 231.615 | AB57: 234.045 | AC57: 241.578 | AD57: 243.432 | AE57: 238.12 | AF57: 239.128 | AG57: 240.125 | AH57: 241.543 | AI57: 251.369 | AJ57: 262.695 | AL57: 200.8 | AM57: 200.8 | AN57: 200.8 | AO57: 200.8 | AP57: 200.8 | AQ57: 200.8 | AR57: 200.8 | AS57: 200.8 | AT57: =((SUM(N58:N60)+SUM(O49:O57))-(SUM(M58:M60)+SUM(N49:N57)))/(SUM(M58:M60)+SUM(N49:N57)) ->  | AU57: =((SUM(O58:O60)+SUM(P49:P57))-(SUM(N58:N60)+SUM(O49:O57)))/(SUM(N58:N60)+SUM(O49:O57)) ->  | AV57: =((SUM(P58:P60)+SUM(Q49:Q57))-(SUM(O58:O60)+SUM(P49:P57)))/(SUM(O58:O60)+SUM(P49:P57)) ->  | AW57: =((SUM(Q58:Q60)+SUM(R49:R57))-(SUM(P58:P60)+SUM(Q49:Q57)))/(SUM(P58:P60)+SUM(Q49:Q57)) -> 0.3483899538 | AX57: =IF(S57=0," ",((SUM(R58:R60)+SUM(S49:S57))-(SUM(Q58:Q60)+SUM(R49:R57)))/(SUM(Q58:Q60)+SUM(R49:R57))) -> 0.0404898189 | AY57: 0.02281643144 | AZ57: 0.01714940704 | BA57: 0.03344053398 | BB57: 0.05955701209 | BC57: 0.02880509065 | BD57: -0.007508663473 | BE57: 0.03699156657 | BF57: 0.03669068002 | BG57: 0.01046881784 | BH57: 0.01675707118 | BI57: 0.01985941905 | BJ57: -0.007269698805 | BK57: -0.009204974215 | BL57: 0.005301455556 | BM57: 0.00747102134 | BN57: 0.02774448898 | BO57: 0.02886306715 | BR57: 0.01874300837 | BS57: =(+Z57-Y57)/Y57 -> 0.0628142912 | BU57: -0.02470852449 | BV57: 0.01375998349 | BW57: 0.0628142912 | BX57: 0.008165788133 | BY57: 0.01049154847 | BZ57: 0.03218611805 | CA57: 0.0076745399 | CB57: -0.0218212889 | CC57: 0.004233159751 | CD57: 0.004169315178 | CE57: 0.005905257678 | CF57: 0.04068012735 | CG57: 0.04505726641
A58: =+A57+1 -> 2 | B58: OCTOBER | Q58: 175.1 | R58: 181.5 | S58: 187.9 | T58: 190.8 | U58: 195.1 | V58: 204.333 | W58: 219.66 | X58: 213.605 | Y58: 216.698 | Z58: 230.196 | AA58: 232.456 | AB58: 234.418 | AC58: 242.121 | AD58: 243.779 | AE58: 238.145 | AF58: 239.543 | AG58: 239.882 | AH58: 242.34 | AI58: 251.937 | AL58: =((SUM(F59:F60)+SUM(G49:G58))-(SUM(E59:E60)+SUM(F49:F58)))/(SUM(E59:E60)+SUM(F49:F58)) ->  | AW58: 0.2175646429 | AX58: =IF(S58=0," ",((SUM(R59:R60)+SUM(S49:S58))-(SUM(Q59:Q60)+SUM(R49:R58)))/(SUM(Q59:Q60)+SUM(R49:R58))) -> 0.04036860324 | AY58: 0.02117710535 | AZ58: 0.01774392392 | BA58: 0.03551243781 | BB58: 0.06187324714 | BC58: 0.0202188626 | BD58: -0.003998340195 | BE58: 0.04097598335 | BF58: 0.03232650322 | BG58: 0.0103529232 | BH58: 0.01879264613 | BI58: 0.01768992747 | BJ58: -0.009773620443 | BK58: -0.006780474623 | BL58: 0.004928516748 | BM58: 0.008207549205 | BN58: 0.03018508822 | BR58: 0.01834089211 | BS58: =(+Z58-Y58)/Y58 -> 0.06228945353 | BU58: -0.02756532823 | BV58: 0.01447999813 | BW58: 0.06228945353 | BX58: 0.009817720551 | BY58: 0.008440306983 | BZ58: 0.0328601046 | CA58: 0.006847815762 | CB58: -0.02311109653 | CC58: 0.005870373092 | CD58: 0.001415194767 | CE58: 0.01024670463 | CF58: 0.03960138648
A59: =+A58+1 -> 3 | B59: NOVEMBER | Q59: 175.5 | R59: 182.4 | S59: 188.1 | T59: 191 | U59: 194.3 | V59: 204.745 | W59: 219.086 | X59: 212.816 | Y59: 216.538 | Z59: 229.38 | AA59: 232.295 | AB59: 233.639 | AC59: 241.576 | AD59: 242.24 | AE59: 236.93 | AF59: 238.403 | AG59: 239.352 | AH59: 241.726 | AI59: 250.407 | AL59: =((F60+SUM(G49:G59))-(E60+SUM(F49:F59)))/(E60+SUM(F49:F59)) ->  | AW59: 0.1104955212 | AX59: =IF(S59=0," ",((R60+SUM(S49:S59))-(Q60+SUM(R49:R59)))/(Q60+SUM(R49:R59))) -> 0.03967920921 | AY59: 0.01986725267 | AZ59: 0.0178971901 | BA59: 0.03854847071 | BB59: 0.06322503195 | BC59: 0.01204173508 | BD59: -0.0001453529952 | BE59: 0.04444311271 | BF59: 0.02849803748 | BG59: 0.009776620262 | BH59: 0.02113364838 | BI59: 0.01510218628 | BJ59: -0.01182566379 | BK59: -0.004432625347 | BL59: 0.004742823548 | BM59: 0.008700573973 | BN59: 0.03233555197 | BR59: 0.01856744267 | BS59: =(+Z59-Y59)/Y59 -> 0.05930598786 | BU59: -0.02861889851 | BV59: 0.01748928652 | BW59: 0.05930598786 | BX59: 0.01270816985 | BY59: 0.005785746572 | BZ59: 0.033971212 | CA59: 0.002748617412 | CB59: -0.02192040951 | CC59: 0.006217026126 | CD59: 0.003980654606 | CE59: 0.009918446472 | CF59: 0.03591256216
A60: =+A59+1 -> 4 | B60: DECEMBER | Q60: 176.1 | R60: 184.1 | S60: 188.5 | T60: 191.7 | U60: 194.3 | V60: 205.208 | W60: 218.683 | X60: 213.359 | Y60: 216.955 | Z60: 229.982 | AA60: 232.901 | AB60: 233.802 | AC60: 242.457 | AD60: 241.375 | AE60: 236.464 | AF60: 238.579 | AG60: 239.989 | AH60: 241.75 | AI60: 251.253 | AL60: =(SUM(G49:G60)-SUM(F49:F60))/SUM(F49:F60) ->  | AW60: 0.02149568188 | AX60: =IF(S60=0," ",(SUM(S49:S60)-SUM(R49:R60))/SUM(R49:R60)) -> 0.03785943234 | AY60: 0.01929102139 | AZ60: 0.01760857155 | BA60: 0.04209027358 | BB60: 0.06400241828 | BC60: 0.004662382049 | BD60: 0.003309726738 | BE60: 0.04802268394 | BF60: 0.02463743449 | BG60: 0.009040794856 | BH60: 0.02388980722 | BI60: 0.01166811439 | BJ60: -0.01314723082 | BK60: -0.001991089595 | BL60: 0.004493080677 | BM60: 0.008818355643 | BN60: 0.03498438972 | BR60: 0.01660999556 | BS60: =(+Z60-Y60)/Y60 -> 0.06004470973 | BU60: -0.02434574247 | BV60: 0.01685422223 | BW60: 0.06004470973 | BX60: 0.01269229766 | BY60: 0.003868596528 | BZ60: 0.03701850284 | CA60: -0.004462646985 | CB60: -0.02034593475 | CC60: 0.008944279045 | CD60: 0.005909992078 | CE60: 0.007337836317 | CF60: 0.03930920372
BK64: Series Id: | BL64: CUUR0000SEFV | CK64: Series Id: | CL64: CUUR0000SEFV
BK65: Not Seasonally Adjusted | CK65: Not Seasonally Adjusted
BK66: Area: | BL66: U.S. city average | CK66: Area: | CL66: U.S. city average
BK67: Item: | BL67: Food away from home | CK67: Item: | CL67: Food away from home
B69: Food away from home refers to a measure of the change in prices paid by consumers for meals away from home
CK70: CONSUMER'S PRICE INDEX
CK71: FOOD AWAY FROM HOME* -
CC72: Prelim
B73: CONSUMER'S PRICE INDEX | BK73: Commodity code: CUUR0000SAF11 | CC73: The numbers are first published as Preliminary, and each month is updated in the publication 4 months later.
B74: FOOD AWAY FROM HOME* -
BO76: =COLUMN() -> 67 | BP76: =COLUMN() -> 68
AJ77: Prelim | BG77: ANNUAL % CHANGE | BZ77: PERIOD % CHANGE
B78: =NOW() -> 2022-05-16T09:01:57.150 | C78: 1988 | D78: 1989 | E78: 1990 | F78: 1991 | G78: 1992 | H78: 1993 | I78: 1994 | J78: 1995 | K78: 1996 | L78: 1997 | M78: 1998 | N78: 1999 | O78: 2000 | P78: 2001 | Q78: 2002 | R78: 2003 | S78: 2004 | T78: 2005 | U78: 2006 | V78: 2007 | W78: 2008 | X78: 2009 | Y78: 2010 | Z78: 2011 | AA78: 2012 | AB78: 2013 | AC78: 2014 | AD78: 2015 | AE78: 2016 | AF78: 2017 | AG78: 2018 | AH78: 2019 | AI78: 2020 | AJ78: 2021 | AK78: 2022 | AL78: 92 VS 91 | AM78: 93 VS 92 | AN78: 94 VS 93 | AO78: 95 VS 94 | AP78: 96 VS 95 | AQ78: 97 VS 96 | AR78: 98 VS 97 | AS78: 99 VS 98 | AT78: 00 VS 99 | AU78: 01 VS 00 | AV78: 02 VS 01 | AW78: 03 VS 02 | AX78: 04 VS 03 | AY78: 05 VS 04 | AZ78: 06 VS 05 | BA78: 07 VS 06 | BB78: 08 VS 07 | BC78: 09 VS 08 | BD78: 10 VS 09 | BE78: 11 VS 10 | BF78: 12 VS 11 | BG78: 13 VS 12 | BH78: 14 VS 13 | BI78: 15 VS 14 | BJ78: 16 VS 15 | BK78: 17 VS 16 | BL78: 18 VS 17 | BM78: 19 VS 18 | BN78: 20 VS 19 | BO78: 21 VS 20 | BP78: 22 VS 21 | BR78: FY12 | BS78: FY11 | BU78: 09 VS 08 | BV78: 10 VS 09 | BW78: 11 VS 10 | BX78: 12 VS 11 | BY78: 13 VS 12 | BZ78: 14 VS 13 | CA78: 15 VS 14 | CB78: 16 VS 15 | CC78: 17 VS 16 | CD78: 18 VS 17 | CE78: 19 VS 18 | CF78: 20 VS 19 | CG78: 21 VS 20 | CH78: 22 VS 21
A79: =+A90+1 -> 5 | B79: JANUARY | C79: 119.3 | D79: 124.7 | E79: 130.3 | F79: 135.8 | G79: 139.7 | H79: 142 | I79: 144.5 | J79: 147.4 | K79: 150.6 | L79: 155.3 | M79: 159.2 | N79: 163.5 | O79: 167.2 | P79: 171.4 | Q79: 176.4 | R79: 179.9 | S79: 184.9 | T79: 190.8 | U79: 196.6 | V79: 203.171 | W79: 211.07 | X79: 221.319 | Y79: 224.916 | Z79: 228.181 | AA79: 235.268 | AB79: 240.713 | AC79: 245.481 | AD79: 253.037 | AE79: 259.958 | AF79: 266.079 | AG79: 272.772 | AH79: 280.38 | AI79: 289.137 | AJ79: 300.382 | AK79: 319.471 | AL79: 231.18 | AM79: 231.383 | AN79: 231.711 | AO79: 231.518 | AP79: 231.515 | AQ79: 231.306 | AR79: 231.708 | AS79: 231.615 | AX79: =IF(S79=0," ",((SUM(R80:R90)+S79)-(SUM(Q80:Q90)+R79))/(SUM(Q80:Q90)+R79)) -> 0.02202519832 | AY79: 0.03004291845 | AZ79: 0.03138297872 | BA79: 0.03110323191 | BB79: 0.03694442789 | BC79: 0.04488812838 | BD79: 0.0320756459 | BE79: 0.01258619533 | BF79: 0.02476379716 | BG79: 0.02779624706 | BH79: 0.02107690851 | BI79: 0.02523933885 | BJ79: 0.02831007879 | BK79: 0.02543336687 | BL79: 0.02347279454 | BM79: 0.02651794854 | BN79: 0.03114462869 | BO79: 0.0341657429 | BP79: 0.04749508065 | BR79: =(+AB79-Z79)/Z79 -> 0.05492131247 | BU79: =IF(X79=0," ",(X79-W79)/W79) -> 0.04855735064 | BV79: =IF(Y79=0," ",(Y79-X79)/X79) -> 0.01625255852 | BW79: =IF(Z79=0," ",(Z79-Y79)/Y79) -> 0.01451653062 | BX79: =IF(AA79=0," ",(AA79-Z79)/Z79) -> 0.0310586771 | BY79: =IF(AB79=0," ",(AB79-AA79)/AA79) -> 0.02314381896 | BZ79: =IF(AC79=0," ",(AC79-AB79)/AB79) -> 0.01980782093 | CA79: =IF(AD79=0," ",(AD79-AC79)/AC79) -> 0.03078038626 | CB79: =IF(AE79=0," ",(AE79-AD79)/AD79) -> 0.02735173117 | CC79: =IF(AF79=0," ",(AF79-AE79)/AE79) -> 0.02354611129 | CD79: =IF(AG79=0," ",(AG79-AF79)/AF79) -> 0.02515418353 | CE79: =IF(AH79=0," ",(AH79-AG79)/AG79) -> 0.02789142581 | CF79: =IF(AI79=0," ",(AI79-AH79)/AH79) -> 0.03123261288 | CG79: =IF(AJ79=0," ",(AJ79-AI79)/AI79) -> 0.0388915981 | CH79: 0.06354908084
A80: =+A79+1 -> 6 | B80: FEBRUARY | C80: 119.7 | D80: 125.2 | E80: 131 | F80: 136.2 | G80: 139.9 | H80: 142.2 | I80: 144.6 | J80: 147.6 | K80: 151.1 | L80: 155.6 | M80: 159.6 | N80: 163.8 | O80: 167.6 | P80: 171.8 | Q80: 177 | R80: 180.7 | S80: 185.5 | T80: 191.4 | U80: 197.2 | V80: 203.909 | W80: 211.878 | X80: 221.968 | Y80: 225.081 | Z80: 228.606 | AA80: 235.603 | AB80: 240.93 | AC80: 246.187 | AD80: 253.719 | AE80: 260.319 | AF80: 266.626 | AG80: 273.435 | AH80: 281.373 | AI80: 289.781 | AJ80: 300.54 | AK80: 320.88 | AL80: 196.7 | AM80: 196.7 | AN80: 196.7 | AO80: 196.7 | AP80: 196.7 | AQ80: 196.7 | AR80: 196.7 | AS80: 196.7 | AT80: =((SUM(N81:N90)+SUM(O79:O80))-(SUM(M81:M90)+SUM(N79:N80)))/(SUM(M81:M90)+SUM(N79:N80)) -> 0.02441662803 | AU80: =((SUM(O81:O90)+SUM(P79:P80))-(SUM(N81:N90)+SUM(O79:O80)))/(SUM(N81:N90)+SUM(O79:O80)) -> 0.02388494997 | AV80: =((SUM(P81:P90)+SUM(Q79:Q80))-(SUM(O81:O90)+SUM(P79:P80)))/(SUM(O81:O90)+SUM(P79:P80)) -> 0.02956487575 | AW80: =((SUM(Q81:Q90)+SUM(R79:R80))-(SUM(P81:P90)+SUM(Q79:Q80)))/(SUM(P81:P90)+SUM(Q79:Q80)) -> 0.02399351269 | AX80: =IF(S80=0," ",((SUM(R81:R90)+SUM(S79:S80))-(SUM(Q81:Q90)+SUM(R79:R80)))/(SUM(Q81:Q90)+SUM(R79:R80))) -> 0.02249965063 | AY80: 0.03047835991 | AZ80: 0.03125690791 | BA80: 0.03141558776 | BB80: 0.03736512212 | BC80: 0.0455946367 | BD80: 0.02927800366 | BE80: 0.01272499761 | BF80: 0.02600810543 | BG80: 0.02712818598 | BH80: 0.02101332236 | BI80: 0.02597129266 | BJ80: 0.02792869866 | BK80: 0.02528406302 | BL80: 0.02358463738 | BM80: 0.02681072985 | BN80: 0.03121160293 | BO80: 0.03476740054 | BP80: 0.05005048832 | BR80: 0.05390934621 | BU80: 0.04762174459 | BV80: 0.01402454408 | BW80: 0.0156610287 | BX80: 0.03060724565 | BY80: 0.02261006863 | BZ80: 0.02181961566 | CA80: 0.03059462929 | CB80: 0.02601303016 | CC80: 0.02422796646 | CD80: 0.02553764449 | CE80: 0.02903066542 | CF80: 0.0298820427 | CG80: 0.03712803807 | CH80: 0.06767817928
A81: 7 | B81: MARCH | C81: 120.2 | D81: 125.7 | E81: 131.8 | F81: 136.5 | G81: 140.1 | H81: 142.4 | I81: 144.8 | J81: 148.1 | K81: 151.2 | L81: 156 | M81: 159.9 | N81: 164.2 | O81: 167.9 | P81: 172.3 | Q81: 177.1 | R81: 181 | S81: 185.8 | T81: 191.7 | U81: 197.6 | V81: 204.082 | W81: 212.537 | X81: 222.216 | Y81: 224.991 | Z81: 229.282 | AA81: 236.073 | AB81: 241.409 | AC81: 246.878 | AD81: 254.108 | AE81: 260.883 | AF81: 267.055 | AG81: 273.733 | AH81: 281.887 | AI81: 290.216 | AJ81: 300.897 | AK81: 321.689 | AL81: 197.3 | AM81: 197.3 | AN81: 197.3 | AO81: 197.3 | AP81: 197.3 | AQ81: 197.3 | AR81: 197.3 | AS81: 197.3 | AT81: =((SUM(N82:N90)+SUM(O79:O81))-(SUM(M82:M90)+SUM(N79:N81)))/(SUM(M82:M90)+SUM(N79:N81)) -> 0.02405427632 | AU81: =((SUM(O82:O90)+SUM(P79:P81))-(SUM(N82:N90)+SUM(O79:O81)))/(SUM(N82:N90)+SUM(O79:O81)) -> 0.02419192933 | AV81: =((SUM(P82:P90)+SUM(Q79:Q81))-(SUM(O82:O90)+SUM(P79:P81)))/(SUM(O82:O90)+SUM(P79:P81)) -> 0.0296971479 | AW81: =((SUM(Q82:Q90)+SUM(R79:R81))-(SUM(P82:P90)+SUM(Q79:Q81)))/(SUM(P82:P90)+SUM(Q79:Q81)) -> 0.02351037502 | AX81: =IF(S81=0," ",((SUM(R82:R90)+SUM(S79:S81))-(SUM(Q82:Q90)+SUM(R79:R81)))/(SUM(Q82:Q90)+SUM(R79:R81))) -> 0.02287733656 | AY81: 0.03091190108 | AZ81: 0.03117558868 | BA81: 0.03158520419 | BB81: 0.03808259291 | BC81: 0.04592946897 | BD81: 0.0265339416 | BE81: 0.0132756956 | BF81: 0.0268847614 | BG81: 0.02654226399 | BH81: 0.02102059022 | BI81: 0.02652340334 | BJ81: 0.02771045792 | BK81: 0.02503376432 | BL81: 0.02369830561 | BM81: 0.02721027451 | BN81: 0.03118776086 | BO81: 0.03536721915 | BP81: 0.05274047849 | BR81: 0.05289119948 | BU81: 0.04554030592 | BV81: 0.01248784966 | BW81: 0.01907187399 | BX81: 0.02961854834 | BY81: 0.02260317783 | BZ81: 0.02265449921 | CA81: 0.02928572007 | CB81: 0.02666189179 | CC81: 0.02365811494 | CD81: 0.02500608489 | CE81: 0.02978815123 | CF81: 0.02954730087 | CG81: 0.03680362213 | CH81: 0.06910005749
A82: 8 | B82: APRIL | C82: 120.7 | D82: 126.6 | E82: 132.5 | F82: 137.1 | G82: 140.2 | H82: 142.7 | I82: 145.1 | J82: 148.3 | K82: 151.6 | L82: 156.2 | M82: 160.2 | N82: 164.5 | O82: 168.1 | P82: 172.7 | Q82: 177.2 | R82: 181.1 | S82: 186.2 | T82: 192.1 | U82: 198 | V82: 204.725 | W82: 213.083 | X82: 222.905 | Y82: 225.276 | Z82: 230.082 | AA82: 236.695 | AB82: 242.236 | AC82: 247.534 | AD82: 254.727 | AE82: 261.517 | AF82: 267.652 | AG82: 274.393 | AH82: 282.798 | AI82: 290.639 | AJ82: 301.819 | AK82: 323.559 | AL82: 197.5 | AM82: 197.5 | AN82: 197.5 | AO82: 197.5 | AP82: 197.5 | AQ82: 197.5 | AR82: 197.5 | AS82: 197.5 | AT82: =((SUM(N83:N90)+SUM(O79:O82))-(SUM(M83:M90)+SUM(N79:N82)))/(SUM(M83:M90)+SUM(N79:N82)) -> 0.02364223806 | AU82: =((SUM(O83:O90)+SUM(P79:P82))-(SUM(N83:N90)+SUM(O79:O82)))/(SUM(N83:N90)+SUM(O79:O82)) -> 0.0246492986 | AV82: =((SUM(P83:P90)+SUM(Q79:Q82))-(SUM(O83:O90)+SUM(P79:P82)))/(SUM(O83:O90)+SUM(P79:P82)) -> 0.02958145903 | AW82: =((SUM(Q83:Q90)+SUM(R79:R82))-(SUM(P83:P90)+SUM(Q79:Q82)))/(SUM(P83:P90)+SUM(Q79:Q82)) -> 0.02317519115 | AX82: =IF(S82=0," ",((SUM(R83:R90)+SUM(S79:S82))-(SUM(Q83:Q90)+SUM(R79:R82)))/(SUM(Q83:Q90)+SUM(R79:R82))) -> 0.02339289858 | AY82: 0.03120322917 | AZ82: 0.03109469147 | BA82: 0.03185761815 | BB82: 0.03865177234 | BC82: 0.04635935284 | BD82: 0.02360073197 | BE82: 0.01416882717 | BF82: 0.02749950627 | BG82: 0.0260974032 | BH82: 0.02089566347 | BI82: 0.02712064962 | BJ82: 0.02751083425 | BK82: 0.02476766705 | BL82: 0.02384328498 | BM82: 0.02766543974 | BN82: 0.03094062442 | BO82: 0.03625562967 | BP82: 0.05553236072 | BR82: 0.05282464513 | BU82: 0.04609471427 | BV82: 0.01063681838 | BW82: 0.0213338305 | BX82: 0.02874192679 | BY82: 0.02340987347 | BZ82: 0.02187123301 | CA82: 0.02905863437 | CB82: 0.02665598857 | CC82: 0.02345927798 | CD82: 0.02518568888 | CE82: 0.03063124788 | CF82: 0.02772650443 | CG82: 0.03846696417 | CH82: 0.07202992522
A83: 9 | B83: MAY | C83: 121 | D83: 126.7 | E83: 133 | F83: 137.5 | G83: 140.4 | H83: 142.9 | I83: 145.3 | J83: 148.6 | K83: 152 | L83: 156.3 | M83: 160.6 | N83: 164.6 | O83: 168.3 | P83: 173.1 | Q83: 177.6 | R83: 181.5 | S83: 186.7 | T83: 192.6 | U83: 198.7 | V83: 205.233 | W83: 213.967 | X83: 223.023 | Y83: 225.573 | Z83: 230.501 | AA83: 237.262 | AB83: 242.642 | AC83: 247.952 | AD83: 255.32 | AE83: 262.074 | AF83: 268.128 | AG83: 275.307 | AH83: 283.394 | AI83: 291.709 | AJ83: 303.481 | AL83: 197.2 | AM83: 197.2 | AN83: 197.2 | AO83: 197.2 | AP83: 197.2 | AQ83: 197.2 | AR83: 197.2 | AS83: 197.2 | AT83: =((SUM(N84:N90)+SUM(O79:O83))-(SUM(M84:M90)+SUM(N79:N83)))/(SUM(M84:M90)+SUM(N79:N83)) -> 0.02344029889 | AU83: =((SUM(O84:O90)+SUM(P79:P83))-(SUM(N84:N90)+SUM(O79:O83)))/(SUM(N84:N90)+SUM(O79:O83)) -> 0.02515377307 | AV83: =((SUM(P84:P90)+SUM(Q79:Q83))-(SUM(O84:O90)+SUM(P79:P83)))/(SUM(O84:O90)+SUM(P79:P83)) -> 0.02936585366 | AW83: =((SUM(Q84:Q90)+SUM(R79:R83))-(SUM(P84:P90)+SUM(Q79:Q83)))/(SUM(P84:P90)+SUM(Q79:Q83)) -> 0.02284143683 | AX83: =IF(S83=0," ",((SUM(R84:R90)+SUM(S79:S83))-(SUM(Q84:Q90)+SUM(R79:R83)))/(SUM(Q84:Q90)+SUM(R79:R83))) -> 0.02395292809 | AY83: 0.03144654088 | AZ83: 0.03110194771 | BA83: 0.03195915763 | BB83: 0.03945506716 | BC83: 0.04632647225 | BD83: 0.02105357324 | BE83: 0.01503822482 | BF83: 0.02812034481 | BG83: 0.02554336207 | BH83: 0.02083238665 | BI83: 0.02777101957 | BJ83: 0.02724081977 | BK83: 0.02448853348 | BL83: 0.02415136282 | BM83: 0.0278830433 | BN83: 0.03093399433 | BO83: 0.03716906842 | BR83: 0.05267222268 | BU83: 0.04232428365 | BV83: 0.01143379831 | BW83: 0.02184658625 | BX83: 0.02933175995 | BY83: 0.02267535467 | BZ83: 0.02188409261 | CA83: 0.02971542879 | CB83: 0.02645307849 | CC83: 0.0231003457 | CD83: 0.0267745256 | CE83: 0.02937448013 | CF83: 0.02934077645 | CG83: 0.04035528558
A84: 10 | B84: JUNE | C84: 121.5 | D84: 127.1 | E84: 133.4 | F84: 137.9 | G84: 140.7 | H84: 143.2 | I84: 145.5 | J84: 148.8 | K84: 152.3 | L84: 156.6 | M84: 160.7 | N84: 164.6 | O84: 168.6 | P84: 173.6 | Q84: 178.2 | R84: 181.9 | S84: 187 | T84: 193.2 | U84: 199.2 | V84: 205.934 | W84: 215.015 | X84: 223.163 | Y84: 225.797 | Z84: 231.097 | AA84: 237.839 | AB84: 243.016 | AC84: 248.445 | AD84: 255.846 | AE84: 262.529 | AF84: 268.225 | AG84: 275.808 | AH84: 284.316 | AI84: 293.219 | AJ84: 305.634 | AL84: 197.9 | AM84: 197.9 | AN84: 197.9 | AO84: 197.9 | AP84: 197.9 | AQ84: 197.9 | AR84: 197.9 | AS84: 197.9 | AT84: =((SUM(N85:N90)+SUM(O79:O84))-(SUM(M85:M90)+SUM(N79:N84)))/(SUM(M85:M90)+SUM(N79:N84)) -> 0.02344468281 | AU84: =((SUM(O85:O90)+SUM(P79:P84))-(SUM(N85:N90)+SUM(O79:O84)))/(SUM(N85:N90)+SUM(O79:O84)) -> 0.02560263513 | AV84: =((SUM(P85:P90)+SUM(Q79:Q84))-(SUM(O85:O90)+SUM(P79:P84)))/(SUM(O85:O90)+SUM(P79:P84)) -> 0.02909975669 | AW84: =((SUM(Q85:Q90)+SUM(R79:R84))-(SUM(P85:P90)+SUM(Q79:Q84)))/(SUM(P85:P90)+SUM(Q79:Q84)) -> 0.0223661812 | AX84: =IF(S84=0," ",((SUM(R85:R90)+SUM(S79:S84))-(SUM(Q85:Q90)+SUM(R79:R84)))/(SUM(Q85:Q90)+SUM(R79:R84))) -> 0.02455945608 | AY84: 0.03187071145 | AZ84: 0.03093009012 | BA84: 0.03218926374 | BB84: 0.04031074424 | BC84: 0.04579150207 | BD84: 0.01890506467 | BE84: 0.01601229535 | BF84: 0.0285923189 | BG84: 0.02492684909 | BH84: 0.02088229958 | BI84: 0.02838873093 | BJ84: 0.02693752385 | BK84: 0.02411899045 | BL84: 0.02469997607 | BM84: 0.028101419 | BN84: 0.03097323137 | BO84: 0.03808753594 | BR84: 0.05157574525 | BU84: 0.03789503058 | BV84: 0.01180303186 | BW84: 0.02347241106 | BX84: 0.02917389668 | BY84: 0.02176682546 | BZ84: 0.02234009283 | CA84: 0.02978928938 | CB84: 0.02612118227 | CC84: 0.02169665066 | CD84: 0.0282710411 | CE84: 0.03084754612 | CF84: 0.03131374949 | CG84: 0.04234036676
A85: 11 | B85: JULY | C85: 122.1 | D85: 127.8 | E85: 133.9 | F85: 138.4 | G85: 140.8 | H85: 143.4 | I85: 145.6 | J85: 149.1 | K85: 152.8 | L85: 157.1 | M85: 161.1 | N85: 165.1 | O85: 169.1 | P85: 174.1 | Q85: 178.5 | R85: 182.3 | S85: 187.8 | T85: 193.6 | U85: 199.7 | V85: 206.931 | W85: 216.376 | X85: 223.345 | Y85: 225.71 | Z85: 231.58 | AA85: 238.337 | AB85: 243.409 | AC85: 249.21 | AD85: 255.905 | AE85: 263.051 | AF85: 268.649 | AG85: 276.125 | AH85: 284.891 | AI85: 294.599 | AJ85: 308.023 | AL85: 198.2 | AM85: 198.2 | AN85: 198.2 | AO85: 198.2 | AP85: 198.2 | AQ85: 198.2 | AR85: 198.2 | AS85: 198.2 | AT85: =((SUM(N86:N90)+SUM(O79:O85))-(SUM(M86:M90)+SUM(N79:N85)))/(SUM(M86:M90)+SUM(N79:N85)) -> 0.02339688042 | AU85: =((SUM(O86:O90)+SUM(P79:P85))-(SUM(N86:N90)+SUM(O79:O85)))/(SUM(N86:N90)+SUM(O79:O85)) -> 0.02604970862 | AV85: =((SUM(P86:P90)+SUM(Q79:Q85))-(SUM(O86:O90)+SUM(P79:P85)))/(SUM(O86:O90)+SUM(P79:P85)) -> 0.02873786408 | AW85: =((SUM(Q86:Q90)+SUM(R79:R85))-(SUM(P86:P90)+SUM(Q79:Q85)))/(SUM(P86:P90)+SUM(Q79:Q85)) -> 0.02203661759 | AX85: =IF(S85=0," ",((SUM(R86:R90)+SUM(S79:S85))-(SUM(Q86:Q90)+SUM(R79:R85)))/(SUM(Q86:Q90)+SUM(R79:R85))) -> 0.02530126045 | AY85: 0.03192686991 | AZ85: 0.0309827195 | BA85: 0.03258486413 | BB85: 0.04109879344 | BC85: 0.04464635496 | BD85: 0.0171201744 | BE85: 0.01729705173 | BF85: 0.02885427598 | BG85: 0.02427066568 | BH85: 0.0210976677 | BI85: 0.02863560938 | BJ85: 0.02702659121 | BK85: 0.02356774943 | BL85: 0.02524459003 | BM85: 0.02843115672 | BN85: 0.03117229675 | BO85: 0.03905098991 | BR85: 0.05107954055 | BU85: 0.03220782342 | BV85: 0.01058899908 | BW85: 0.02600682291 | BX85: 0.02917782192 | BY85: 0.02128079148 | BZ85: 0.02383231516 | CA85: 0.02686489306 | CB85: 0.02792442508 | CC85: 0.02128104436 | CD85: 0.02782813262 | CE85: 0.03174649163 | CF85: 0.03407619054 | CG85: 0.04556702501
A86: 12 | B86: AUGUST | C86: 122.5 | D86: 128.1 | E86: 134.3 | F86: 138.7 | G86: 141 | H86: 143.6 | I86: 145.9 | J86: 149.4 | K86: 153.1 | L86: 157.4 | M86: 161.5 | N86: 165.6 | O86: 169.5 | P86: 174.7 | Q86: 178.8 | R86: 182.6 | S86: 188.4 | T86: 194.2 | U86: 200.2 | V86: 207.756 | W86: 217.063 | X86: 223.675 | Y86: 226.422 | Z86: 232.513 | AA86: 239.057 | AB86: 243.811 | AC86: 249.801 | AD86: 256.449 | AE86: 263.649 | AF86: 269.522 | AG86: 276.648 | AH86: 285.507 | AI86: 295.437 | AJ86: 309.336 | AL86: 200 | AM86: 200 | AN86: 200 | AO86: 200 | AP86: 200 | AQ86: 200 | AR86: 200 | AS86: 200 | AT86: =((SUM(N87:N90)+SUM(O79:O86))-(SUM(M87:M90)+SUM(N79:N86)))/(SUM(M87:M90)+SUM(N79:N86)) -> 0.02324635027 | AU86: =((SUM(O87:O90)+SUM(P79:P86))-(SUM(N87:N90)+SUM(O79:O86)))/(SUM(N87:N90)+SUM(O79:O86)) -> 0.02664545635 | AV86: =((SUM(P87:P90)+SUM(Q79:Q86))-(SUM(O87:O90)+SUM(P79:P86)))/(SUM(O87:O90)+SUM(P79:P86)) -> 0.02813286849 | AW86: =((SUM(Q87:Q90)+SUM(R79:R86))-(SUM(P87:P90)+SUM(Q79:Q86)))/(SUM(P87:P90)+SUM(Q79:Q86)) -> 0.02185277634 | AX86: =IF(S86=0," ",((SUM(R87:R90)+SUM(S79:S86))-(SUM(Q87:Q90)+SUM(R79:R86)))/(SUM(Q87:Q90)+SUM(R79:R86))) -> 0.02617873439 | AY86: 0.03184370088 | AZ86: 0.03099155567 | BA86: 0.03315925019 | BB86: 0.04168742218 | BC86: 0.04342613791 | BD86: 0.01562453005 | BE86: 0.01851733258 | BF86: 0.02895504096 | BG86: 0.02358230317 | BH86: 0.02148957683 | BI86: 0.02879995027 | BJ86: 0.02714885026 | BK86: 0.02308928015 | BL86: 0.02558978846 | BM86: 0.02889742992 | BN86: 0.03140766387 | BO86: 0.04007915921 | BR86: 0.04859083148 | BU86: 0.03046120251 | BV86: 0.01228121158 | BW86: 0.02690109618 | BX86: 0.02814466288 | BY86: 0.01988647059 | BZ86: 0.02456821062 | CA86: 0.02661318409 | CB86: 0.02807575775 | CC86: 0.02227582885 | CD86: 0.02643940012 | CE86: 0.03202264249 | CF86: 0.03478023306 | CG86: 0.04704556301
A87: 1 | B87: SEPTEMBER | C87: 123 | D87: 128.8 | E87: 134.6 | F87: 138.9 | G87: 141.2 | H87: 143.8 | I87: 146.2 | J87: 149.6 | K87: 153.5 | L87: 157.8 | M87: 162.1 | N87: 165.8 | O87: 170 | P87: 175.1 | Q87: 179.2 | R87: 182.8 | S87: 188.9 | T87: 194.6 | U87: 200.5 | V87: 208.805 | W87: 218.225 | X87: 224.003 | Y87: 227.075 | Z87: 233.032 | AA87: 239.565 | AB87: 244.036 | AC87: 250.57 | AD87: 257.83 | AE87: 264.102 | AF87: 270.353 | AG87: 277.258 | AH87: 286.246 | AI87: 297.08 | AJ87: 310.996 | AL87: 200.8 | AM87: 200.8 | AN87: 200.8 | AO87: 200.8 | AP87: 200.8 | AQ87: 200.8 | AR87: 200.8 | AS87: 200.8 | AT87: =((SUM(N88:N90)+SUM(O79:O87))-(SUM(M88:M90)+SUM(N79:N87)))/(SUM(M88:M90)+SUM(N79:N87)) -> 0.0234565394 | AU87: =((SUM(O88:O90)+SUM(P79:P87))-(SUM(N88:N90)+SUM(O79:O87)))/(SUM(N88:N90)+SUM(O79:O87)) -> 0.02703641234 | AV87: =((SUM(P88:P90)+SUM(Q79:Q87))-(SUM(O88:O90)+SUM(P79:P87)))/(SUM(O88:O90)+SUM(P79:P87)) -> 0.02758054388 | AW87: =((SUM(Q88:Q90)+SUM(R79:R87))-(SUM(P88:P90)+SUM(Q79:Q87)))/(SUM(P88:P90)+SUM(Q79:Q87)) -> 0.02157563223 | AX87: =IF(S87=0," ",((SUM(R88:R90)+SUM(S79:S87))-(SUM(Q88:Q90)+SUM(R79:R87)))/(SUM(Q88:Q90)+SUM(R79:R87))) -> 0.02728569457 | AY87: 0.03157753292 | AZ87: 0.03100169337 | BA87: 0.0340897031 | BB87: 0.0420005164 | BC87: 0.04184280631 | BD87: 0.01457551937 | BE87: 0.01956304467 | BF87: 0.02910138011 | BG87: 0.02280135 | BH87: 0.02216727807 | BI87: 0.0289812376 | BJ87: 0.02676063074 | BK87: 0.02303637727 | BL87: 0.02574385999 | BM87: 0.0294700678 | BN87: 0.03186947546 | BO87: 0.04083698036 | BR87: 0.04722098253 | BS87: =(+Z87-Y87)/Y87 -> 0.02623362325 | BU87: 0.02647725971 | BV87: 0.01371410204 | BW87: 0.02623362325 | BX87: 0.02803477634 | BY87: 0.01866299334 | BZ87: 0.02677473815 | CA87: 0.02897393942 | CB87: 0.02432610635 | CC87: 0.02366888551 | CD87: 0.025540682 | CE87: 0.03241745955 | CF87: 0.03784856382 | CG87: 0.04684260132
A88: =+A87+1 -> 2 | B88: OCTOBER | C88: 123.4 | D88: 129.1 | E88: 135 | F88: 139.1 | G88: 141.3 | H88: 144 | I88: 146.4 | J88: 150 | K88: 154.2 | L88: 158.2 | M88: 162.3 | N88: 166.2 | O88: 170.3 | P88: 175.6 | Q88: 179.6 | R88: 183.3 | S88: 189.4 | T88: 195.2 | U88: 201.1 | V88: 209.275 | W88: 219.29 | X88: 224.224 | Y88: 227.287 | Z88: 233.459 | AA88: 239.742 | AB88: 244.35 | AC88: 251.1 | AD88: 258.363 | AE88: 264.459 | AF88: 270.658 | AG88: 277.513 | AH88: 286.791 | AI88: 297.893 | AJ88: 313.592 | AL88: =((SUM(F89:F90)+SUM(G79:G88))-(SUM(E89:E90)+SUM(F79:F88)))/(SUM(E89:E90)+SUM(F79:F88)) -> 0.02246236037 | AM88: 0.01727823299 | AN88: 0.01698476624 | AO88: 0.02203856749 | AP88: 0.02369721473 | AQ88: 0.02918266594 | AR88: 0.02590342181 | AS88: 0.02530133001 | AT88: 0.02351152774 | AU88: 0.02757562256 | AV88: 0.02688379264 | AW88: 0.02139438866 | AX88: =IF(S88=0," ",((SUM(R89:R90)+SUM(S79:S88))-(SUM(Q89:Q90)+SUM(R79:R88)))/(SUM(Q89:Q90)+SUM(R79:R88))) -> 0.02834175471 | AY88: 0.03135748425 | AZ88: 0.0309671272 | BA88: 0.03496093094 | BB88: 0.04260801479 | BC88: 0.03970153286 | BD88: 0.01384799039 | BE88: 0.02068918395 | BF88: 0.02907655215 | BG88: 0.02216200022 | BH88: 0.02286899426 | BI88: 0.02908797523 | BJ88: 0.02631572927 | BK88: 0.02302445865 | BL88: 0.02589837367 | BM88: 0.03014391883 | BN88: 0.03231960105 | BO88: 0.04201917066 | BR88: 0.04665058961 | BS88: =(+Z88-Y88)/Y88 -> 0.02715509466 | BU88: 0.022499886 | BV88: 0.0136604467 | BW88: 0.02715509466 | BX88: 0.02691264847 | BY88: 0.01922066221 | BZ88: 0.02762430939 | CA88: 0.02892473118 | CB88: 0.02359470977 | CC88: 0.02344030644 | CD88: 0.02532716565 | CE88: 0.03343266802 | CF88: 0.03871111716 | CG88: 0.05270013058
A89: =+A88+1 -> 3 | B89: NOVEMBER | C89: 123.7 | D89: 129.5 | E89: 135.4 | F89: 139.3 | G89: 141.5 | H89: 144.2 | I89: 146.8 | J89: 150.2 | K89: 154.7 | L89: 158.6 | M89: 162.6 | N89: 166.5 | O89: 170.4 | P89: 175.8 | Q89: 179.8 | R89: 183.8 | S89: 189.6 | T89: 195.6 | U89: 201.6 | V89: 209.854 | W89: 220.043 | X89: 224.633 | Y89: 227.512 | Z89: 234.046 | AA89: 240.038 | AB89: 244.97 | AC89: 251.987 | AD89: 258.805 | AE89: 264.699 | AF89: 271.152 | AG89: 278.306 | AH89: 287.255 | AI89: 298.253 | AJ89: 315.481 | AL89: =((F90+SUM(G79:G89))-(E90+SUM(F79:F89)))/(E90+SUM(F79:F89)) -> 0.02137968627 | AM89: 0.01755218216 | AN89: 0.0168997669 | AO89: 0.02246418338 | AP89: 0.02426857976 | AQ89: 0.02878248974 | AR89: 0.02590287751 | AS89: 0.02519701369 | AT89: 0.02346515627 | AU89: 0.02826366242 | AV89: 0.02614127823 | AW89: 0.02135431301 | AX89: =IF(S89=0," ",((R90+SUM(S79:S89))-(Q90+SUM(R79:R89)))/(Q90+SUM(R79:R89))) -> 0.02911508482 | AY89: 0.03136556026 | AZ89: 0.03088686336 | BA89: 0.03581754945 | BB89: 0.04324854614 | BC89: 0.03737348669 | BD89: 0.0131846418 | BE89: 0.02201570305 | BF89: 0.02881230684 | BG89: 0.02174346314 | BH89: 0.0235462919 | BI89: 0.0289527235 | BJ89: 0.02595592645 | BK89: 0.02315899409 | BL89: 0.02606421527 | BM89: 0.0306220594 | BN89: 0.03283653379 | BO89: 0.04365961603 | BR89: 0.04667458534 | BS89: =(+Z89-Y89)/Y89 -> 0.02871936425 | BU89: 0.02085955927 | BV89: 0.01281646063 | BW89: 0.02871936425 | BX89: 0.02560180477 | BY89: 0.02054674677 | BZ89: 0.02864432379 | CA89: 0.02705695135 | CB89: 0.02277390313 | CC89: 0.02437863384 | CD89: 0.02638372573 | CE89: 0.03215525357 | CF89: 0.03828653983 | CG89: 0.0577630401
A90: =+A89+1 -> 4 | B90: DECEMBER | C90: 124.1 | D90: 129.8 | E90: 135.7 | F90: 139.6 | G90: 141.6 | H90: 144.3 | I90: 147.1 | J90: 150.4 | K90: 155 | L90: 159 | M90: 163 | N90: 166.8 | O90: 170.8 | P90: 176 | Q90: 180.1 | R90: 184.3 | S90: 189.9 | T90: 196 | U90: 202.2 | V90: 210.233 | W90: 220.684 | X90: 224.789 | Y90: 227.722 | Z90: 234.435 | AA90: 240.359 | AB90: 245.3 | AC90: 252.628 | AD90: 259.097 | AE90: 265.104 | AF90: 271.811 | AG90: 279.419 | AH90: 288.078 | AI90: 299.369 | AJ90: 317.372 | AL90: =(SUM(G79:G90)-SUM(F79:F90))/SUM(F79:F90) -> 0.02018126888 | AM90: 0.01794598436 | AN90: 0.01693140164 | AO90: 0.02271426937 | AP90: 0.02495104895 | AQ90: 0.0283827302 | AR90: 0.02584788493 | AS90: 0.02504139073 | AT90: 0.02352109832 | AU90: 0.02879968439 | AV90: 0.02554884479 | AW90: 0.02136013087 | AX90: =IF(S90=0," ",(SUM(S79:S90)-SUM(R79:R90))/SUM(R79:R90)) -> 0.02969979865 | AY90: 0.03150971068 | AZ90: 0.03084877208 | BA90: 0.03649084678 | BB90: 0.04408349019 | BC90: 0.03477171407 | BD90: 0.01272700739 | BE90: 0.02338501092 | BF90: 0.02845851397 | BG90: 0.02135415244 | BH90: 0.02432476168 | BI90: 0.02859420712 | BJ90: 0.02575095845 | BK90: 0.02333692008 | BL90: 0.02628932611 | BM90: 0.03086914406 | BN90: 0.03352441138 | BO90: 0.04542271609 | BR90: 0.04634546889 | BS90: =(+Z90-Y90)/Y90 -> 0.02947892606 | BU90: 0.01860125791 | BV90: 0.01304779148 | BW90: 0.02947892606 | BX90: 0.0252692644 | BY90: 0.02055675053 | BZ90: 0.02987362413 | CA90: 0.0256068211 | CB90: 0.02318436724 | CC90: 0.0252995051 | CD90: 0.02799003719 | CE90: 0.0309893028 | CF90: 0.039194246 | CG90: 0.06013648708

Sheet PPI - Food (hidden)
B1: PRODUCER'S PRICE INDEX
B3: The Producer Price Index measures the average changes in prices received by domestic producers of commodities
B4: at all stages of processing. Imports are not included. Other sectors included are agriculture, fishing, forestry,
B5: services, gas and electricity. Finished goods are commodities ready for sale.
BI9: Group: | BJ9: Stage of processing
BI10: Item: | BJ10: Finished consumer foods
B12: The consumer foods category is made up largely of processed consumer foods, but also includes raw agricultural products that are ultimately consumed (after sorting, packaging, or grading) by the individual consumer. Examples of consumer foods includes processed items such as pasta products, processed meats, and bakery products, as well as crude products, such as fresh fruits and vegetables, tree nuts, and eggs for fresh use.
B17: https://www.bls.gov/news.release/pdf/ppi.pdf
CB18: Prelim
B19: PRODUCER'S PRICE INDEX | BG19: Commodity code: WPUSOP3110 | CB19: The numbers are first published as Preliminary, and each month is updated in the publication 4 months later.
B20: FINISHED CONSUMER FOODS (NOT SEASONALLY ADJUSTED) - is a measure of the change in consumer prices
B21: for finished consumer foods
BO22: =COLUMN() -> 67
AJ23: Prelim | BG23: ANNUAL % CHANGE | BT23: PERIOD % CHANGE
B24: =NOW() -> 2022-05-16T09:01:57.150 | C24: 1988 | D24: 1989 | E24: 1990 | F24: 1991 | G24: 1992 | H24: 1993 | I24: 1994 | J24: 1995 | K24: 1996 | L24: 1997 | M24: 1998 | N24: 1999 | O24: 2000 | P24: 2001 | Q24: 2002 | R24: 2003 | S24: 2004 | T24: 2005 | U24: 2006 | V24: 2007 | W24: 2008 | X24: 2009 | Y24: 2010 | Z24: 2011 | AA24: 2012 | AB24: 2013 | AC24: 2014 | AD24: 2015 | AE24: 2016 | AF24: 2017 | AG24: 2018 | AH24: 2019 | AI24: 2020 | AJ24: 2021 | AK24: 2022 | AL24: 92 VS 91 | AM24: 93 VS 92 | AN24: 94 VS 93 | AO24: 95 VS 94 | AP24: 96 VS 95 | AQ24: 97 VS 96 | AR24: 98 VS 97 | AS24: 99 VS 98 | AT24: 00 VS 99 | AU24: 01 VS 00 | AV24: 02 VS 01 | AW24: 03 VS 02 | AX24: 04 VS 03 | AY24: 05 VS 04 | AZ24: 06 VS 05 | BA24: 07 VS 06 | BB24: 08 VS 07 | BC24: 09 VS 08 | BD24: 10 VS 09 | BE24: 11 VS 10 | BF24: 12 VS 11 | BG24: 13 VS 12 | BH24: 14 VS 13 | BI24: 15 VS 14 | BJ24: 16 VS 15 | BK24: 17 VS 16 | BL24: 18 VS 17 | BM24: 19 VS 18 | BN24: 20 VS 19 | BO24: 21 VS 20 | BP24: 22 VS 21 | BQ24: FY12 | BR24: FY11 | BT24: 09 VS 08 | BU24: 10 VS 09 | BV24: 11 VS 10 | BW24: 12 VS 11 | BX24: 13 VS 12 | BY24: 14 VS 13 | BZ24: 15 VS 14 | CA24: 16 VS 15 | CB24: 17 VS 16 | CC24: 18 VS 17 | CD24: 19 VS 18 | CE24: 20 VS 19 | CF24: 21 VS 20 | CG24: 22 VS 21
A25: =+A36+1 -> 5 | B25: JANUARY | C25: 110.6 | D25: 116.5 | E25: 123.6 | F25: 124.8 | G25: 122.5 | H25: 124.3 | I25: 127 | J25: 127.8 | K25: 130.7 | L25: 134.1 | M25: 133.1 | N25: 135.6 | O25: 135 | P25: 138.6 | Q25: 141.1 | R25: 142 | S25: 148.1 | T25: 154.2 | U25: 157.1 | V25: 161.1 | W25: 174.5 | X25: 177.7 | Y25: 180.1 | Z25: 186.9 | AA25: 197 | AB25: 203.3 | AC25: 204.9 | AD25: 213.1 | AE25: 207.6 | AF25: 202.5 | AG25: 206.6 | AH25: 209.6 | AI25: 214.8 | AJ25: 213.8 | AK25: 241.468 | AL25: =((SUM(F26:F36)+G25)-(SUM(E26:E36)+F25))/(SUM(E26:E36)+F25) -> -0.003281762775 | AM25: =((SUM(G26:G36)+H25)-(SUM(F26:F36)+G25))/(SUM(F26:F36)+G25) -> -0.00490525467 | AN25: =((SUM(H26:H36)+I25)-(SUM(G26:G36)+H25))/(SUM(G26:G36)+H25) -> 0.01978526572 | AO25: =((SUM(I26:I36)+J25)-(SUM(H26:H36)+I25))/(SUM(H26:H36)+I25) -> 0.008210833002 | AP25: =((SUM(J26:J36)+K25)-(SUM(I26:I36)+J25))/(SUM(I26:I36)+J25) -> 0.01845527387 | AQ25: =((SUM(K26:K36)+L25)-(SUM(J26:J36)+K25))/(SUM(J26:J36)+K25) -> 0.03572580125 | AR25: =((SUM(L26:L36)+M25)-(SUM(K26:K36)+L25))/(SUM(K26:K36)+L25) -> 0.00448290891 | AS25: =((SUM(M26:M36)+N25)-(SUM(L26:L36)+M25))/(SUM(L26:L36)+M25) -> 0.0003099237588 | AT25: =((SUM(N26:N36)+O25)-(SUM(M26:M36)+N25))/(SUM(M26:M36)+N25) -> 0.004337588301 | AU25: =((SUM(O26:O36)+P25)-(SUM(N26:N36)+O25))/(SUM(N26:N36)+O25) -> 0.01795409674 | AV25: =((SUM(P26:P36)+Q25)-(SUM(O26:O36)+P25))/(SUM(O26:O36)+P25) -> 0.02945633069 | AW25: =((SUM(Q26:Q36)+R25)-(SUM(P26:P36)+Q25))/(SUM(P26:P36)+Q25) -> -0.009832204887 | AX25: =IF(S25=0," ",((SUM(R26:R36)+S25)-(SUM(Q26:Q36)+R25))/(SUM(Q26:Q36)+R25)) -> 0.04507075752 | AY25: =IF(T25=0," ",((SUM(S26:S36)+T25)-(SUM(R26:R36)+S25))/(SUM(R26:R36)+S25)) -> 0.0459717797 | AZ25: =IF(U25=0," ",((SUM(T26:T36)+U25)-(SUM(S26:S36)+T25))/(SUM(S26:S36)+T25)) -> 0.01778720627 | BA25: =IF(V25=0," ",((SUM(U26:U36)+V25)-(SUM(T26:T36)+U25))/(SUM(T26:T36)+U25)) -> 0.007268451713 | BB25: =IF(W25=0," ",((SUM(V26:V36)+W25)-(SUM(U26:U36)+V25))/(SUM(U26:U36)+V25)) -> 0.07024990715 | BC25: =IF(X25=0," ",((SUM(W26:W36)+X25)-(SUM(V26:V36)+W25))/(SUM(V26:V36)+W25)) -> 0.06211888355 | BD25: =IF(Y25=0," ",((SUM(X26:X36)+Y25)-(SUM(W26:W36)+X25))/(SUM(W26:W36)+X25)) -> -0.01582337565 | BE25: =IF(Z25=0," ",((SUM(Y26:Y36)+Z25)-(SUM(X26:X36)+Y25))/(SUM(X26:X36)+Y25)) -> 0.04135641451 | BF25: =IF(AA25=0," ",((SUM(Z26:Z36)+AA25)-(SUM(Y26:Y36)+Z25))/(SUM(Y26:Y36)+Z25)) -> 0.06430751013 | BG25: =IF(AB25=0," ",((SUM(AA26:AA36)+AB25)-(SUM(Z26:Z36)+AA25))/(SUM(Z26:Z36)+AA25)) -> 0.02481920493 | BH25: =IF(AC25=0," ",((SUM(AB26:AB36)+AC25)-(SUM(AA26:AA36)+AB25))/(SUM(AA26:AA36)+AB25)) -> 0.0200425905 | BI25: =IF(AD25=0," ",((SUM(AC26:AC36)+AD25)-(SUM(AB26:AB36)+AC25))/(SUM(AB26:AB36)+AC25)) -> 0.04723893733 | BJ25: =IF(AE25=0," ",((SUM(AD26:AD36)+AE25)-(SUM(AC26:AC36)+AD25))/(SUM(AC26:AC36)+AD25)) -> -0.01841066333 | BK25: =IF(AF25=0," ",((SUM(AE26:AE36)+AF25)-(SUM(AD26:AD36)+AE25))/(SUM(AD26:AD36)+AE25)) -> -0.02417171074 | BL25: =IF(AG25=0," ",((SUM(AF26:AF36)+AG25)-(SUM(AE26:AE36)+AF25))/(SUM(AE26:AE36)+AF25)) -> 0.01620077535 | BM25: =IF(AH25=0," ",((SUM(AG26:AG36)+AH25)-(SUM(AF26:AF36)+AG25))/(SUM(AF26:AF36)+AG25)) -> 0.0006826760903 | BN25: =IF(AI25=0," ",((SUM(AH26:AH36)+AI25)-(SUM(AG26:AG36)+AH25))/(SUM(AG26:AG36)+AH25)) -> 0.0209478711 | BO25: =IF(AJ25=0," ",((SUM(AI26:AI36)+AJ25)-(SUM(AH26:AH36)+AI25))/(SUM(AH26:AH36)+AI25)) -> 0.01041625722 | BP25: =IF(AK25=0," ",((SUM(AJ26:AJ36)+AK25)-(SUM(AI26:AI36)+AJ25))/(SUM(AI26:AI36)+AJ25)) -> 0.07456080293 | BQ25: =(+AB25-Z25)/Z25 -> 0.08774745853 | BT25: =IF(X25=0," ",(X25-W25)/W25) -> 0.01833810888 | BU25: =IF(Y25=0," ",(Y25-X25)/X25) -> 0.01350590884 | BV25: =IF(Z25=0," ",(Z25-Y25)/Y25) -> 0.03775680178 | BW25: =IF(AA25=0," ",(AA25-Z25)/Z25) -> 0.05403959337 | BX25: =IF(AB25=0," ",(AB25-AA25)/AA25) -> 0.03197969543 | BY25: =IF(AC25=0," ",(AC25-AB25)/AB25) -> 0.007870142646 | BZ25: =IF(AD25=0," ",(AD25-AC25)/AC25) -> 0.04001952172 | CA25: =IF(AE25=0," ",(AE25-AD25)/AD25) -> -0.02580947912 | CB25: =IF(AF25=0," ",(AF25-AE25)/AE25) -> -0.02456647399 | CC25: =IF(AG25=0," ",(AG25-AF25)/AF25) -> 0.02024691358 | CD25: =IF(AH25=0," ",(AH25-AG25)/AG25) -> 0.01452081317 | CE25: =IF(AI25=0," ",(AI25-AH25)/AH25) -> 0.02480916031 | CF25: =IF(AJ25=0," ",(AJ25-AI25)/AI25) -> -0.004655493482 | CG25: 0.1294106642
A26: =+A25+1 -> 6 | B26: FEBRUARY | C26: 109.4 | D26: 117.3 | E26: 124.4 | F26: 124.6 | G26: 123.4 | H26: 124.5 | I26: 126.7 | J26: 128.4 | K26: 130.7 | L26: 133.8 | M26: 133.6 | N26: 134.1 | O26: 136 | P26: 140 | Q26: 142.3 | R26: 142.3 | S26: 148.4 | T26: 155.4 | U26: 153.8 | V26: 163.9 | W26: 173.6 | X26: 175 | Y26: 180.9 | Z26: 193.4 | AA26: 196.7 | AB26: 201.6 | AC26: 205.9 | AD26: 210.1 | AE26: 207.5 | AF26: 203.7 | AG26: 204.9 | AH26: 208.9 | AI26: 211.1 | AJ26: 216.3 | AK26: 245.688 | AL26: =((SUM(F27:F36)+SUM(G25:G26))-(SUM(E27:E36)+SUM(F25:F26)))/(SUM(E27:E36)+SUM(F25:F26)) -> -0.004218844171 | AM26: =((SUM(G27:G36)+SUM(H25:H26))-(SUM(F27:F36)+SUM(G25:G26)))/(SUM(F27:F36)+SUM(G25:G26)) -> -0.003362474781 | AN26: =((SUM(H27:H36)+SUM(I25:I26))-(SUM(G27:G36)+SUM(H25:H26)))/(SUM(G27:G36)+SUM(H25:H26)) -> 0.02051282051 | AO26: =((SUM(I27:I36)+SUM(J25:J26))-(SUM(H27:H36)+SUM(I25:I26)))/(SUM(H27:H36)+SUM(I25:I26)) -> 0.007868288812 | AP26: =((SUM(J27:J36)+SUM(K25:K26))-(SUM(I27:I36)+SUM(J25:J26)))/(SUM(I27:I36)+SUM(J25:J26)) -> 0.01882831464 | AQ26: =((SUM(K27:K36)+SUM(L25:L26))-(SUM(J27:J36)+SUM(K25:K26)))/(SUM(J27:J36)+SUM(K25:K26)) -> 0.03618802318 | AR26: =((SUM(L27:L36)+SUM(M25:M26))-(SUM(K27:K36)+SUM(L25:L26)))/(SUM(K27:K36)+SUM(L25:L26)) -> 0.002423564504 | AS26: =((SUM(M27:M36)+SUM(N25:N26))-(SUM(L27:L36)+SUM(M25:M26)))/(SUM(L27:L36)+SUM(M25:M26)) -> 0.0007439092431 | AT26: =((SUM(N27:N36)+SUM(O25:O26))-(SUM(M27:M36)+SUM(N25:N26)))/(SUM(M27:M36)+SUM(N25:N26)) -> 0.005203493774 | AU26: =((SUM(O27:O36)+SUM(P25:P26))-(SUM(N27:N36)+SUM(O25:O26)))/(SUM(N27:N36)+SUM(O25:O26)) -> 0.0192272139 | AV26: =((SUM(P27:P36)+SUM(Q25:Q26))-(SUM(O27:O36)+SUM(P25:P26)))/(SUM(O27:O36)+SUM(P25:P26)) -> 0.02835721628 | AW26: =((SUM(Q27:Q36)+SUM(R25:R26))-(SUM(P27:P36)+SUM(Q25:Q26)))/(SUM(P27:P36)+SUM(Q25:Q26)) -> -0.01117121355 | AX26: =IF(S26=0," ",((SUM(R27:R36)+SUM(S25:S26))-(SUM(Q27:Q36)+SUM(R25:R26)))/(SUM(Q27:Q36)+SUM(R25:R26))) -> 0.04869782376 | AY26: =IF(T26=0," ",((SUM(S27:S36)+SUM(T25:T26))-(SUM(R27:R36)+SUM(S25:S26)))/(SUM(R27:R36)+SUM(S25:S26))) -> 0.04632307082 | AZ26: =IF(U26=0," ",((SUM(T27:T36)+SUM(U25:U26))-(SUM(S27:S36)+SUM(T25:T26)))/(SUM(S27:S36)+SUM(T25:T26))) -> 0.0130594993 | BA26: =IF(V26=0," ",((SUM(U27:U36)+SUM(V25:V26))-(SUM(T27:T36)+SUM(U25:U26)))/(SUM(T27:T36)+SUM(U25:U26))) -> 0.01353303022 | BB26: =IF(W26=0," ",((SUM(V27:V36)+SUM(W25:W26))-(SUM(U27:U36)+SUM(V25:V26)))/(SUM(U27:U36)+SUM(V25:V26))) -> 0.06966434452 | BC26: =IF(X26=0," ",((SUM(W27:W36)+SUM(X25:X26))-(SUM(V27:V36)+SUM(W25:W26)))/(SUM(V27:V36)+SUM(W25:W26))) -> 0.05772646536 | BD26: =IF(Y26=0," ",((SUM(X27:X36)+SUM(Y25:Y26))-(SUM(W27:W36)+SUM(X25:X26)))/(SUM(W27:W36)+SUM(X25:X26))) -> -0.01371396586 | BE26: =IF(Z26=0," ",((SUM(Y27:Y36)+SUM(Z25:Z26))-(SUM(X27:X36)+SUM(Y25:Y26)))/(SUM(X27:X36)+SUM(Y25:Y26))) -> 0.04436246689 | BF26: =IF(AA26=0," ",((SUM(Z27:Z36)+SUM(AA25:AA26))-(SUM(Y27:Y36)+SUM(Z25:Z26)))/(SUM(Y27:Y36)+SUM(Z25:Z26))) -> 0.05977719409 | BG26: =IF(AB26=0," ",((SUM(AA27:AA36)+SUM(AB25:AB26))-(SUM(Z27:Z36)+SUM(AA25:AA26)))/(SUM(Z27:Z36)+SUM(AA25:AA26))) -> 0.02546790873 | BH26: =IF(AC26=0," ",((SUM(AB27:AB36)+SUM(AC25:AC26))-(SUM(AA27:AA36)+SUM(AB25:AB26)))/(SUM(AA27:AA36)+SUM(AB25:AB26))) -> 0.01975164597 | BI26: =IF(AD26=0," ",((SUM(AC27:AC36)+SUM(AD25:AD26))-(SUM(AB27:AB36)+SUM(AC25:AC26)))/(SUM(AB27:AB36)+SUM(AC25:AC26))) -> 0.04711507028 | BJ26: =IF(AE26=0," ",((SUM(AD27:AD36)+SUM(AE25:AE26))-(SUM(AC27:AC36)+SUM(AD25:AD26)))/(SUM(AC27:AC36)+SUM(AD25:AD26))) -> -0.02103414634 | BK26: =IF(AF26=0," ",((SUM(AE27:AE36)+SUM(AF25:AF26))-(SUM(AD27:AD36)+SUM(AE25:AE26)))/(SUM(AD27:AD36)+SUM(AE25:AE26))) -> -0.0246751176 | BL26: =IF(AG26=0," ",((SUM(AF27:AF36)+SUM(AG25:AG26))-(SUM(AE27:AE36)+SUM(AF25:AF26)))/(SUM(AE27:AE36)+SUM(AF25:AF26))) -> 0.01826950587 | BM26: =IF(AH26=0," ",((SUM(AG27:AG36)+SUM(AH25:AH26))-(SUM(AF27:AF36)+SUM(AG25:AG26)))/(SUM(AF27:AF36)+SUM(AG25:AG26))) -> 0.001806213374 | BN26: =IF(AI26=0," ",((SUM(AH27:AH36)+SUM(AI25:AI26))-(SUM(AG27:AG36)+SUM(AH25:AH26)))/(SUM(AG27:AG36)+SUM(AH25:AH26))) -> 0.02019311671 | BO26: =IF(AJ26=0," ",((SUM(AI27:AI36)+SUM(AJ25:AJ26))-(SUM(AH27:AH36)+SUM(AI25:AI26)))/(SUM(AH27:AH36)+SUM(AI25:AI26))) -> 0.01158543769 | BP26: =IF(AK26=0," ",((SUM(AJ27:AJ37)+AK26)-(SUM(AI27:AI37)+AJ26))/(SUM(AI27:AI37)+AJ26)) -> 0.0796723116 | BQ26: =(+AB26-Z26)/Z26 -> 0.0423991727 | BT26: 0.008064516129 | BU26: 0.03371428571 | BV26: 0.0690989497 | BW26: 0.0170630817 | BX26: 0.02491103203 | BY26: 0.02132936508 | BZ26: 0.02039825158 | CA26: -0.0123750595 | CB26: -0.01831325301 | CC26: 0.0058910162 | CD26: 0.01952171791 | CE26: 0.01053135472 | CF26: 0.02463287541 | CG26: 0.1358668516
A27: =+A26+1 -> 7 | B27: MARCH | C27: 110.1 | D27: 118.4 | E27: 124.1 | F27: 125.1 | G27: 123.3 | H27: 124.6 | I27: 127.5 | J27: 128.5 | K27: 132 | L27: 135.2 | M27: 133.4 | N27: 134.7 | O27: 136 | P27: 141.1 | Q27: 143.4 | R27: 142.8 | S27: 150.7 | T27: 156.3 | U27: 154.4 | V27: 166.3 | W27: 176 | X27: 173.8 | Y27: 185.6 | Z27: 192.9 | AA27: 197.3 | AB27: 203.5 | AC27: 208.4 | AD27: 208.9 | AE27: 204.8 | AF27: 205.8 | AG27: 209.2 | AH27: 210.5 | AI27: 211.6 | AJ27: 217.4 | AK27: 251.366 | AL27: =((SUM(F28:F36)+SUM(G25:G27))-(SUM(E28:E36)+SUM(F25:F27)))/(SUM(E28:E36)+SUM(F25:F27)) -> -0.006089807937 | AM27: =((SUM(G28:G36)+SUM(H25:H27))-(SUM(F28:F36)+SUM(G25:G27)))/(SUM(F28:F36)+SUM(G25:G27)) -> -0.001279288985 | AN27: =((SUM(H28:H36)+SUM(I25:I27))-(SUM(G28:G36)+SUM(H25:H27)))/(SUM(G28:G36)+SUM(H25:H27)) -> 0.02157351851 | AO27: =((SUM(I28:I36)+SUM(J25:J27))-(SUM(H28:H36)+SUM(I25:I27)))/(SUM(H28:H36)+SUM(I25:I27)) -> 0.006599353263 | AP27: =((SUM(J28:J36)+SUM(K25:K27))-(SUM(I28:I36)+SUM(J25:J27)))/(SUM(I28:I36)+SUM(J25:J27)) -> 0.02045499246 | AQ27: =((SUM(K28:K36)+SUM(L25:L27))-(SUM(J28:J36)+SUM(K25:K27)))/(SUM(J28:J36)+SUM(K25:K27)) -> 0.03591390941 | AR27: =((SUM(L28:L36)+SUM(M25:M27))-(SUM(K28:K36)+SUM(L25:L27)))/(SUM(K28:K36)+SUM(L25:L27)) -> -0.0006822128504 | AS27: =((SUM(M28:M36)+SUM(N25:N27))-(SUM(L28:L36)+SUM(M25:M27)))/(SUM(L28:L36)+SUM(M25:M27)) -> 0.002668652641 | AT27: =((SUM(N28:N36)+SUM(O25:O27))-(SUM(M28:M36)+SUM(N25:N27)))/(SUM(M28:M36)+SUM(N25:N27)) -> 0.005199306759 | AU27: =((SUM(O28:O36)+SUM(P25:P27))-(SUM(N28:N36)+SUM(O25:O27)))/(SUM(N28:N36)+SUM(O25:O27)) -> 0.02155172414 | AV27: =((SUM(P28:P36)+SUM(Q25:Q27))-(SUM(O28:O36)+SUM(P25:P27)))/(SUM(O28:O36)+SUM(P25:P27)) -> 0.02658227848 | AW27: =((SUM(Q28:Q36)+SUM(R25:R27))-(SUM(P28:P36)+SUM(Q25:Q27)))/(SUM(P28:P36)+SUM(Q25:Q27)) -> -0.01285890435 | AX27: =IF(S27=0," ",((SUM(R28:R36)+SUM(S25:S27))-(SUM(Q28:Q36)+SUM(R25:R27)))/(SUM(Q28:Q36)+SUM(R25:R27))) -> 0.05377111587 | AY27: =IF(T27=0," ",((SUM(S28:S36)+SUM(T25:T27))-(SUM(R28:R36)+SUM(S25:S27)))/(SUM(R28:R36)+SUM(S25:S27))) -> 0.0448182434 | AZ27: =IF(U27=0," ",((SUM(T28:T36)+SUM(U25:U27))-(SUM(S28:S36)+SUM(T25:T27)))/(SUM(S28:S36)+SUM(T25:T27))) -> 0.008968125338 | BA27: =IF(V27=0," ",((SUM(U28:U36)+SUM(V25:V27))-(SUM(T28:T36)+SUM(U25:U27)))/(SUM(T28:T36)+SUM(U25:U27))) -> 0.02093596059 | BB27: =IF(W27=0," ",((SUM(V28:V36)+SUM(W25:W27))-(SUM(U28:U36)+SUM(V25:V27)))/(SUM(U28:U36)+SUM(V25:V27))) -> 0.06807573294 | BC27: =IF(X27=0," ",((SUM(W28:W36)+SUM(X25:X27))-(SUM(V28:V36)+SUM(W25:W27)))/(SUM(V28:V36)+SUM(W25:W27))) -> 0.05160815124 | BD27: =IF(Y27=0," ",((SUM(X28:X36)+SUM(Y25:Y27))-(SUM(W28:W36)+SUM(X25:X27)))/(SUM(W28:W36)+SUM(X25:X27))) -> -0.007190885319 | BE27: =IF(Z27=0," ",((SUM(Y28:Y36)+SUM(Z25:Z27))-(SUM(X28:X36)+SUM(Y25:Y27)))/(SUM(X28:X36)+SUM(Y25:Y27))) -> 0.04199981187 | BF27: =IF(AA27=0," ",((SUM(Z28:Z36)+SUM(AA25:AA27))-(SUM(Y28:Y36)+SUM(Z25:Z27)))/(SUM(Y28:Y36)+SUM(Z25:Z27))) -> 0.05827127059 | BG27: =IF(AB27=0," ",((SUM(AA28:AA36)+SUM(AB25:AB27))-(SUM(Z28:Z36)+SUM(AA25:AA27)))/(SUM(Z28:Z36)+SUM(AA25:AA27))) -> 0.02618783588 | BH27: =IF(AC27=0," ",((SUM(AB28:AB36)+SUM(AC25:AC27))-(SUM(AA28:AA36)+SUM(AB25:AB27)))/(SUM(AA28:AA36)+SUM(AB25:AB27))) -> 0.01916043225 | BI27: =IF(AD27=0," ",((SUM(AC28:AC36)+SUM(AD25:AD27))-(SUM(AB28:AB36)+SUM(AC25:AC27)))/(SUM(AB28:AB36)+SUM(AC25:AC27))) -> 0.04522654052 | BJ27: =IF(AE27=0," ",((SUM(AD28:AD36)+SUM(AE25:AE27))-(SUM(AC28:AC36)+SUM(AD25:AD27)))/(SUM(AC28:AC36)+SUM(AD25:AD27))) -> -0.02282481467 | BK27: =IF(AF27=0," ",((SUM(AE28:AE36)+SUM(AF25:AF27))-(SUM(AD28:AD36)+SUM(AE25:AE27)))/(SUM(AD28:AD36)+SUM(AE25:AE27))) -> -0.02267917748 | BL27: =IF(AG27=0," ",((SUM(AF28:AF36)+SUM(AG25:AG27))-(SUM(AE28:AE36)+SUM(AF25:AF27)))/(SUM(AE28:AE36)+SUM(AF25:AF27))) -> 0.01924255423 | BM27: =IF(AH27=0," ",((SUM(AG28:AG36)+SUM(AH25:AH27))-(SUM(AF28:AF36)+SUM(AG25:AG27)))/(SUM(AF28:AF36)+SUM(AG25:AG27))) -> 0.000962000962 | BN27: =IF(AI27=0," ",((SUM(AH28:AH36)+SUM(AI25:AI27))-(SUM(AG28:AG36)+SUM(AH25:AH27)))/(SUM(AG28:AG36)+SUM(AH25:AH27))) -> 0.02010251482 | BO27: =IF(AJ27=0," ",((SUM(AI28:AI36)+SUM(AJ25:AJ27))-(SUM(AH28:AH36)+SUM(AI25:AI27)))/(SUM(AH28:AH36)+SUM(AI25:AI27))) -> 0.0134254534 | BP27: 0.08689937253 | BQ27: 0.05495075168 | BT27: -0.0125 | BU27: 0.06789413119 | BV27: 0.03933189655 | BW27: 0.02280974598 | BX27: 0.03142422707 | BY27: 0.02407862408 | BZ27: 0.002399232246 | CA27: -0.01962661561 | CB27: 0.0048828125 | CC27: 0.01652089407 | CD27: 0.00621414914 | CE27: 0.005225653207 | CF27: 0.02741020794 | CG27: 0.1562373505
A28: 8 | B28: APRIL | C28: 110.2 | D28: 117.8 | E28: 123.2 | F28: 125.4 | G28: 122.8 | H28: 126.5 | I28: 127 | J28: 128.5 | K28: 131.2 | L28: 134.3 | M28: 133.8 | N28: 133.4 | O28: 137.3 | P28: 141.8 | Q28: 139.2 | R28: 144 | S28: 152.7 | T28: 156.3 | U28: 154.8 | V28: 166.8 | W28: 175.5 | X28: 175.9 | Y28: 184.2 | Z28: 193 | AA28: 197.5 | AB28: 201.8 | AC28: 212.8 | AD28: 208 | AE28: 204.5 | AF28: 209.4 | AG28: 206.7 | AH28: 210.3 | AI28: 212 | AJ28: 221.1 | AK28: 256.012 | AL28: =((SUM(F29:F36)+SUM(G25:G28))-(SUM(E29:E36)+SUM(F25:F28)))/(SUM(E29:E36)+SUM(F25:F28)) -> -0.009288339459 | AM28: =((SUM(G29:G36)+SUM(H25:H28))-(SUM(F29:F36)+SUM(G25:G28)))/(SUM(F29:F36)+SUM(G25:G28)) -> 0.002967759342 | AN28: =((SUM(H29:H36)+SUM(I25:I28))-(SUM(G29:G36)+SUM(H25:H28)))/(SUM(G29:G36)+SUM(H25:H28)) -> 0.01936785474 | AO28: =((SUM(I29:I36)+SUM(J25:J28))-(SUM(H29:H36)+SUM(I25:I28)))/(SUM(H29:H36)+SUM(I25:I28)) -> 0.007256894049 | AP28: =((SUM(J29:J36)+SUM(K25:K28))-(SUM(I29:I36)+SUM(J25:J28)))/(SUM(I29:I36)+SUM(J25:J28)) -> 0.02122085407 | AQ28: =((SUM(K29:K36)+SUM(L25:L28))-(SUM(J29:J36)+SUM(K25:K28)))/(SUM(J29:J36)+SUM(K25:K28)) -> 0.03610826065 | AR28: =((SUM(L29:L36)+SUM(M25:M28))-(SUM(K29:K36)+SUM(L25:L28)))/(SUM(K29:K36)+SUM(L25:L28)) -> -0.002909316001 | AS28: =((SUM(M29:M36)+SUM(N25:N28))-(SUM(L29:L36)+SUM(M25:M28)))/(SUM(L29:L36)+SUM(M25:M28)) -> 0.002731561957 | AT28: =((SUM(N29:N36)+SUM(O25:O28))-(SUM(M29:M36)+SUM(N25:N28)))/(SUM(M29:M36)+SUM(N25:N28)) -> 0.007862803368 | AU28: =((SUM(O29:O36)+SUM(P25:P28))-(SUM(N29:N36)+SUM(O25:O28)))/(SUM(N29:N36)+SUM(O25:O28)) -> 0.02186866515 | AV28: =((SUM(P29:P36)+SUM(Q25:Q28))-(SUM(O29:O36)+SUM(P25:P28)))/(SUM(O29:O36)+SUM(P25:P28)) -> 0.02224226029 | AW28: =((SUM(Q29:Q36)+SUM(R25:R28))-(SUM(P29:P36)+SUM(Q25:Q28)))/(SUM(P29:P36)+SUM(Q25:Q28)) -> -0.008526903852 | AX28: =IF(S28=0," ",((SUM(R29:R36)+SUM(S25:S28))-(SUM(Q29:Q36)+SUM(R25:R28)))/(SUM(Q29:Q36)+SUM(R25:R28))) -> 0.0559311981 | AY28: =IF(T28=0," ",((SUM(S29:S36)+SUM(T25:T28))-(SUM(R29:R36)+SUM(S25:S28)))/(SUM(R29:R36)+SUM(S25:S28))) -> 0.04173453912 | AZ28: =IF(U28=0," ",((SUM(T29:T36)+SUM(U25:U28))-(SUM(S29:S36)+SUM(T25:T28)))/(SUM(S29:S36)+SUM(T25:T28))) -> 0.006200798016 | BA28: =IF(V28=0," ",((SUM(U29:U36)+SUM(V25:V28))-(SUM(T29:T36)+SUM(U25:U28)))/(SUM(T29:T36)+SUM(U25:U28))) -> 0.02818712824 | BB28: =IF(W28=0," ",((SUM(V29:V36)+SUM(W25:W28))-(SUM(U29:U36)+SUM(V25:V28)))/(SUM(U29:U36)+SUM(V25:V28))) -> 0.06593005681 | BC28: =IF(X28=0," ",((SUM(W29:W36)+SUM(X25:X28))-(SUM(V29:V36)+SUM(W25:W28)))/(SUM(V29:V36)+SUM(W25:W28))) -> 0.04733033444 | BD28: =IF(Y28=0," ",((SUM(X29:X36)+SUM(Y25:Y28))-(SUM(W29:W36)+SUM(X25:X28)))/(SUM(W29:W36)+SUM(X25:X28))) -> -0.00350140056 | BE28: =IF(Z28=0," ",((SUM(Y29:Y36)+SUM(Z25:Z28))-(SUM(X29:X36)+SUM(Y25:Y28)))/(SUM(X29:X36)+SUM(Y25:Y28))) -> 0.04207074256 | BF28: =IF(AA28=0," ",((SUM(Z29:Z36)+SUM(AA25:AA28))-(SUM(Y29:Y36)+SUM(Z25:Z28)))/(SUM(Y29:Y36)+SUM(Z25:Z28))) -> 0.05610753945 | BG28: =IF(AB28=0," ",((SUM(AA29:AA36)+SUM(AB25:AB28))-(SUM(Z29:Z36)+SUM(AA25:AA28)))/(SUM(Z29:Z36)+SUM(AA25:AA28))) -> 0.02605253076 | BH28: =IF(AC28=0," ",((SUM(AB29:AB36)+SUM(AC25:AC28))-(SUM(AA29:AA36)+SUM(AB25:AB28)))/(SUM(AA29:AA36)+SUM(AB25:AB28))) -> 0.02190598681 | BI28: =IF(AD28=0," ",((SUM(AC29:AC36)+SUM(AD25:AD28))-(SUM(AB29:AB36)+SUM(AC25:AC28)))/(SUM(AB29:AB36)+SUM(AC25:AC28))) -> 0.03860988186 | BJ28: =IF(AE28=0," ",((SUM(AD29:AD36)+SUM(AE25:AE28))-(SUM(AC29:AC36)+SUM(AD25:AD28)))/(SUM(AC29:AC36)+SUM(AD25:AD28))) -> -0.0223594715 | BK28: =IF(AF28=0," ",((SUM(AE29:AE36)+SUM(AF25:AF28))-(SUM(AD29:AD36)+SUM(AE25:AE28)))/(SUM(AD29:AD36)+SUM(AE25:AE28))) -> -0.0193522591 | BL28: =IF(AG28=0," ",((SUM(AF29:AF36)+SUM(AG25:AG28))-(SUM(AE29:AE36)+SUM(AF25:AF28)))/(SUM(AE29:AE36)+SUM(AF25:AF28))) -> 0.01610535758 | BM28: =IF(AH28=0," ",((SUM(AG29:AG36)+SUM(AH25:AH28))-(SUM(AF29:AF36)+SUM(AG25:AG28)))/(SUM(AF29:AF36)+SUM(AG25:AG28))) -> 0.00349103166 | BN28: =IF(AI28=0," ",((SUM(AH29:AH36)+SUM(AI25:AI28))-(SUM(AG29:AG36)+SUM(AH25:AH28)))/(SUM(AG29:AG36)+SUM(AH25:AH28))) -> 0.01931381958 | BO28: =IF(AJ28=0," ",((SUM(AI29:AI36)+SUM(AJ25:AJ28))-(SUM(AH29:AH36)+SUM(AI25:AI28)))/(SUM(AH29:AH36)+SUM(AI25:AI28))) -> 0.01631948531 | BP28: 0.0920183203 | BQ28: 0.04559585492 | BT28: 0.002279202279 | BU28: 0.04718590108 | BV28: 0.04777415852 | BW28: 0.02331606218 | BX28: 0.0217721519 | BY28: 0.05450941526 | BZ28: -0.02255639098 | CA28: -0.01682692308 | CB28: 0.0239608802 | CC28: -0.01289398281 | CD28: 0.01741654572 | CE28: 0.008083689967 | CF28: 0.0429245283 | CG28: 0.1579014021
A29: 9 | B29: MAY | C29: 111.3 | D29: 119.1 | E29: 124.5 | F29: 126.2 | G29: 123.1 | H29: 126.9 | I29: 126.5 | J29: 128 | K29: 131.5 | L29: 135.2 | M29: 133.6 | N29: 134.5 | O29: 138.2 | P29: 142.3 | Q29: 139.4 | R29: 144.6 | S29: 155.5 | T29: 156.7 | U29: 154.2 | V29: 166.8 | W29: 177.6 | X29: 174 | Y29: 184.1 | Z29: 191 | AA29: 197.2 | AB29: 203 | AC29: 212.2 | AD29: 210.7 | AE29: 205.2 | AF29: 208.3 | AG29: 208.3 | AH29: 211.1 | AI29: 225 | AJ29: 226.1 | AL29: =((SUM(F30:F36)+SUM(G25:G29))-(SUM(E30:E36)+SUM(F25:F29)))/(SUM(E30:E36)+SUM(F25:F29)) -> -0.01248164464 | AM29: =((SUM(G30:G36)+SUM(H25:H29))-(SUM(F30:F36)+SUM(G25:G29)))/(SUM(F30:F36)+SUM(G25:G29)) -> 0.007637715444 | AN29: =((SUM(H30:H36)+SUM(I25:I29))-(SUM(G30:G36)+SUM(H25:H29)))/(SUM(G30:G36)+SUM(H25:H29)) -> 0.01650120741 | AO29: =((SUM(I30:I36)+SUM(J25:J29))-(SUM(H30:H36)+SUM(I25:I29)))/(SUM(H30:H36)+SUM(I25:I29)) -> 0.008512603933 | AP29: =((SUM(J30:J36)+SUM(K25:K29))-(SUM(I30:I36)+SUM(J25:J29)))/(SUM(I30:I36)+SUM(J25:J29)) -> 0.02250866976 | AQ29: =((SUM(K30:K36)+SUM(L25:L29))-(SUM(J30:J36)+SUM(K25:K29)))/(SUM(J30:J36)+SUM(K25:K29)) -> 0.03615537211 | AR29: =((SUM(L30:L36)+SUM(M25:M29))-(SUM(K30:K36)+SUM(L25:L29)))/(SUM(K30:K36)+SUM(L25:L29)) -> -0.006175889328 | AS29: =((SUM(M30:M36)+SUM(N25:N29))-(SUM(L30:L36)+SUM(M25:M29)))/(SUM(L30:L36)+SUM(M25:M29)) -> 0.004287844892 | AT29: =((SUM(N30:N36)+SUM(O25:O29))-(SUM(M30:M36)+SUM(N25:N29)))/(SUM(M30:M36)+SUM(N25:N29)) -> 0.009590990657 | AU29: =((SUM(O30:O36)+SUM(P25:P29))-(SUM(N30:N36)+SUM(O25:O29)))/(SUM(N30:N36)+SUM(O25:O29)) -> 0.02206423143 | AV29: =((SUM(P30:P36)+SUM(Q25:Q29))-(SUM(O30:O36)+SUM(P25:P29)))/(SUM(O30:O36)+SUM(P25:P29)) -> 0.01798992564 | AW29: =((SUM(Q30:Q36)+SUM(R25:R29))-(SUM(P30:P36)+SUM(Q25:Q29)))/(SUM(P30:P36)+SUM(Q25:Q29)) -> -0.003770028275 | AX29: =IF(S29=0," ",((SUM(R30:R36)+SUM(S25:S29))-(SUM(Q30:Q36)+SUM(R25:R29)))/(SUM(Q30:Q36)+SUM(R25:R29))) -> 0.05912961211 | AY29: =IF(T29=0," ",((SUM(S30:S36)+SUM(T25:T29))-(SUM(R30:R36)+SUM(S25:S29)))/(SUM(R30:R36)+SUM(S25:S29))) -> 0.03606520768 | AZ29: =IF(U29=0," ",((SUM(T30:T36)+SUM(U25:U29))-(SUM(S30:S36)+SUM(T25:T29)))/(SUM(S30:S36)+SUM(T25:T29))) -> 0.004203039121 | BA29: =IF(V29=0," ",((SUM(U30:U36)+SUM(V25:V29))-(SUM(T30:T36)+SUM(U25:U29)))/(SUM(T30:T36)+SUM(U25:U29))) -> 0.0363275381 | BB29: =IF(W29=0," ",((SUM(V30:V36)+SUM(W25:W29))-(SUM(U30:U36)+SUM(V25:V29)))/(SUM(U30:U36)+SUM(V25:V29))) -> 0.06456790763 | BC29: =IF(X29=0," ",((SUM(W30:W36)+SUM(X25:X29))-(SUM(V30:V36)+SUM(W25:W29)))/(SUM(V30:V36)+SUM(W25:W29))) -> 0.04007782101 | BD29: =IF(Y29=0," ",((SUM(X30:X36)+SUM(Y25:Y29))-(SUM(W30:W36)+SUM(X25:X29)))/(SUM(W30:W36)+SUM(X25:X29))) -> 0.00289936401 | BE29: =IF(Z29=0," ",((SUM(Y30:Y36)+SUM(Z25:Z29))-(SUM(X30:X36)+SUM(Y25:Y29)))/(SUM(X30:X36)+SUM(Y25:Y29))) -> 0.04038049053 | BF29: =IF(AA29=0," ",((SUM(Z30:Z36)+SUM(AA25:AA29))-(SUM(Y30:Y36)+SUM(Z25:Z29)))/(SUM(Y30:Y36)+SUM(Z25:Z29))) -> 0.05562029401 | BG29: =IF(AB29=0," ",((SUM(AA30:AA36)+SUM(AB25:AB29))-(SUM(Z30:Z36)+SUM(AA25:AA29)))/(SUM(Z30:Z36)+SUM(AA25:AA29))) -> 0.02581412134 | BH29: =IF(AC29=0," ",((SUM(AB30:AB36)+SUM(AC25:AC29))-(SUM(AA30:AA36)+SUM(AB25:AB29)))/(SUM(AA30:AA36)+SUM(AB25:AB29))) -> 0.02326062663 | BI29: =IF(AD29=0," ",((SUM(AC30:AC36)+SUM(AD25:AD29))-(SUM(AB30:AB36)+SUM(AC25:AC29)))/(SUM(AB30:AB36)+SUM(AC25:AC29))) -> 0.03413825183 | BJ29: =IF(AE29=0," ",((SUM(AD30:AD36)+SUM(AE25:AE29))-(SUM(AC30:AC36)+SUM(AD25:AD29)))/(SUM(AC30:AC36)+SUM(AD25:AD29))) -> -0.02393710643 | BK29: =IF(AF29=0," ",((SUM(AE30:AE36)+SUM(AF25:AF29))-(SUM(AD30:AD36)+SUM(AE25:AE29)))/(SUM(AD30:AD36)+SUM(AE25:AE29))) -> -0.01594870767 | BL29: =IF(AG29=0," ",((SUM(AF30:AF36)+SUM(AG25:AG29))-(SUM(AE30:AE36)+SUM(AF25:AF29)))/(SUM(AE30:AE36)+SUM(AF25:AF29))) -> 0.01482265749 | BM29: =IF(AH29=0," ",((SUM(AG30:AG36)+SUM(AH25:AH29))-(SUM(AF30:AF36)+SUM(AG25:AG29)))/(SUM(AF30:AF36)+SUM(AG25:AG29))) -> 0.004614582079 | BN29: =IF(AI29=0," ",((SUM(AH30:AH36)+SUM(AI25:AI29))-(SUM(AG30:AG36)+SUM(AH25:AH29)))/(SUM(AG30:AG36)+SUM(AH25:AH29))) -> 0.0237258348 | BO29: =IF(AJ29=0," ",((SUM(AI30:AI36)+SUM(AJ25:AJ29))-(SUM(AH30:AH36)+SUM(AI25:AI29)))/(SUM(AH30:AH36)+SUM(AI25:AI29))) -> 0.01123683184 | BQ29: 0.06282722513 | BT29: -0.02027027027 | BU29: 0.05804597701 | BV29: 0.03747963064 | BW29: 0.03246073298 | BX29: 0.02941176471 | BY29: 0.04532019704 | BZ29: -0.007068803016 | CA29: -0.02610346464 | CB29: 0.01510721248 | CC29: 0 | CD29: 0.01344215074 | CE29: 0.06584557082 | CF29: 0.004888888889
A30: 10 | B30: JUNE | C30: 112.5 | D30: 118.4 | E30: 124.2 | F30: 125.4 | G30: 123.1 | H30: 125.4 | I30: 125.9 | J30: 127.4 | K30: 133.6 | L30: 134 | M30: 133.8 | N30: 135.1 | O30: 137.6 | P30: 142 | Q30: 139.8 | R30: 145.2 | S30: 155 | T30: 155.5 | U30: 156.1 | V30: 166.3 | W30: 180 | X30: 176.1 | Y30: 179.5 | Z30: 192.4 | AA30: 198.1 | AB30: 203.2 | AC30: 213.7 | AD30: 212.1 | AE30: 205.9 | AF30: 209.9 | AG30: 206.9 | AH30: 212.3 | AI30: 215 | AJ30: 230.6 | AL30: =((SUM(F31:F36)+SUM(G25:G30))-(SUM(E31:E36)+SUM(F25:F30)))/(SUM(E31:E36)+SUM(F25:F30)) -> -0.01480592237 | AM30: =((SUM(G31:G36)+SUM(H25:H30))-(SUM(F31:F36)+SUM(G25:G30)))/(SUM(F31:F36)+SUM(G25:G30)) -> 0.01076360682 | AN30: =((SUM(H31:H36)+SUM(I25:I30))-(SUM(G31:G36)+SUM(H25:H30)))/(SUM(G31:G36)+SUM(H25:H30)) -> 0.01527024312 | AO30: =((SUM(I31:I36)+SUM(J25:J30))-(SUM(H31:H36)+SUM(I25:I30)))/(SUM(H31:H36)+SUM(I25:I30)) -> 0.009169470282 | AP30: =((SUM(J31:J36)+SUM(K25:K30))-(SUM(I31:I36)+SUM(J25:J30)))/(SUM(I31:I36)+SUM(J25:J30)) -> 0.02555889659 | AQ30: =((SUM(K31:K36)+SUM(L25:L30))-(SUM(J31:J36)+SUM(K25:K30)))/(SUM(J31:J36)+SUM(K25:K30)) -> 0.03231563516 | AR30: =((SUM(L31:L36)+SUM(M25:M30))-(SUM(K31:K36)+SUM(L25:L30)))/(SUM(K31:K36)+SUM(L25:L30)) -> -0.006544825883 | AS30: =((SUM(M31:M36)+SUM(N25:N30))-(SUM(L31:L36)+SUM(M25:M30)))/(SUM(L31:L36)+SUM(M25:M30)) -> 0.005220633934 | AT30: =((SUM(N31:N36)+SUM(O25:O30))-(SUM(M31:M36)+SUM(N25:N30)))/(SUM(M31:M36)+SUM(N25:N30)) -> 0.01032521331 | AU30: =((SUM(O31:O36)+SUM(P25:P30))-(SUM(N31:N36)+SUM(O25:O30)))/(SUM(N31:N36)+SUM(O25:O30)) -> 0.02319319503 | AV30: =((SUM(P31:P36)+SUM(Q25:Q30))-(SUM(O31:O36)+SUM(P25:P30)))/(SUM(O31:O36)+SUM(P25:P30)) -> 0.01399521531 | AW30: =((SUM(Q31:Q36)+SUM(R25:R30))-(SUM(P31:P36)+SUM(Q25:Q30)))/(SUM(P31:P36)+SUM(Q25:Q30)) -> 0.0007077975699 | AX30: =IF(S30=0," ",((SUM(R31:R36)+SUM(S25:S30))-(SUM(Q31:Q36)+SUM(R25:R30)))/(SUM(Q31:Q36)+SUM(R25:R30))) -> 0.06153483437 | AY30: =IF(T30=0," ",((SUM(S31:S36)+SUM(T25:T30))-(SUM(R31:R36)+SUM(S25:S30)))/(SUM(R31:R36)+SUM(S25:S30))) -> 0.0307051638 | AZ30: =IF(U30=0," ",((SUM(T31:T36)+SUM(U25:U30))-(SUM(S31:S36)+SUM(T25:T30)))/(SUM(S31:S36)+SUM(T25:T30))) -> 0.004255777622 | BA30: =IF(V30=0," ",((SUM(U31:U36)+SUM(V25:V30))-(SUM(T31:T36)+SUM(U25:U30)))/(SUM(T31:T36)+SUM(U25:U30))) -> 0.04146550799 | BB30: =IF(W30=0," ",((SUM(V31:V36)+SUM(W25:W30))-(SUM(U31:U36)+SUM(V25:V30)))/(SUM(U31:U36)+SUM(V25:V30))) -> 0.06603141901 | BC30: =IF(X30=0," ",((SUM(W31:W36)+SUM(X25:X30))-(SUM(V31:V36)+SUM(W25:W30)))/(SUM(V31:V36)+SUM(W25:W30))) -> 0.03130888535 | BD30: =IF(Y30=0," ",((SUM(X31:X36)+SUM(Y25:Y30))-(SUM(W31:W36)+SUM(X25:X30)))/(SUM(W31:W36)+SUM(X25:X30))) -> 0.006324666198 | BE30: =IF(Z30=0," ",((SUM(Y31:Y36)+SUM(Z25:Z30))-(SUM(X31:X36)+SUM(Y25:Y30)))/(SUM(X31:X36)+SUM(Y25:Y30))) -> 0.04473929236 | BF30: =IF(AA30=0," ",((SUM(Z31:Z36)+SUM(AA25:AA30))-(SUM(Y31:Y36)+SUM(Z25:Z30)))/(SUM(Y31:Y36)+SUM(Z25:Z30))) -> 0.05209215276 | BG30: =IF(AB30=0," ",((SUM(AA31:AA36)+SUM(AB25:AB30))-(SUM(Z31:Z36)+SUM(AA25:AA30)))/(SUM(Z31:Z36)+SUM(AA25:AA30))) -> 0.02549767048 | BH30: =IF(AC30=0," ",((SUM(AB31:AB36)+SUM(AC25:AC30))-(SUM(AA31:AA36)+SUM(AB25:AB30)))/(SUM(AA31:AA36)+SUM(AB25:AB30))) -> 0.02544192962 | BI30: =IF(AD30=0," ",((SUM(AC31:AC36)+SUM(AD25:AD30))-(SUM(AB31:AB36)+SUM(AC25:AC30)))/(SUM(AB31:AB36)+SUM(AC25:AC30))) -> 0.02912034799 | BJ30: =IF(AE30=0," ",((SUM(AD31:AD36)+SUM(AE25:AE30))-(SUM(AC31:AC36)+SUM(AD25:AD30)))/(SUM(AC31:AC36)+SUM(AD25:AD30))) -> -0.02575241674 | BK30: =IF(AF30=0," ",((SUM(AE31:AE36)+SUM(AF25:AF30))-(SUM(AD31:AD36)+SUM(AE25:AE30)))/(SUM(AD31:AD36)+SUM(AE25:AE30))) -> -0.01189089302 | BL30: =IF(AG30=0," ",((SUM(AF31:AF36)+SUM(AG25:AG30))-(SUM(AE31:AE36)+SUM(AF25:AF30)))/(SUM(AE31:AE36)+SUM(AF25:AF30))) -> 0.01195267716 | BM30: =IF(AH30=0," ",((SUM(AG31:AG36)+SUM(AH25:AH30))-(SUM(AF31:AF36)+SUM(AG25:AG30)))/(SUM(AF31:AF36)+SUM(AG25:AG30))) -> 0.007994857579 | BN30: =IF(AI30=0," ",((SUM(AH31:AH36)+SUM(AI25:AI30))-(SUM(AG31:AG36)+SUM(AH25:AH30)))/(SUM(AG31:AG36)+SUM(AH25:AH30))) -> 0.02259864488 | BO30: =IF(AJ30=0," ",((SUM(AI31:AI36)+SUM(AJ25:AJ30))-(SUM(AH31:AH36)+SUM(AI25:AI30)))/(SUM(AH31:AH36)+SUM(AI25:AI30))) -> 0.01625287446 | BQ30: 0.05613305613 | BT30: -0.02166666667 | BU30: 0.01930721181 | BV30: 0.07186629526 | BW30: 0.02962577963 | BX30: 0.02574457345 | BY30: 0.05167322835 | BZ30: -0.007487131493 | CA30: -0.02923149458 | CB30: 0.01942690627 | CC30: -0.01429252025 | CD30: 0.02609956501 | CE30: 0.0127178521 | CF30: 0.07255813953
A31: 11 | B31: JULY | C31: 113.7 | D31: 119 | E31: 124.9 | F31: 124.6 | G31: 122.8 | H31: 125 | I31: 126.2 | J31: 128.5 | K31: 133.9 | L31: 134 | M31: 134.7 | N31: 134.6 | O31: 137.5 | P31: 141.4 | Q31: 139.8 | R31: 144.9 | S31: 152.3 | T31: 154.4 | U31: 156.4 | V31: 166.4 | W31: 181 | X31: 173.5 | Y31: 180.5 | Z31: 193.5 | AA31: 198.1 | AB31: 203.2 | AC31: 215.1 | AD31: 209.8 | AE31: 205.5 | AF31: 208.5 | AG31: 206.9 | AH31: 211.5 | AI31: 212.3 | AJ31: 227.059 | AL31: =((SUM(F32:F36)+SUM(G25:G31))-(SUM(E32:E36)+SUM(F25:F31)))/(SUM(E32:E36)+SUM(F25:F31)) -> -0.01580948569 | AM31: =((SUM(G32:G36)+SUM(H25:H31))-(SUM(F32:F36)+SUM(G25:G31)))/(SUM(F32:F36)+SUM(G25:G31)) -> 0.0134878677 | AN31: =((SUM(H32:H36)+SUM(I25:I31))-(SUM(G32:G36)+SUM(H25:H31)))/(SUM(G32:G36)+SUM(H25:H31)) -> 0.01457901424 | AO31: =((SUM(I32:I36)+SUM(J25:J31))-(SUM(H32:H36)+SUM(I25:I31)))/(SUM(H32:H36)+SUM(I25:I31)) -> 0.009887284952 | AP31: =((SUM(J32:J36)+SUM(K25:K31))-(SUM(I32:I36)+SUM(J25:J31)))/(SUM(I32:I36)+SUM(J25:J31)) -> 0.027543894 | AQ31: =((SUM(K32:K36)+SUM(L25:L31))-(SUM(J32:J36)+SUM(K25:K31)))/(SUM(J32:J36)+SUM(K25:K31)) -> 0.02883821381 | AR31: =((SUM(L32:L36)+SUM(M25:M31))-(SUM(K32:K36)+SUM(L25:L31)))/(SUM(K32:K36)+SUM(L25:L31)) -> -0.006173982836 | AS31: =((SUM(M32:M36)+SUM(N25:N31))-(SUM(L32:L36)+SUM(M25:M31)))/(SUM(L32:L36)+SUM(M25:M31)) -> 0.004721376654 | AT31: =((SUM(N32:N36)+SUM(O25:O31))-(SUM(M32:M36)+SUM(N25:N31)))/(SUM(M32:M36)+SUM(N25:N31)) -> 0.01218079515 | AU31: =((SUM(O32:O36)+SUM(P25:P31))-(SUM(N32:N36)+SUM(O25:O31)))/(SUM(N32:N36)+SUM(O25:O31)) -> 0.02376298106 | AV31: =((SUM(P32:P36)+SUM(Q25:Q31))-(SUM(O32:O36)+SUM(P25:P31)))/(SUM(O32:O36)+SUM(P25:P31)) -> 0.01068082821 | AW31: =((SUM(Q32:Q36)+SUM(R25:R31))-(SUM(P32:P36)+SUM(Q25:Q31)))/(SUM(P32:P36)+SUM(Q25:Q31)) -> 0.004664068957 | AX31: =IF(S31=0," ",((SUM(R32:R36)+SUM(S25:S31))-(SUM(Q32:Q36)+SUM(R25:R31)))/(SUM(Q32:Q36)+SUM(R25:R31))) -> 0.06270200388 | AY31: =IF(T31=0," ",((SUM(S32:S36)+SUM(T25:T31))-(SUM(R32:R36)+SUM(S25:S31)))/(SUM(R32:R36)+SUM(S25:S31))) -> 0.02764875028 | AZ31: =IF(U31=0," ",((SUM(T32:T36)+SUM(U25:U31))-(SUM(S32:S36)+SUM(T25:T31)))/(SUM(S32:S36)+SUM(T25:T31))) -> 0.004197158846 | BA31: =IF(V31=0," ",((SUM(U32:U36)+SUM(V25:V31))-(SUM(T32:T36)+SUM(U25:U31)))/(SUM(T32:T36)+SUM(U25:U31))) -> 0.04570785554 | BB31: =IF(W31=0," ",((SUM(V32:V36)+SUM(W25:W31))-(SUM(U32:U36)+SUM(V25:V31)))/(SUM(U32:U36)+SUM(V25:V31))) -> 0.06805021778 | BC31: =IF(X31=0," ",((SUM(W32:W36)+SUM(X25:X31))-(SUM(V32:V36)+SUM(W25:W31)))/(SUM(V32:V36)+SUM(W25:W31))) -> 0.02048649427 | BD31: =IF(Y31=0," ",((SUM(X32:X36)+SUM(Y25:Y31))-(SUM(W32:W36)+SUM(X25:X31)))/(SUM(W32:W36)+SUM(X25:X31))) -> 0.01316408087 | BE31: =IF(Z31=0," ",((SUM(Y32:Y36)+SUM(Z25:Z31))-(SUM(X32:X36)+SUM(Y25:Y31)))/(SUM(X32:X36)+SUM(Y25:Y31))) -> 0.04737819026 | BF31: =IF(AA31=0," ",((SUM(Z32:Z36)+SUM(AA25:AA31))-(SUM(Y32:Y36)+SUM(Z25:Z31)))/(SUM(Y32:Y36)+SUM(Z25:Z31))) -> 0.04807053298 | BG31: =IF(AB31=0," ",((SUM(AA32:AA36)+SUM(AB25:AB31))-(SUM(Z32:Z36)+SUM(AA25:AA31)))/(SUM(Z32:Z36)+SUM(AA25:AA31))) -> 0.02565945215 | BH31: =IF(AC31=0," ",((SUM(AB32:AB36)+SUM(AC25:AC31))-(SUM(AA32:AA36)+SUM(AB25:AB31)))/(SUM(AA32:AA36)+SUM(AB25:AB31))) -> 0.02819107283 | BI31: =IF(AD31=0," ",((SUM(AC32:AC36)+SUM(AD25:AD31))-(SUM(AB32:AB36)+SUM(AC25:AC31)))/(SUM(AB32:AB36)+SUM(AC25:AC31))) -> 0.02208682407 | BJ31: =IF(AE31=0," ",((SUM(AD32:AD36)+SUM(AE25:AE31))-(SUM(AC32:AC36)+SUM(AD25:AD31)))/(SUM(AC32:AC36)+SUM(AD25:AD31))) -> -0.02541375794 | BK31: =IF(AF31=0," ",((SUM(AE32:AE36)+SUM(AF25:AF31))-(SUM(AD32:AD36)+SUM(AE25:AE31)))/(SUM(AD32:AD36)+SUM(AE25:AE31))) -> -0.008973843058 | BL31: =IF(AG31=0," ",((SUM(AF32:AF36)+SUM(AG25:AG31))-(SUM(AE32:AE36)+SUM(AF25:AF31)))/(SUM(AE32:AE36)+SUM(AF25:AF31))) -> 0.0100702481 | BM31: =IF(AH31=0," ",((SUM(AG32:AG36)+SUM(AH25:AH31))-(SUM(AF32:AF36)+SUM(AG25:AG31)))/(SUM(AF32:AF36)+SUM(AG25:AG31))) -> 0.01049246231 | BN31: =IF(AI31=0," ",((SUM(AH32:AH36)+SUM(AI25:AI31))-(SUM(AG32:AG36)+SUM(AH25:AH31)))/(SUM(AG32:AG36)+SUM(AH25:AH31))) -> 0.02104551241 | BO31: =IF(AJ31=0," ",((SUM(AI32:AI36)+SUM(AJ25:AJ31))-(SUM(AH32:AH36)+SUM(AI25:AI31)))/(SUM(AH32:AH36)+SUM(AI25:AI31))) -> 0.0216867329 | BQ31: 0.05012919897 | BT31: -0.04143646409 | BU31: 0.04034582133 | BV31: 0.07202216066 | BW31: 0.02377260982 | BX31: 0.02574457345 | BY31: 0.05856299213 | BZ31: -0.02463970246 | CA31: -0.0204957102 | CB31: 0.01459854015 | CC31: -0.007673860911 | CD31: 0.02223296278 | CE31: 0.00378250591 | CF31: 0.06951954781
A32: 12 | B32: AUGUST | C32: 113.6 | D32: 118.7 | E32: 125 | F32: 123.4 | G32: 123.4 | H32: 125.4 | I32: 127.1 | J32: 128.8 | K32: 135.3 | L32: 134.9 | M32: 135.2 | N32: 135.9 | O32: 137.2 | P32: 142.6 | Q32: 139.3 | R32: 146.3 | S32: 152.2 | T32: 154 | U32: 158.3 | V32: 166.3 | W32: 181.3 | X32: 173.9 | Y32: 180.1 | Z32: 195.7 | AA32: 200 | AB32: 204.8 | AC32: 215 | AD32: 211.2 | AE32: 203.4 | AF32: 208 | AG32: 205.9 | AH32: 210.8 | AI32: 211.7 | AJ32: 231.623 | AL32: =((SUM(F33:F36)+SUM(G25:G32))-(SUM(E33:E36)+SUM(F25:F32)))/(SUM(E33:E36)+SUM(F25:F32)) -> -0.01475792988 | AM32: =((SUM(G33:G36)+SUM(H25:H32))-(SUM(F33:F36)+SUM(G25:G32)))/(SUM(F33:F36)+SUM(G25:G32)) -> 0.01484343229 | AN32: =((SUM(H33:H36)+SUM(I25:I32))-(SUM(G33:G36)+SUM(H25:H32)))/(SUM(G33:G36)+SUM(H25:H32)) -> 0.01435917986 | AO32: =((SUM(I33:I36)+SUM(J25:J32))-(SUM(H33:H36)+SUM(I25:I32)))/(SUM(H33:H36)+SUM(I25:I32)) -> 0.009876218067 | AP32: =((SUM(J33:J36)+SUM(K25:K32))-(SUM(I33:I36)+SUM(J25:J32)))/(SUM(I33:I36)+SUM(J25:J32)) -> 0.03064284783 | AQ32: =((SUM(K33:K36)+SUM(L25:L32))-(SUM(J33:J36)+SUM(K25:K32)))/(SUM(J33:J36)+SUM(K25:K32)) -> 0.02435475709 | AR32: =((SUM(L33:L36)+SUM(M25:M32))-(SUM(K33:K36)+SUM(L25:L32)))/(SUM(K33:K36)+SUM(L25:L32)) -> -0.00574322238 | AS32: =((SUM(M33:M36)+SUM(N25:N32))-(SUM(L33:L36)+SUM(M25:M32)))/(SUM(L33:L36)+SUM(M25:M32)) -> 0.004968944099 | AT32: =((SUM(N33:N36)+SUM(O25:O32))-(SUM(M33:M36)+SUM(N25:N32)))/(SUM(M33:M36)+SUM(N25:N32)) -> 0.01254635352 | AU32: =((SUM(O33:O36)+SUM(P25:P32))-(SUM(N33:N36)+SUM(O25:O32)))/(SUM(N33:N36)+SUM(O25:O32)) -> 0.02624671916 | AV32: =((SUM(P33:P36)+SUM(Q25:Q32))-(SUM(O33:O36)+SUM(P25:P32)))/(SUM(O33:O36)+SUM(P25:P32)) -> 0.005471956224 | AW32: =((SUM(Q33:Q36)+SUM(R25:R32))-(SUM(P33:P36)+SUM(Q25:Q32)))/(SUM(P33:P36)+SUM(Q25:Q32)) -> 0.01076604555 | AX32: =IF(S32=0," ",((SUM(R33:R36)+SUM(S25:S32))-(SUM(Q33:Q36)+SUM(R25:R32)))/(SUM(Q33:Q36)+SUM(R25:R32))) -> 0.06180136946 | AY32: =IF(T32=0," ",((SUM(S33:S36)+SUM(T25:T32))-(SUM(R33:R36)+SUM(S25:S32)))/(SUM(R33:R36)+SUM(S25:S32))) -> 0.02529901339 | AZ32: =IF(U32=0," ",((SUM(T33:T36)+SUM(U25:U32))-(SUM(S33:S36)+SUM(T25:T32)))/(SUM(S33:S36)+SUM(T25:T32))) -> 0.005537039028 | BA32: =IF(V32=0," ",((SUM(U33:U36)+SUM(V25:V32))-(SUM(T33:T36)+SUM(U25:U32)))/(SUM(T33:T36)+SUM(U25:U32))) -> 0.04758086073 | BB32: =IF(W32=0," ",((SUM(V33:V36)+SUM(W25:W32))-(SUM(U33:U36)+SUM(V25:V32)))/(SUM(U33:U36)+SUM(V25:V32))) -> 0.0713447308 | BC32: =IF(X32=0," ",((SUM(W33:W36)+SUM(X25:X32))-(SUM(V33:V36)+SUM(W25:W32)))/(SUM(V33:V36)+SUM(W25:W32))) -> 0.009669889963 | BD32: =IF(Y32=0," ",((SUM(X33:X36)+SUM(Y25:Y32))-(SUM(W33:W36)+SUM(X25:X32)))/(SUM(W33:W36)+SUM(X25:X32))) -> 0.01962634459 | BE32: =IF(Z32=0," ",((SUM(Y33:Y36)+SUM(Z25:Z32))-(SUM(X33:X36)+SUM(Y25:Y32)))/(SUM(X33:X36)+SUM(Y25:Y32))) -> 0.05159170831 | BF32: =IF(AA32=0," ",((SUM(Z33:Z36)+SUM(AA25:AA32))-(SUM(Y33:Y36)+SUM(Z25:Z32)))/(SUM(Y33:Y36)+SUM(Z25:Z32))) -> 0.04276851322 | BG32: =IF(AB32=0," ",((SUM(AA33:AA36)+SUM(AB25:AB32))-(SUM(Z33:Z36)+SUM(AA25:AA32)))/(SUM(Z33:Z36)+SUM(AA25:AA32))) -> 0.02582387443 | BH32: =IF(AC32=0," ",((SUM(AB33:AB36)+SUM(AC25:AC32))-(SUM(AA33:AA36)+SUM(AB25:AB32)))/(SUM(AA33:AA36)+SUM(AB25:AB32))) -> 0.03035662869 | BI32: =IF(AD32=0," ",((SUM(AC33:AC36)+SUM(AD25:AD32))-(SUM(AB33:AB36)+SUM(AC25:AC32)))/(SUM(AB33:AB36)+SUM(AC25:AC32))) -> 0.01640784063 | BJ32: =IF(AE32=0," ",((SUM(AD33:AD36)+SUM(AE25:AE32))-(SUM(AC33:AC36)+SUM(AD25:AD32)))/(SUM(AC33:AC36)+SUM(AD25:AD32))) -> -0.02702278083 | BK32: =IF(AF32=0," ",((SUM(AE33:AE36)+SUM(AF25:AF32))-(SUM(AD33:AD36)+SUM(AE25:AE32)))/(SUM(AD33:AD36)+SUM(AE25:AE32))) -> -0.003996447602 | BL32: =IF(AG32=0," ",((SUM(AF33:AF36)+SUM(AG25:AG32))-(SUM(AE33:AE36)+SUM(AF25:AF32)))/(SUM(AE33:AE36)+SUM(AF25:AF32))) -> 0.007335954282 | BM32: =IF(AH32=0," ",((SUM(AG33:AG36)+SUM(AH25:AH32))-(SUM(AF33:AF36)+SUM(AG25:AG32)))/(SUM(AF33:AF36)+SUM(AG25:AG32))) -> 0.01331777581 | BN32: =IF(AI32=0," ",((SUM(AH33:AH36)+SUM(AI25:AI32))-(SUM(AG33:AG36)+SUM(AH25:AH32)))/(SUM(AG33:AG36)+SUM(AH25:AH32))) -> 0.01941631924 | BO32: =IF(AJ32=0," ",((SUM(AI33:AI36)+SUM(AJ25:AJ32))-(SUM(AH33:AH36)+SUM(AI25:AI32)))/(SUM(AH33:AH36)+SUM(AI25:AI32))) -> 0.0290885721 | BQ32: 0.04649974451 | BT32: -0.04081632653 | BU32: 0.03565267395 | BV32: 0.08661854525 | BW32: 0.02197240675 | BX32: 0.024 | BY32: 0.0498046875 | BZ32: -0.0176744186 | CA32: -0.03693181818 | CB32: 0.02261553589 | CC32: -0.01009615385 | CD32: 0.02379796017 | CE32: 0.004269449715 | CF32: 0.09410958904
A33: 1 | B33: SEPTEMBER | C33: 115.2 | D33: 118.5 | E33: 124.2 | F33: 122.7 | G33: 123.3 | H33: 125.7 | I33: 126.4 | J33: 130.1 | K33: 135.6 | L33: 134.7 | M33: 135.4 | N33: 136.7 | O33: 137.4 | P33: 142.9 | Q33: 138.7 | R33: 148 | S33: 152.7 | T33: 155.8 | U33: 159.2 | V33: 168.4 | W33: 181.5 | X33: 173.9 | Y33: 181.9 | Z33: 197 | AA33: 200.7 | AB33: 203.7 | AC33: 214.7 | AD33: 210.4 | AE33: 204.7 | AF33: 207.6 | AG33: 205.5 | AH33: 211 | AI33: 213.3 | AJ33: 236.751 | AL33: =((SUM(F34:F36)+SUM(G25:G33))-(SUM(E34:E36)+SUM(F25:F33)))/(SUM(E34:E36)+SUM(F25:F33)) -> -0.01336898396 | AM33: =((SUM(G34:G36)+SUM(H25:H33))-(SUM(F34:F36)+SUM(G25:G33)))/(SUM(F34:F36)+SUM(G25:G33)) -> 0.01605691057 | AN33: =((SUM(H34:H36)+SUM(I25:I33))-(SUM(G34:G36)+SUM(H25:H33)))/(SUM(G34:G36)+SUM(H25:H33)) -> 0.01320264053 | AO33: =((SUM(I34:I36)+SUM(J25:J33))-(SUM(H34:H36)+SUM(I25:I33)))/(SUM(H34:H36)+SUM(I25:I33)) -> 0.01184600197 | AP33: =((SUM(J34:J36)+SUM(K25:K33))-(SUM(I34:I36)+SUM(J25:J33)))/(SUM(I34:I36)+SUM(J25:J33)) -> 0.0317398374 | AQ33: =((SUM(K34:K36)+SUM(L25:L33))-(SUM(J34:J36)+SUM(K25:K33)))/(SUM(J34:J36)+SUM(K25:K33)) -> 0.02023576877 | AR33: =((SUM(L34:L36)+SUM(M25:M33))-(SUM(K34:K36)+SUM(L25:L33)))/(SUM(K34:K36)+SUM(L25:L33)) -> -0.004757785467 | AS33: =((SUM(M34:M36)+SUM(N25:N33))-(SUM(L34:L36)+SUM(M25:M33)))/(SUM(L34:L36)+SUM(M25:M33)) -> 0.005339293475 | AT33: =((SUM(N34:N36)+SUM(O25:O33))-(SUM(M34:M36)+SUM(N25:N33)))/(SUM(M34:M36)+SUM(N25:N33)) -> 0.01216575063 | AU33: =((SUM(O34:O36)+SUM(P25:P33))-(SUM(N34:N36)+SUM(O25:O33)))/(SUM(N34:N36)+SUM(O25:O33)) -> 0.02916412447 | AV33: =((SUM(P34:P36)+SUM(Q25:Q33))-(SUM(O34:O36)+SUM(P25:P33)))/(SUM(O34:O36)+SUM(P25:P33)) -> -0.0002964192554 | AW33: =((SUM(Q34:Q36)+SUM(R25:R33))-(SUM(P34:P36)+SUM(Q25:Q33)))/(SUM(P34:P36)+SUM(Q25:Q33)) -> 0.01879855305 | AX33: =IF(S33=0," ",((SUM(R34:R36)+SUM(S25:S33))-(SUM(Q34:Q36)+SUM(R25:R33)))/(SUM(Q34:Q36)+SUM(R25:R33))) -> 0.05878928987 | AY33: =IF(T33=0," ",((SUM(S34:S36)+SUM(T25:T33))-(SUM(R34:R36)+SUM(S25:S33)))/(SUM(R34:R36)+SUM(S25:S33))) -> 0.02435404068 | AZ33: =IF(U33=0," ",((SUM(T34:T36)+SUM(U25:U33))-(SUM(S34:S36)+SUM(T25:T33)))/(SUM(S34:S36)+SUM(T25:T33))) -> 0.005688831643 | BA33: =IF(V33=0," ",((SUM(U34:U36)+SUM(V25:V33))-(SUM(T34:T36)+SUM(U25:U33)))/(SUM(T34:T36)+SUM(U25:U33))) -> 0.05058967928 | BB33: =IF(W33=0," ",((SUM(V34:V36)+SUM(W25:W33))-(SUM(U34:U36)+SUM(V25:V33)))/(SUM(U34:U36)+SUM(V25:V33))) -> 0.07299232996 | BC33: =IF(X33=0," ",((SUM(W34:W36)+SUM(X25:X33))-(SUM(V34:V36)+SUM(W25:W33)))/(SUM(V34:V36)+SUM(W25:W33))) -> -0.0001893580761 | BD33: =IF(Y33=0," ",((SUM(X34:X36)+SUM(Y25:Y33))-(SUM(W34:W36)+SUM(X25:X33)))/(SUM(W34:W36)+SUM(X25:X33))) -> 0.02708333333 | BE33: =IF(Z33=0," ",((SUM(Y34:Y36)+SUM(Z25:Z33))-(SUM(X34:X36)+SUM(Y25:Y33)))/(SUM(X34:X36)+SUM(Y25:Y33))) -> 0.05467453439 | BF33: =IF(AA33=0," ",((SUM(Z34:Z36)+SUM(AA25:AA33))-(SUM(Y34:Y36)+SUM(Z25:Z33)))/(SUM(Y34:Y36)+SUM(Z25:Z33))) -> 0.03750327826 | BG33: =IF(AB33=0," ",((SUM(AA34:AA36)+SUM(AB25:AB33))-(SUM(Z34:Z36)+SUM(AA25:AA33)))/(SUM(Z34:Z36)+SUM(AA25:AA33))) -> 0.02548870913 | BH33: =IF(AC33=0," ",((SUM(AB34:AB36)+SUM(AC25:AC33))-(SUM(AA34:AA36)+SUM(AB25:AB33)))/(SUM(AA34:AA36)+SUM(AB25:AB33))) -> 0.03360585021 | BI33: =IF(AD33=0," ",((SUM(AC34:AC36)+SUM(AD25:AD33))-(SUM(AB34:AB36)+SUM(AC25:AC33)))/(SUM(AB34:AB36)+SUM(AC25:AC33))) -> 0.0102547796 | BJ33: =IF(AE33=0," ",((SUM(AD34:AD36)+SUM(AE25:AE33))-(SUM(AC34:AC36)+SUM(AD25:AD33)))/(SUM(AC34:AC36)+SUM(AD25:AD33))) -> -0.02761930991 | BK33: =IF(AF33=0," ",((SUM(AE34:AE36)+SUM(AF25:AF33))-(SUM(AD34:AD36)+SUM(AE25:AE33)))/(SUM(AD34:AD36)+SUM(AE25:AE33))) -> -0.0005259963585 | BL33: =IF(AG33=0," ",((SUM(AF34:AF36)+SUM(AG25:AG33))-(SUM(AE34:AE36)+SUM(AF25:AF33)))/(SUM(AE34:AE36)+SUM(AF25:AF33))) -> 0.005303214315 | BM33: =IF(AH33=0," ",((SUM(AG34:AG36)+SUM(AH25:AH33))-(SUM(AF34:AF36)+SUM(AG25:AG33)))/(SUM(AF34:AF36)+SUM(AG25:AG33))) -> 0.01638948174 | BN33: =IF(AI33=0," ",((SUM(AH34:AH36)+SUM(AI25:AI33))-(SUM(AG34:AG36)+SUM(AH25:AH33)))/(SUM(AG34:AG36)+SUM(AH25:AH33))) -> 0.01810618067 | BO33: =IF(AJ33=0," ",((SUM(AI34:AI36)+SUM(AJ25:AJ33))-(SUM(AH34:AH36)+SUM(AI25:AI33)))/(SUM(AH34:AH36)+SUM(AI25:AI33))) -> 0.03729345838 | BR33: =(+Z33-Y33)/Y33 -> 0.08301264431 | BT33: -0.04187327824 | BU33: 0.04600345026 | BV33: 0.08301264431 | BW33: 0.01878172589 | BX33: 0.01494768311 | BY33: 0.05400098184 | BZ33: -0.02002794597 | CA33: -0.02709125475 | CB33: 0.01416707377 | CC33: -0.01011560694 | CD33: 0.02676399027 | CE33: 0.01090047393 | CF33: 0.1099437412
A34: =+A33+1 -> 2 | B34: OCTOBER | C34: 114.6 | D34: 119.5 | E34: 124.6 | F34: 123 | G34: 123.8 | H34: 125.4 | I34: 126.1 | J34: 129.7 | K34: 136.6 | L34: 135.1 | M34: 135.5 | N34: 135.8 | O34: 138 | P34: 142.2 | Q34: 139.2 | R34: 151 | S34: 155.1 | T34: 155.8 | U34: 158.4 | V34: 169.7 | W34: 180.7 | X34: 175.6 | Y34: 182.1 | Z34: 195.9 | AA34: 200.8 | AB34: 204.4 | AC34: 216.3 | AD34: 208 | AE34: 202.5 | AF34: 207.6 | AG34: 206.4 | AH34: 212.3 | AI34: 216.8 | AJ34: 236.293 | AL34: =((SUM(F35:F36)+SUM(G25:G34))-(SUM(E35:E36)+SUM(F25:F34)))/(SUM(E35:E36)+SUM(F25:F34)) -> -0.01177730193 | AM34: =((SUM(G35:G36)+SUM(H25:H34))-(SUM(F35:F36)+SUM(G25:G34)))/(SUM(F35:F36)+SUM(G25:G34)) -> 0.01658992416 | AN34: =((SUM(H35:H36)+SUM(I25:I34))-(SUM(G35:G36)+SUM(H25:H34)))/(SUM(G35:G36)+SUM(H25:H34)) -> 0.01258908946 | AO34: =((SUM(I35:I36)+SUM(J25:J34))-(SUM(H35:H36)+SUM(I25:I34)))/(SUM(H35:H36)+SUM(I25:I34)) -> 0.01374819103 | AP34: =((SUM(J35:J36)+SUM(K25:K34))-(SUM(I35:I36)+SUM(J25:J34)))/(SUM(I35:I36)+SUM(J25:J34)) -> 0.03380702096 | AQ34: =((SUM(K35:K36)+SUM(L25:L34))-(SUM(J35:J36)+SUM(K25:K34)))/(SUM(J35:J36)+SUM(K25:K34)) -> 0.01487572182 | AR34: =((SUM(L35:L36)+SUM(M25:M34))-(SUM(K35:K36)+SUM(L25:L34)))/(SUM(K35:K36)+SUM(L25:L34)) -> -0.003587111139 | AS34: =((SUM(M35:M36)+SUM(N25:N34))-(SUM(L35:L36)+SUM(M25:M34)))/(SUM(L35:L36)+SUM(M25:M34)) -> 0.005275898454 | AT34: =((SUM(N35:N36)+SUM(O25:O34))-(SUM(M35:M36)+SUM(N25:N34)))/(SUM(M35:M36)+SUM(N25:N34)) -> 0.01333662633 | AU34: =((SUM(O35:O36)+SUM(P25:P34))-(SUM(N35:N36)+SUM(O25:O34)))/(SUM(N35:N36)+SUM(O25:O34)) -> 0.03034365099 | AV34: =((SUM(P35:P36)+SUM(Q25:Q34))-(SUM(O35:O36)+SUM(P25:P34)))/(SUM(O35:O36)+SUM(P25:P34)) -> -0.004553518628 | AW34: =((SUM(Q35:Q36)+SUM(R25:R34))-(SUM(P35:P36)+SUM(Q25:Q34)))/(SUM(P35:P36)+SUM(Q25:Q34)) -> 0.02762430939 | AX34: =IF(S34=0," ",((SUM(R35:R36)+SUM(S25:S34))-(SUM(Q35:Q36)+SUM(R25:R34)))/(SUM(Q35:Q36)+SUM(R25:R34))) -> 0.05393687131 | AY34: =IF(T34=0," ",((SUM(S35:S36)+SUM(T25:T34))-(SUM(R35:R36)+SUM(S25:S34)))/(SUM(R35:R36)+SUM(S25:S34))) -> 0.02243431518 | AZ34: =IF(U34=0," ",((SUM(T35:T36)+SUM(U25:U34))-(SUM(S35:S36)+SUM(T25:T34)))/(SUM(S35:S36)+SUM(T25:T34))) -> 0.006706008584 | BA34: =IF(V34=0," ",((SUM(U35:U36)+SUM(V25:V34))-(SUM(T35:T36)+SUM(U25:U34)))/(SUM(T35:T36)+SUM(U25:U34))) -> 0.0551558753 | BB34: =IF(W34=0," ",((SUM(V35:V36)+SUM(W25:W34))-(SUM(U35:U36)+SUM(V25:V34)))/(SUM(U35:U36)+SUM(V25:V34))) -> 0.07242424242 | BC34: =IF(X34=0," ",((SUM(W35:W36)+SUM(X25:X34))-(SUM(V35:V36)+SUM(W25:W34)))/(SUM(V35:V36)+SUM(W25:W34))) -> -0.007770556654 | BD34: =IF(Y34=0," ",((SUM(X35:X36)+SUM(Y25:Y34))-(SUM(W35:W36)+SUM(X25:X34)))/(SUM(W35:W36)+SUM(X25:X34))) -> 0.03265461104 | BE34: =IF(Z34=0," ",((SUM(Y35:Y36)+SUM(Z25:Z34))-(SUM(X35:X36)+SUM(Y25:Y34)))/(SUM(X35:X36)+SUM(Y25:Y34))) -> 0.05786643379 | BF34: =IF(AA34=0," ",((SUM(Z35:Z36)+SUM(AA25:AA34))-(SUM(Y35:Y36)+SUM(Z25:Z34)))/(SUM(Y35:Y36)+SUM(Z25:Z34))) -> 0.0334115398 | BG34: =IF(AB34=0," ",((SUM(AA35:AA36)+SUM(AB25:AB34))-(SUM(Z35:Z36)+SUM(AA25:AA34)))/(SUM(Z35:Z36)+SUM(AA25:AA34))) -> 0.02488963633 | BH34: =IF(AC34=0," ",((SUM(AB35:AB36)+SUM(AC25:AC34))-(SUM(AA35:AA36)+SUM(AB25:AB34)))/(SUM(AA35:AA36)+SUM(AB25:AB34))) -> 0.03696106986 | BI34: =IF(AD34=0," ",((SUM(AC35:AC36)+SUM(AD25:AD34))-(SUM(AB35:AB36)+SUM(AC25:AC34)))/(SUM(AB35:AB36)+SUM(AC25:AC34))) -> 0.00221536514 | BJ34: =IF(AE34=0," ",((SUM(AD35:AD36)+SUM(AE25:AE34))-(SUM(AC35:AC36)+SUM(AD25:AD34)))/(SUM(AC35:AC36)+SUM(AD25:AD34))) -> -0.02660456304 | BK34: =IF(AF34=0," ",((SUM(AE35:AE36)+SUM(AF25:AF34))-(SUM(AD35:AD36)+SUM(AE25:AE34)))/(SUM(AD35:AD36)+SUM(AE25:AE34))) -> 0.003771289538 | BL34: =IF(AG34=0," ",((SUM(AF35:AF36)+SUM(AG25:AG34))-(SUM(AE35:AE36)+SUM(AF25:AF34)))/(SUM(AE35:AE36)+SUM(AF25:AF34))) -> 0.002747141761 | BM34: =IF(AH34=0," ",((SUM(AG35:AG36)+SUM(AH25:AH34))-(SUM(AF35:AF36)+SUM(AG25:AG34)))/(SUM(AF35:AF36)+SUM(AG25:AG34))) -> 0.01925788647 | BN34: =IF(AI34=0," ",((SUM(AH35:AH36)+SUM(AI25:AI34))-(SUM(AG35:AG36)+SUM(AH25:AH34)))/(SUM(AG35:AG36)+SUM(AH25:AH34))) -> 0.01751057354 | BO34: =IF(AJ34=0," ",((SUM(AI35:AI36)+SUM(AJ25:AJ34))-(SUM(AH35:AH36)+SUM(AI25:AI34)))/(SUM(AH35:AH36)+SUM(AI25:AI34))) -> 0.04305259887 | BR34: =(+Z34-Y34)/Y34 -> 0.07578253707 | BT34: -0.02822357499 | BU34: 0.03701594533 | BV34: 0.07578253707 | BW34: 0.02501276161 | BX34: 0.01792828685 | BY34: 0.05821917808 | BZ34: -0.03837263061 | CA34: -0.02644230769 | CB34: 0.02518518519 | CC34: -0.005780346821 | CD34: 0.02858527132 | CE34: 0.02119642016 | CF34: 0.08991236162
A35: =+A34+1 -> 3 | B35: NOVEMBER | C35: 114.9 | D35: 120.2 | E35: 125.1 | F35: 123.1 | G35: 123.4 | H35: 126.6 | I35: 126.8 | J35: 131.1 | K35: 136.1 | L35: 134.6 | M35: 134.9 | N35: 135.4 | O35: 138.2 | P35: 140.7 | Q35: 139.2 | R35: 150.1 | S35: 154.7 | T35: 156.3 | U35: 157.9 | V35: 169.5 | W35: 179.8 | X35: 176.9 | Y35: 183.9 | Z35: 197.9 | AA35: 203 | AB35: 204.6 | AC35: 215.7 | AD35: 208.3 | AE35: 201.3 | AF35: 207.7 | AG35: 208.7 | AH35: 215.5 | AI35: 215.6 | AJ35: 239.109 | AL35: =((F36+SUM(G25:G35))-(E36+SUM(F25:F35)))/(E36+SUM(F25:F35)) -> -0.01025194318 | AM35: =((G36+SUM(H25:H35))-(F36+SUM(G25:G35)))/(F36+SUM(G25:G35)) -> 0.01854986121 | AN35: =((H36+SUM(I25:I35))-(G36+SUM(H25:H35)))/(G36+SUM(H25:H35)) -> 0.01056829511 | AO35: =((I36+SUM(J25:J35))-(H36+SUM(I25:I35)))/(H36+SUM(I25:I35)) -> 0.0164430413 | AP35: =((J36+SUM(K25:K35))-(I36+SUM(J25:J35)))/(I36+SUM(J25:J35)) -> 0.03416591174 | AQ35: =((K36+SUM(L25:L35))-(J36+SUM(K25:K35)))/(J36+SUM(K25:K35)) -> 0.01076210737 | AR35: =((L36+SUM(M25:M35))-(K36+SUM(L25:L35)))/(K36+SUM(L25:L35)) -> -0.002476166894 | AS35: =((M36+SUM(N25:N35))-(L36+SUM(M25:M35)))/(L36+SUM(M25:M35)) -> 0.005399031898 | AT35: =((N36+SUM(O25:O35))-(M36+SUM(N25:N35)))/(M36+SUM(N25:N35)) -> 0.01475217579 | AU35: =((O36+SUM(P25:P35))-(N36+SUM(O25:O35)))/(N36+SUM(O25:O35)) -> 0.03010948905 | AV35: =((P36+SUM(Q25:Q35))-(O36+SUM(P25:P35)))/(O36+SUM(P25:P35)) -> -0.006908768822 | AW35: =((Q36+SUM(R25:R35))-(P36+SUM(Q25:Q35)))/(P36+SUM(Q25:Q35)) -> 0.03502200024 | AX35: =IF(S35=0," ",((R36+SUM(S25:S35))-(Q36+SUM(R25:R35)))/(Q36+SUM(R25:R35))) -> 0.04997989315 | AY35: =IF(T35=0," ",((S36+SUM(T25:T35))-(R36+SUM(S25:S35)))/(R36+SUM(S25:S35))) -> 0.02073644471 | AZ35: =IF(U35=0," ",((T36+SUM(U25:U35))-(S36+SUM(T25:T35)))/(S36+SUM(T25:T35))) -> 0.00670025729 | BA35: =IF(V35=0," ",((U36+SUM(V25:V35))-(T36+SUM(U25:U35)))/(T36+SUM(U25:U35))) -> 0.06043341675 | BB35: =IF(W35=0," ",((V36+SUM(W25:W35))-(U36+SUM(V25:V35)))/(U36+SUM(V25:V35))) -> 0.07134966861 | BC35: =IF(X35=0," ",((W36+SUM(X25:X35))-(V36+SUM(W25:W35)))/(V36+SUM(W25:W35))) -> -0.01391948259 | BD35: =IF(Y35=0," ",((X36+SUM(Y25:Y35))-(W36+SUM(X25:X35)))/(W36+SUM(X25:X35))) -> 0.03740494297 | BE35: =IF(Z35=0," ",((Y36+SUM(Z25:Z35))-(X36+SUM(Y25:Y35)))/(X36+SUM(Y25:Y35))) -> 0.06088789114 | BF35: =IF(AA35=0," ",((Z36+SUM(AA25:AA35))-(Y36+SUM(Z25:Z35)))/(Y36+SUM(Z25:Z35))) -> 0.02936603904 | BG35: =IF(AB35=0," ",((AA36+SUM(AB25:AB35))-(Z36+SUM(AA25:AA35)))/(Z36+SUM(AA25:AA35))) -> 0.02336801477 | BH35: =IF(AC35=0," ",((AB36+SUM(AC25:AC35))-(AA36+SUM(AB25:AB35)))/(AA36+SUM(AB25:AB35))) -> 0.04083138605 | BI35: =IF(AD35=0," ",((AC36+SUM(AD25:AD35))-(AB36+SUM(AC25:AC35)))/(AB36+SUM(AC25:AC35))) -> -0.005080940565 | BJ35: =IF(AE35=0," ",((AD36+SUM(AE25:AE35))-(AC36+SUM(AD25:AD35)))/(AC36+SUM(AD25:AD35))) -> -0.02652414885 | BK35: =IF(AF35=0," ",((AE36+SUM(AF25:AF35))-(AD36+SUM(AE25:AE35)))/(AD36+SUM(AE25:AE35))) -> 0.009231394876 | BL35: =IF(AG35=0," ",((AF36+SUM(AG25:AG35))-(AE36+SUM(AF25:AF35)))/(AE36+SUM(AF25:AF35))) -> 0.0005641294274 | BM35: =IF(AH35=0," ",((AG36+SUM(AH25:AH35))-(AF36+SUM(AG25:AG35)))/(AF36+SUM(AG25:AG35))) -> 0.02158592082 | BN35: =IF(AI35=0," ",((AH36+SUM(AI25:AI35))-(AG36+SUM(AH25:AH35)))/(AG36+SUM(AH25:AH35))) -> 0.01482240706 | BO35: =IF(AJ35=0," ",((AI36+SUM(AJ25:AJ35))-(AH36+SUM(AI25:AI35)))/(AH36+SUM(AI25:AI35))) -> 0.05214427223 | BR35: =(+Z35-Y35)/Y35 -> 0.07612833061 | BT35: -0.01612903226 | BU35: 0.03957037875 | BV35: 0.07612833061 | BW35: 0.02577059121 | BX35: 0.007881773399 | BY35: 0.05425219941 | BZ35: -0.03430690774 | CA35: -0.03360537686 | CB35: 0.03179334327 | CC35: 0.004814636495 | CD35: 0.03258265453 | CE35: 0.000464037123 | CF35: 0.1090398887
A36: =+A35+1 -> 4 | B36: DECEMBER | C36: 115.1 | D36: 120.9 | E36: 124.1 | F36: 122.2 | G36: 124.2 | H36: 127.2 | I36: 128.6 | J36: 131 | K36: 135.5 | L36: 134.4 | M36: 134.3 | N36: 135.6 | O36: 137.9 | P36: 140.4 | Q36: 139.5 | R36: 150.3 | S36: 154.9 | T36: 157.5 | U36: 160.1 | V36: 172.2 | W36: 177.7 | X36: 179.8 | Y36: 186 | Z36: 197.2 | AA36: 202.2 | AB36: 204.2 | AC36: 215.4 | AD36: 206.1 | AE36: 202.7 | AF36: 207.1 | AG36: 212.9 | AH36: 215.1 | AI36: 212.4 | AJ36: 238.463 | AL36: =(SUM(G25:G36)-SUM(F25:F36))/SUM(F25:F36) -> -0.007648440121 | AM36: =(SUM(H25:H36)-SUM(G25:G36))/SUM(G25:G36) -> 0.01920086539 | AN36: =(SUM(I25:I36)-SUM(H25:H36))/SUM(H25:H36) -> 0.009485903814 | AO36: =(SUM(J25:J36)-SUM(I25:I36))/SUM(I25:I36) -> 0.01708503088 | AP36: =(SUM(K25:K36)-SUM(J25:J36))/SUM(J25:J36) -> 0.03546969893 | AQ36: =(SUM(L25:L36)-SUM(K25:K36))/SUM(K25:K36) -> 0.007237786236 | AR36: =(SUM(M25:M36)-SUM(L25:L36))/SUM(L25:L36) -> -0.001858390634 | AS36: =(SUM(N25:N36)-SUM(M25:M36))/SUM(M25:M36) -> 0.006268230621 | AT36: =(SUM(O25:O36)-SUM(N25:N36))/SUM(N25:N36) -> 0.0153570988 | AU36: =(SUM(P25:P36)-SUM(O25:O36))/SUM(O25:O36) -> 0.03018890846 | AV36: =(SUM(Q25:Q36)-SUM(P25:P36))/SUM(P25:P36) -> -0.008903301887 | AW36: =(SUM(R25:R36)-SUM(Q25:Q36))/SUM(Q25:Q36) -> 0.04200130882 | AX36: =IF(S36=0," ",(SUM(S25:S36)-SUM(R25:R36))/SUM(R25:R36)) -> 0.04613188695 | AY36: =IF(T36=0," ",(SUM(T25:T36)-SUM(S25:S36))/SUM(S25:S36)) -> 0.01959286143 | AZ36: =IF(U36=0," ",(SUM(U25:U36)-SUM(T25:T36))/SUM(T25:T36)) -> 0.006690932448 | BA36: =IF(V36=0," ",(SUM(V25:V36)-SUM(U25:U36))/SUM(U25:U36)) -> 0.06540118041 | BB36: =IF(W36=0," ",(SUM(W25:W36)-SUM(V25:V36))/SUM(V25:V36)) -> 0.06762489395 | BC36: =IF(X36=0," ",(SUM(X25:X36)-SUM(W25:W36))/SUM(W25:W36)) -> -0.01547307405 | BD36: =IF(Y36=0," ",(SUM(Y25:Y36)-SUM(X25:X36))/SUM(X25:X36)) -> 0.03931437254 | BE36: =IF(Z36=0," ",(SUM(Z25:Z36)-SUM(Y25:Y36))/SUM(Y25:Y36)) -> 0.0629996802 | BF36: =IF(AA36=0," ",(SUM(AA25:AA36)-SUM(Z25:Z36))/SUM(Z25:Z36)) -> 0.02656008252 | BG36: =IF(AB36=0," ",(SUM(AB25:AB36)-SUM(AA25:AA36))/SUM(AA25:AA36)) -> 0.02206313322 | BH36: =IF(AC36=0," ",(SUM(AC25:AC36)-SUM(AB25:AB36))/SUM(AB25:AB36)) -> 0.04456641953 | BI36: =IF(AD36=0," ",(SUM(AD25:AD36)-SUM(AC25:AC36))/SUM(AC25:AC36)) -> -0.01309752559 | BJ36: =IF(AE36=0," ",(SUM(AE25:AE36)-SUM(AD25:AD36))/SUM(AD25:AD36)) -> -0.02427782413 | BK36: =IF(AF36=0," ",(SUM(AF25:AF36)-SUM(AE25:AE36))/SUM(AE25:AE36)) -> 0.01242058967 | BL36: =IF(AG36=0," ",(SUM(AG25:AG36)-SUM(AF25:AF36))/SUM(AF25:AF36)) -> 0.001126262017 | BM36: =IF(AH36=0," ",(SUM(AH25:AH36)-SUM(AG25:AG36))/SUM(AG25:AG36)) -> 0.02008919603 | BN36: =IF(AI36=0," ",(SUM(AI25:AI36)-SUM(AH25:AH36))/SUM(AH25:AH36)) -> 0.01287959352 | BO36: =IF(AJ36=0," ",(SUM(AJ25:AJ36)-SUM(AI25:AI36))/SUM(AI25:AI36)) -> 0.06338388552 | BR36: =(+Z36-Y36)/Y36 -> 0.06021505376 | BT36: 0.01181767023 | BU36: 0.03448275862 | BV36: 0.06021505376 | BW36: 0.02535496957 | BX36: 0.009891196835 | BY36: 0.05484818805 | BZ36: -0.04317548747 | CA36: -0.01649684619 | CB36: 0.02170695609 | CC36: 0.0280057943 | CD36: 0.0103334899 | CE36: -0.01255230126 | CF36: 0.1227071563

Sheet PPI - Paper (hidden)
AC2: Series Id: | AD2: WPU091503
AC3: Not Seasonally Adjusted
AC4: Group: | AD4: Pulp, paper, and allied products
AC5: Item: | AD5: Paper boxes and containers
B7: INDEX SOURCE
B8: https://fred.stlouisfed.org/series/WPU09
B10: Index is found in TABLE 5, middle of page 1
B13: PRODUCER'S PRICE INDEX
B14: Paper boxes and containers | AC14: Commodity code: 09-15-03 | AP14: Prelim
AP15: The numbers are first published as Preliminary, and each month is updated in the publication 4 months later.
AG17: =COLUMN() -> 33 | AH17: =COLUMN() -> 34
R18: Prelim | T18: ANNUAL % CHANGE | AI18: PERIOD % CHANGE
B19: =NOW() -> 2022-05-16T09:01:57.150 | C19: 2006 | D19: 2007 | E19: 2008 | F19: 2009 | G19: 2010 | H19: 2011 | I19: 2012 | J19: 2013 | K19: 2014 | L19: 2015 | M19: 2016 | N19: 2017 | O19: 2018 | P19: 2019 | Q19: 2020 | R19: 2021 | S19: 2022 | T19: 08 VS 07 | U19: 09 VS 08 | V19: 10 VS 09 | W19: 11 VS 10 | X19: 12 VS 11 | Y19: 13 VS 12 | Z19: 14 VS 13 | AA19: 15 VS 14 | AB19: 16 VS 15 | AC19: 17 VS 16 | AD19: 18 VS 17 | AE19: 19 VS 18 | AF19: 20 VS 19 | AG19: 21 VS 20 | AH19: 22 VS 21 | AI19: 09 VS 08 | AJ19: 10 VS 09 | AK19: 11 VS 10 | AL19: 12 VS 11 | AM19: 13 VS 12 | AN19: 14 VS 13 | AO19: 15 VS 14 | AP19: 16 VS 15 | AQ19: 17 VS 16 | AR19: 18 VS 17 | AS19: 19 VS 18 | AT19: 20 VS 19 | AU19: 21 VS 20 | AV19: 22 VS 21
A20: =+A31+1 -> 5 | B20: JANUARY | C20: 185.2 | D20: 195.8 | E20: 202.2 | F20: 216.9 | G20: 208.7 | H20: 224.9 | I20: 224.7 | J20: 233.7 | K20: 244.4 | L20: 248.1 | M20: 247.2 | N20: 255.5 | O20: 260.1 | P20: 268.7 | Q20: 268.5 | R20: 272.5 | S20: 316.723 | T20: =IF(E20=0," ",((SUM(D21:D31)+E20)-(SUM(C21:C31)+D20))/(SUM(C21:C31)+D20)) -> 0.02533718275 | U20: 0.05644042866 | V20: 0.008353886546 | W20: 0.0449345116 | X20: 0.02197304338 | Y20: 0.008977058628 | Z20: 0.05858230814 | AA20: 0.02168649696 | AB20: 0.004400961441 | AC20: 0.006201759412 | AD20: 0.04471912371 | AE20: 0.02141849429 | AF20: 0.01509919638 | AG20: -0.003679995052 | AH20: 0.09230647464 | AI20: =IF(F20=0," ",(F20-E20)/E20) -> 0.07270029674 | AJ20: =IF(G20=0," ",(G20-F20)/F20) -> -0.0378054403 | AK20: =IF(H20=0," ",(H20-G20)/G20) -> 0.07762338285 | AL20: =IF(I20=0," ",(I20-H20)/H20) -> -0.0008892841263 | AM20: =IF(J20=0," ",(J20-I20)/I20) -> 0.04005340454 | AN20: =IF(K20=0," ",(K20-J20)/J20) -> 0.04578519469 | AO20: =IF(L20=0," ",(L20-K20)/K20) -> 0.0151391162 | AP20: =IF(M20=0," ",(M20-L20)/L20) -> -0.003627569528 | AQ20: =IF(N20=0," ",(N20-M20)/M20) -> 0.03357605178 | AR20: =IF(O20=0," ",(O20-N20)/N20) -> 0.01800391389 | AS20: =IF(P20=0," ",(P20-O20)/O20) -> 0.03306420607 | AT20: =IF(Q20=0," ",(Q20-P20)/P20) -> -0.0007443245255 | AU20: =IF(R20=0," ",(R20-Q20)/Q20) -> 0.01489757914 | AV20: 0.1622862385
A21: =+A20+1 -> 6 | B21: FEBRUARY | C21: 186.1 | D21: 196.1 | E21: 202.6 | F21: 216 | G21: 209.5 | H21: 225.1 | I21: 226.4 | J21: 233.5 | K21: 245.1 | L21: 248 | M21: 247.2 | N21: 255.9 | O21: 259.8 | P21: 269.1 | Q21: 268.8 | R21: 274.5 | S21: 319.45 | T21: =IF(E21=0," ",((SUM(D22:D31)+SUM(E20:E21))-(SUM(C22:C31)+SUM(D20:D21)))/(SUM(C22:C31)+SUM(D20:D21))) -> 0.02372677736 | U21: 0.05917854149 | V21: 0.0004352643242 | W21: 0.05379108492 | X21: 0.01647712345 | Y21: 0.01111439332 | Z21: 0.0600737684 | AA21: 0.0186027284 | AB21: 0.003145292208 | AC21: 0.009406291089 | AD21: 0.04298597194 | AE21: 0.02312101707 | AF21: 0.01205045541 | AG21: -0.001824704645 | AH21: 0.1043045701 | AI21: 0.06614017769 | AJ21: -0.03009259259 | AK21: 0.07446300716 | AL21: 0.005775211017 | AM21: 0.03136042403 | AN21: 0.04967880086 | AO21: 0.01183190534 | AP21: -0.003225806452 | AQ21: 0.03519417476 | AR21: 0.01524032825 | AS21: 0.03579676674 | AT21: -0.001114827202 | AU21: 0.02120535714 | AV21: 0.1637522769
A22: =+A21+1 -> 7 | B22: MARCH | C22: 190.2 | D22: 195.9 | E22: 202.7 | F22: 215.3 | G22: 213.7 | H22: 225.4 | I22: 226.5 | J22: 232.5 | K22: 244.8 | L22: 247.8 | M22: 247.4 | N22: 256.6 | O22: 259.8 | P22: 270.6 | Q22: 268.1 | R22: 277.6 | S22: 322.9 | T22: =IF(E22=0," ",((SUM(D23:D31)+SUM(E20:E22))-(SUM(C23:C31)+SUM(D20:D22)))/(SUM(C23:C31)+SUM(D20:D22))) -> 0.02413970211 | U22: 0.06143430291 | V22: -0.005157886448 | W22: 0.05908893023 | X22: 0.01244394619 | Y22: 0.01291846602 | Z22: 0.0622380935 | AA22: 0.01533395081 | AB22: 0.001993377931 | AC22: 0.01264456958 | AD22: 0.04085641982 | AE22: 0.02552864775 | AF22: 0.007860997598 | AG22: 0.001888018818 | AH22: 0.1150580785 | AI22: 0.06216082881 | AJ22: -0.007431490943 | AK22: 0.05474964904 | AL22: 0.004880212955 | AM22: 0.02649006623 | AN22: 0.05290322581 | AO22: 0.01225490196 | AP22: -0.001614205004 | AQ22: 0.03718674212 | AR22: 0.01247077163 | AS22: 0.0415704388 | AT22: -0.009238728751 | AU22: 0.03543453935 | AV22: 0.163184438
A23: 8 | B23: APRIL | C23: 189.4 | D23: 196.6 | E23: 203.1 | F23: 213.8 | G23: 216.5 | H23: 225.6 | I23: 226.5 | J23: 232.9 | K23: 245.1 | L23: 247.6 | M23: 246.8 | N23: 257.1 | O23: 261.1 | P23: 269.6 | Q23: 268 | R23: 279.4 | S23: 327.2 | T23: =IF(E23=0," ",((SUM(D24:D31)+SUM(E20:E23))-(SUM(C24:C31)+SUM(D20:D23)))/(SUM(C24:C31)+SUM(D20:D23))) -> 0.02376685441 | U23: 0.06301838036 | V23: -0.008272887669 | W23: 0.06155610026 | X23: 0.00934788276 | Y23: 0.0149435466 | Z23: 0.06420183953 | AA23: 0.01195641034 | AB23: 0.0008776963846 | AC23: 0.01639178387 | AD23: 0.03862618218 | AE23: 0.02693376785 | AF23: 0.004697903055 | AG23: 0.005914594494 | AH23: 0.1258598079 | AI23: 0.05268340719 | AJ23: 0.01262862488 | AK23: 0.04203233256 | AL23: 0.003989361702 | AM23: 0.02825607064 | AN23: 0.05238299699 | AO23: 0.0101999184 | AP23: -0.003231017771 | AQ23: 0.04173419773 | AR23: 0.01555814858 | AS23: 0.03255457679 | AT23: -0.005934718101 | AU23: 0.04253731343 | AV23: 0.1710808876
A24: 9 | B24: MAY | C24: 190.8 | D24: 196.8 | E24: 203.1 | F24: 212.4 | G24: 218.3 | H24: 227.5 | I24: 225.9 | J24: 234.3 | K24: 245.7 | L24: 247.4 | M24: 246.8 | N24: 256.5 | O24: 264.2 | P24: 269.6 | Q24: 267.9 | R24: 282 | T24: =IF(E24=0," ",((SUM(D25:D31)+SUM(E20:E24))-(SUM(C25:C31)+SUM(D20:D24)))/(SUM(C25:C31)+SUM(D20:D24))) -> 0.02383384406 | U24: 0.06410043232 | V24: -0.009571060239 | W24: 0.06271447166 | X24: 0.005307501021 | Y24: 0.0186443181 | Z24: 0.06509368997 | AA24: 0.008609248988 | AB24: 0.0001012145749 | AC24: 0.01986978376 | AD24: 0.0378406986 | AE24: 0.02613462519 | AF24: 0.002484780718 | AG24: 0.01081298798 | AI24: 0.04579025111 | AJ24: 0.02777777778 | AK24: 0.04214383875 | AL24: -0.007032967033 | AM24: 0.03718459495 | AN24: 0.04865556978 | AO24: 0.006919006919 | AP24: -0.002425222312 | AQ24: 0.03930307942 | AR24: 0.03001949318 | AS24: 0.02043906132 | AT24: -0.006305637982 | AU24: 0.05263157895
A25: 10 | B25: JUNE | C25: 194.4 | D25: 196.9 | E25: 204.8 | F25: 211.1 | G25: 221.4 | H25: 227.5 | I25: 225.8 | J25: 237.9 | K25: 245.7 | L25: 247.6 | M25: 247.7 | N25: 262.2 | O25: 266.8 | P25: 270.6 | Q25: 267 | R25: 283.7 | T25: =IF(E25=0," ",((SUM(D26:D31)+SUM(E20:E25))-(SUM(C26:C31)+SUM(D20:D25)))/(SUM(C26:C31)+SUM(D20:D25))) -> 0.0261043323 | U25: 0.06322767765 | V25: -0.007988776743 | W25: 0.06081081081 | X25: 0.002407050807 | Y25: 0.02375410987 | Z25: 0.06325779446 | AA25: 0.00658408281 | AB25: -0.0005057486766 | AC25: 0.02472675752 | AD25: 0.03440102709 | AE25: 0.02584176691 | AF25: 0.0001861388596 | AG25: 0.01712158809 | AI25: 0.03076171875 | AJ25: 0.04879204169 | AK25: 0.02755194219 | AL25: -0.007472527473 | AM25: 0.05358724535 | AN25: 0.03278688525 | AO25: 0.007733007733 | AP25: 0.0004038772213 | AQ25: 0.0585385547 | AR25: 0.01754385965 | AS25: 0.01424287856 | AT25: -0.0133037694 | AU25: 0.06254681648
A26: 11 | B26: JULY | C26: 194.7 | D26: 197.3 | E26: 205.7 | F26: 209.7 | G26: 222.2 | H26: 227.9 | I26: 225 | J26: 238.5 | K26: 245.7 | L26: 247.6 | M26: 247.5 | N26: 263.2 | O26: 267.2 | P26: 269.5 | Q26: 267.3 | R26: 290.027 | T26: =IF(E26=0," ",((SUM(D27:D31)+SUM(E20:E26))-(SUM(C27:C31)+SUM(D20:D26)))/(SUM(C27:C31)+SUM(D20:D26))) -> 0.02853866735 | U26: 0.06119162641 | V26: -0.004669079024 | W26: 0.05785543958 | X26: -0.0007760245372 | Y26: 0.02984467456 | Z26: 0.0606887636 | AA26: 0.004773673697 | AB26: -0.001179324752 | AC26: 0.03005768647 | AD26: 0.03039234951 | AE26: 0.02526857797 | AF26: -0.001209039898 | AG26: 0.02487025886 | AI26: 0.01944579485 | AJ26: 0.05960896519 | AK26: 0.02565256526 | AL26: -0.01272487933 | AM26: 0.06 | AN26: 0.03018867925 | AO26: 0.007733007733 | AP26: -0.0004038772213 | AQ26: 0.06343434343 | AR26: 0.01519756839 | AS26: 0.008607784431 | AT26: -0.008163265306 | AU26: 0.08502431725
A27: 12 | B27: AUGUST | C27: 195.8 | D27: 197.3 | E27: 209.6 | F27: 209.7 | G27: 223.5 | H27: 224.9 | I27: 225 | J27: 242.8 | K27: 245.7 | L27: 246.7 | M27: 248 | N27: 262.6 | O27: 267.2 | P27: 269.7 | Q27: 268.1 | R27: 292.354 | T27: =IF(E27=0," ",((SUM(D28:D31)+SUM(E20:E27))-(SUM(C28:C31)+SUM(D20:D27)))/(SUM(C28:C31)+SUM(D20:D27))) -> 0.03310415075 | U27: 0.05587051187 | V27: 0.0006614271263 | W27: 0.05272366733 | X27: -0.001255771006 | Y27: 0.03638918679 | Z27: 0.05498661909 | AA27: 0.004126361361 | AB27: -0.001077876583 | AC27: 0.03452926895 | AD27: 0.02698826597 | AE27: 0.02456518979 | AF27: -0.002478161204 | AG27: 0.03291130986 | AI27: 0.0004770992366 | AJ27: 0.06580829757 | AK27: 0.006263982103 | AL27: 0.0004446420631 | AM27: 0.07911111111 | AN27: 0.01194398682 | AO27: 0.00407000407 | AP27: 0.005269558168 | AQ27: 0.05887096774 | AR27: 0.01751713633 | AS27: 0.009356287425 | AT27: -0.005932517612 | AU27: 0.09046624394
A28: 1 | B28: SEPTEMBER | C28: 196.3 | D28: 197.9 | E28: 215.3 | F28: 210.1 | G28: 224.6 | H28: 225 | I28: 224.9 | J28: 243.9 | K28: 246 | L28: 246.9 | M28: 247.5 | N28: 262.2 | O28: 267.6 | P28: 269.9 | Q28: 268.4 | R28: 296.496 | T28: =IF(E28=0," ",((SUM(D29:D31)+SUM(E20:E28))-(SUM(C29:C31)+SUM(D20:D28)))/(SUM(C29:C31)+SUM(D20:D28))) -> 0.03978284842 | U28: 0.04625550661 | V28: 0.008343079922 | W28: 0.04697649242 | X28: -0.001440230437 | Y28: 0.04345414201 | Z28: 0.04862661705 | AA28: 0.003717849055 | AB28: -0.001178570226 | AC28: 0.03927584114 | AD28: 0.02384273526 | AE28: 0.02354096699 | AF28: -0.003652685343 | AG28: 0.04212166403 | AI28: -0.02415234556 | AJ28: 0.06901475488 | AK28: 0.0017809439 | AL28: -0.0004444444444 | AM28: 0.084481992 | AN28: 0.008610086101 | AO28: 0.003658536585 | AP28: 0.002430133657 | AQ28: 0.05939393939 | AR28: 0.02059496568 | AS28: 0.008594917788 | AT28: -0.005557613931 | AU28: 0.1046795827
A29: =+A28+1 -> 2 | B29: OCTOBER | C29: 196.4 | D29: 199.8 | E29: 216.6 | F29: 209.4 | G29: 224.6 | H29: 224.4 | I29: 226.4 | J29: 250 | K29: 245.6 | L29: 246.8 | M29: 247.5 | N29: 260.4 | O29: 267.7 | P29: 268.7 | Q29: 268.2 | R29: 306.159 | T29: =IF(E29=0," ",((SUM(D30:D31)+SUM(E20:E29))-(SUM(C30:C31)+SUM(D20:D29)))/(SUM(C30:C31)+SUM(D20:D29))) -> 0.04540064374 | U29: 0.0362177929 | V29: 0.01712409102 | W29: 0.04078259533 | X29: -0.0006278391255 | Y29: 0.05140428677 | Z29: 0.0383817792 | AA29: 0.005618928342 | AB29: -0.001346393349 | AC29: 0.04337861067 | AD29: 0.02193435844 | AE29: 0.02149517939 | AF29: -0.004115735726 | AG29: 0.05407867752 | AI29: -0.03324099723 | AJ29: 0.07258834766 | AK29: -0.0008904719501 | AL29: 0.008912655971 | AM29: 0.1042402827 | AN29: -0.0176 | AO29: 0.004885993485 | AP29: 0.0028363047 | AQ29: 0.05212121212 | AR29: 0.02803379416 | AS29: 0.003735524841 | AT29: -0.001860811314 | AU29: 0.1415324385
A30: =+A29+1 -> 3 | B30: NOVEMBER | C30: 195.2 | D30: 201.2 | E30: 216.9 | F30: 209.3 | G30: 224.8 | H30: 224.3 | I30: 231.9 | J30: 250.4 | K30: 247.9 | L30: 247.1 | M30: 249.8 | N30: 261.2 | O30: 267.6 | P30: 268.9 | Q30: 268.4 | R30: 309.451 | T30: =IF(E30=0," ",((D31+SUM(E20:E30))-(C31+SUM(D20:D30)))/(C31+SUM(D20:D30))) -> 0.04938323758 | U30: 0.02660923473 | V30: 0.02623323661 | W30: 0.03442741966 | X30: 0.002364066194 | Y30: 0.05527712264 | Z30: 0.03080039112 | AA30: 0.006199607019 | AB30: -0.0001683445002 | AC30: 0.04626885776 | AD30: 0.02024460895 | AE30: 0.01984289725 | AF30: -0.004670873546 | AG30: 0.06700034186 | AI30: -0.03503918857 | AJ30: 0.0740563784 | AK30: -0.002224199288 | AL30: 0.03388319215 | AM30: 0.07977576542 | AN30: -0.009984025559 | AO30: -0.003227107705 | AP30: 0.0109267503 | AQ30: 0.04563650921 | AR30: 0.02450229709 | AS30: 0.00485799701 | AT30: -0.001859427296 | AU30: 0.1529470939
A31: =+A30+1 -> 4 | B31: DECEMBER | C31: 195.6 | D31: 201.5 | E31: 216.5 | F31: 209.3 | G31: 224.7 | H31: 224.6 | I31: 233.2 | J31: 250.1 | K31: 248.5 | L31: 246.2 | M31: 253.6 | N31: 260.8 | O31: 267.9 | P31: 269 | Q31: 269.1 | R31: 310.783 | T31: =IF(E31=0," ",(SUM(E20:E31)-SUM(D20:D31))/SUM(D20:D31)) -> 0.05309510767 | U31: 0.01756632388 | V31: 0.03519465199 | W31: 0.02833808167 | X31: 0.005577924716 | Y31: 0.05815149511 | Z31: 0.02419718799 | AA31: 0.005965697241 | AB31: 0.003099939349 | AC31: 0.04608666443 | AD31: 0.02016569263 | AE31: 0.01790997797 | AF31: -0.004978508921 | AG31: 0.07992106408 | AI31: -0.03325635104 | AJ31: 0.07357859532 | AK31: -0.0004450378282 | AL31: 0.03829029386 | AM31: 0.07246998285 | AN31: -0.006397441024 | AO31: -0.009255533199 | AP31: 0.03005686434 | AQ31: 0.02839116719 | AR31: 0.02722392638 | AS31: 0.004106009705 | AT31: 0.0003717472119 | AU31: 0.1548978075

Sheet PPI - Other controllable (hidden)
AC1: Series Id: | AD1: WPUSOP3400
AC2: Not Seasonally Adjusted
AC3: Group: | AD3: Stage of processing
AC4: Item: | AD4: Finished goods, excluding foods
B6: =+AP18 -> The numbers are first published as Preliminary, and each month is updated in the publication 4 months later.
B12: INDEX SOURCE
B13: https://fred.stlouisfed.org/series/PPICOR
AP17: Prelim
B18: PRODUCER'S PRICE INDEX | AP18: The numbers are first published as Preliminary, and each month is updated in the publication 4 months later.
B19: Finished goods, excluding foods | AC19: Commodity code: WPUSOP3400
AG21: =COLUMN() -> 33 | AH21: =COLUMN() -> 34
N22: Prelim | T22: ANNUAL % CHANGE | AI22: PERIOD % CHANGE | AV22: Period
B23: =NOW() -> 2022-05-16T09:01:57.150 | C23: 2006 | D23: 2007 | E23: 2008 | F23: 2009 | G23: 2010 | H23: 2011 | I23: 2012 | J23: 2013 | K23: 2014 | L23: 2015 | M23: 2016 | N23: 2017 | O23: 2018 | P23: 2019 | Q23: 2020 | R23: 2021 | S23: 2022 | T23: 08 VS 07 | U23: 09 VS 08 | V23: 10 VS 09 | W23: 11 VS 10 | X23: 12 VS 11 | Y23: 13 VS 12 | Z23: 14 VS 13 | AA23: 15 VS 14 | AB23: 16 VS 15 | AC23: 17 VS 16 | AD23: 18 VS 17 | AE23: 19 VS 18 | AF23: 20 VS 19 | AG23: 21 VS 20 | AH23: 22 VS 21 | AI23: 09 VS 08 | AJ23: 10 VS 09 | AK23: 11 VS 10 | AL23: 12 VS 11 | AM23: 13 VS 12 | AN23: 14 VS 13 | AO23: 15 VS 14 | AP23: 16 VS 15 | AQ23: 17 VS 16 | AR23: 18 VS 17 | AS23: 19 VS 18 | AT23: 20 VS 19 | AU23: 21 VS 20 | AV23: 22 VS 21
A24: =+A35+1 -> 5 | B24: JANUARY | C24: 160.3 | D24: 159.6 | E24: 171 | F24: 168 | G24: 176.7 | H24: 183 | I24: 190 | J24: 192 | K24: 195.6 | L24: 186.5 | M24: 185 | N24: 192.8 | O24: 198.8 | P24: 199 | Q24: 118.5 | R24: 120.8 | S24: 131.115 | T24: =IF(E24=0," ",((SUM(D25:D35)+E24)-(SUM(C25:C35)+D24))/(SUM(C25:C35)+D24)) -> 0.0385212799 | U24: 0.05484096121 | V24: -0.02566405142 | W24: 0.04128062091 | X24: 0.05911674276 | Y24: 0.01535078073 | Z24: 0.01104661237 | AA24: 0.007840952911 | AB24: -0.03469092764 | AC24: -0.00255439091 | AD24: 0.0355881314 | AE24: 0.03607060629 | AF24: -0.0283127572 | AG24: -0.3955192275 | AH24: 0.06170111399 | AI24: =IF(F24=0," ",(F24-E24)/E24) -> -0.01754385965 | AJ24: =IF(G24=0," ",(G24-F24)/F24) -> 0.05178571429 | AK24: =IF(H24=0," ",(H24-G24)/G24) -> 0.03565365025 | AL24: =IF(I24=0," ",(I24-H24)/H24) -> 0.03825136612 | AM24: =IF(J24=0," ",(J24-I24)/I24) -> 0.01052631579 | AN24: =IF(K24=0," ",(K24-J24)/J24) -> 0.01875 | AO24: =IF(L24=0," ",(L24-K24)/K24) -> -0.04652351738 | AP24: =IF(M24=0," ",(M24-L24)/L24) -> -0.008042895442 | AQ24: =IF(N24=0," ",(N24-M24)/M24) -> 0.04216216216 | AR24: =IF(O24=0," ",(O24-N24)/N24) -> 0.03112033195 | AS24: =IF(P24=0," ",(P24-O24)/O24) -> 0.001006036217 | AT24: =IF(Q24=0," ",(Q24-P24)/P24) -> -0.4045226131 | AU24: =IF(R24=0," ",(R24-Q24)/Q24) -> 0.0194092827 | AV24: 0.08538907285
A25: =+A24+1 -> 6 | B25: FEBRUARY | C25: 158.8 | D25: 161 | E25: 171.7 | F25: 168 | G25: 175.3 | H25: 184.2 | I25: 191.1 | J25: 194.2 | K25: 196.3 | L25: 187.7 | M25: 183.6 | N25: 193.3 | O25: 199.7 | P25: 200 | Q25: 118.3 | R25: 121.4 | S25: 131.552 | T25: =IF(E25=0," ",((SUM(D26:D35)+SUM(E24:E25))-(SUM(C26:C35)+SUM(D24:D25)))/(SUM(C26:C35)+SUM(D24:D25))) -> 0.04287339677 | U25: 0.04740887677 | V25: -0.02050092325 | W25: 0.04190835267 | X25: 0.05794479239 | Y25: 0.01363795825 | Z25: 0.01059917802 | AA25: 0.003253424658 | AB25: -0.03289810548 | AC25: 0.003529671299 | AD25: 0.03398549132 | AE25: 0.03337868866 | AF25: -0.06204995268 | AG25: -0.372493968 | AH25: 0.06649748322 | AI25: -0.02154921374 | AJ25: 0.04345238095 | AK25: 0.05077010839 | AL25: 0.03745928339 | AM25: 0.01622187336 | AN25: 0.01081359423 | AO25: -0.04381049414 | AP25: -0.02184336708 | AQ25: 0.05283224401 | AR25: 0.03310915675 | AS25: 0.00150225338 | AT25: -0.4085 | AU25: 0.02620456467 | AV25: 0.08362438221
A26: =+A25+1 -> 7 | B26: MARCH | C26: 160.1 | D26: 163.2 | E26: 174.6 | F26: 167.2 | G26: 176.9 | H26: 187.4 | I26: 192.8 | J26: 194.1 | K26: 197.6 | L26: 189.2 | M26: 184.8 | N26: 193.2 | O26: 199.6 | P26: 202.7 | Q26: 118.5 | R26: 122.1 | S26: 133.8 | T26: =IF(E26=0," ",((SUM(D27:D35)+SUM(E24:E26))-(SUM(C27:C35)+SUM(D24:D26)))/(SUM(C27:C35)+SUM(D24:D26))) -> 0.04709041152 | U26: 0.03787168993 | V26: -0.01244832993 | W26: 0.04209766659 | X26: 0.05530932595 | Y26: 0.01181205705 | Z26: 0.01154444829 | AA26: -0.001837999573 | AB26: -0.03130352861 | AC26: 0.0091949958 | AD26: 0.032984362 | AE26: 0.03188872869 | AF26: -0.09784663434 | AG26: -0.3467863162 | AH26: 0.0719790795 | AI26: -0.04238258877 | AJ26: 0.05801435407 | AK26: 0.05935556812 | AL26: 0.0288153682 | AM26: 0.006742738589 | AN26: 0.0180319423 | AO26: -0.04251012146 | AP26: -0.02325581395 | AQ26: 0.04545454545 | AR26: 0.033126294 | AS26: 0.01553106212 | AT26: -0.4153922052 | AU26: 0.03037974684 | AV26: 0.09582309582
A27: 8 | B27: APRIL | C27: 161.9 | D27: 165.3 | E27: 176.4 | F27: 168.3 | G27: 177.6 | H27: 190.1 | I27: 193.4 | J27: 193.7 | K27: 198.7 | L27: 188.8 | M27: 186.1 | N27: 194.5 | O27: 201 | P27: 205.4 | Q27: 118.1 | R27: 123.5 | S27: 134.4 | T27: =IF(E27=0," ",((SUM(D28:D35)+SUM(E24:E27))-(SUM(C28:C35)+SUM(D24:D27)))/(SUM(C28:C35)+SUM(D24:D27))) -> 0.05097675378 | U27: 0.02824914174 | V27: -0.004197271773 | W27: 0.04344285851 | X27: 0.05076887767 | Y27: 0.01048446988 | Z27: 0.01357485625 | AA27: -0.008189379399 | AB27: -0.02834042919 | AC27: 0.0141187926 | AD27: 0.03203421638 | AE27: 0.03091301222 | AF27: -0.1352859135 | AG27: -0.3171726755 | AH27: 0.07553008198 | AI27: -0.04591836735 | AJ27: 0.05525846702 | AK27: 0.07038288288 | AL27: 0.01735928459 | AM27: 0.001551189245 | AN27: 0.02581311306 | AO27: -0.04982385506 | AP27: -0.01430084746 | AQ27: 0.04513702311 | AR27: 0.03341902314 | AS27: 0.02189054726 | AT27: -0.4250243427 | AU27: 0.04572396274 | AV27: 0.08825910931
A28: 9 | B28: MAY | C28: 162.7 | D28: 167.4 | E28: 180.1 | F28: 169.7 | G28: 178.1 | H28: 191.9 | I28: 192 | J28: 194.5 | K28: 198.5 | L28: 191.7 | M28: 187.7 | N28: 193.5 | O28: 203.4 | P28: 205.9 | Q28: 118 | R28: 124.3 | T28: =IF(E28=0," ",((SUM(D29:D35)+SUM(E24:E28))-(SUM(C29:C35)+SUM(D24:D28)))/(SUM(C29:C35)+SUM(D24:D28))) -> 0.05496709173 | U28: 0.01681532388 | V28: 0.004793404276 | W28: 0.04584486213 | X28: 0.04420015509 | Y28: 0.01153241307 | Z28: 0.01420798065 | AA28: -0.01277411113 | AB28: -0.02721587233 | AC28: 0.01848895983 | AD28: 0.03373819163 | AE28: 0.02766781774 | AF28: -0.1721919436 | AG28: -0.2843423593 | AI28: -0.05774569684 | AJ28: 0.04949911609 | AK28: 0.07748455924 | AL28: 0.0005211047421 | AM28: 0.01302083333 | AN28: 0.0205655527 | AO28: -0.03425692695 | AP28: -0.02086593636 | AQ28: 0.03090037294 | AR28: 0.0511627907 | AS28: 0.01229105211 | AT28: -0.4269062652 | AU28: 0.05338983051
A29: 10 | B29: JUNE | C29: 163 | D29: 167.1 | E29: 182.8 | F29: 173.1 | G29: 178.1 | H29: 190.3 | I29: 190.7 | J29: 194.9 | K29: 199.5 | L29: 193.5 | M29: 190.1 | N29: 194.2 | O29: 204.8 | P29: 204.8 | Q29: 118.2 | R29: 125.1 | T29: =IF(E29=0," ",((SUM(D30:D35)+SUM(E24:E29))-(SUM(C30:C35)+SUM(D24:D29)))/(SUM(C30:C35)+SUM(D24:D29))) -> 0.0608035302 | U29: 0.004401663926 | V29: 0.01189501565 | W29: 0.0491623834 | X29: 0.03860285779 | Y29: 0.01319007687 | Z29: 0.01435468575 | AA29: -0.01725383537 | AB29: -0.02616216216 | AC29: 0.02184724689 | AD29: 0.03650269425 | AE29: 0.02310078819 | AF29: -0.2076793837 | AG29: -0.2487199379 | AI29: -0.05306345733 | AJ29: 0.02888503755 | AK29: 0.06850084222 | AL29: 0.002101944298 | AM29: 0.02202412166 | AN29: 0.0236018471 | AO29: -0.03007518797 | AP29: -0.01757105943 | AQ29: 0.021567596 | AR29: 0.05458290422 | AS29: 0 | AT29: -0.4228515625 | AU29: 0.05837563452
A30: 11 | B30: JULY | C30: 162.8 | D30: 168.8 | E30: 185.9 | F30: 171.3 | G30: 178.5 | H30: 191 | I30: 191.2 | J30: 195 | K30: 199.3 | L30: 193.6 | M30: 189.8 | N30: 194.2 | O30: 204.9 | P30: 205.6 | Q30: 118.7 | R30: 126.29 | T30: =IF(E30=0," ",((SUM(D31:D35)+SUM(E24:E30))-(SUM(C31:C35)+SUM(D24:D30)))/(SUM(C31:C35)+SUM(D24:D30))) -> 0.06629495115 | U30: -0.01084192852 | V30: 0.02255201513 | W30: 0.0515082527 | X30: 0.03283716734 | Y30: 0.01476111451 | Z30: 0.01454639353 | AA30: -0.0214643251 | AB30: -0.02540315589 | AC30: 0.02553153634 | AD30: 0.03916551006 | AE30: 0.01882382403 | AF30: -0.2435067595 | AG30: -0.2092548467 | AI30: -0.07853684777 | AJ30: 0.04203152364 | AK30: 0.0700280112 | AL30: 0.001047120419 | AM30: 0.01987447699 | AN30: 0.02205128205 | AO30: -0.02860010035 | AP30: -0.01962809917 | AQ30: 0.02318229715 | AR30: 0.05509783728 | AS30: 0.003416300634 | AT30: -0.4226653696 | AU30: 0.06394271272
A31: 12 | B31: AUGUST | C31: 163.1 | D31: 165.8 | E31: 182.2 | F31: 173.4 | G31: 179.1 | H31: 189.8 | I31: 193.5 | J31: 195.5 | K31: 198.7 | L31: 192 | M31: 189.2 | N31: 195.2 | O31: 205 | P31: 204.5 | Q31: 118.8 | R31: 127.19 | T31: =IF(E31=0," ",((SUM(D32:D35)+SUM(E24:E31))-(SUM(C32:C35)+SUM(D24:D31)))/(SUM(C32:C35)+SUM(D24:D31))) -> 0.07320187985 | U31: -0.02275215384 | V31: 0.02971116848 | W31: 0.05373444965 | X31: 0.02953719082 | Y31: 0.01399607587 | Z31: 0.0150498796 | AA31: -0.02562907735 | AB31: -0.02378157471 | AC31: 0.02948249755 | AD31: 0.0407077349 | AE31: 0.0144656441 | AF31: -0.2784675271 | AG31: -0.1660060196 | AI31: -0.048298573 | AJ31: 0.03287197232 | AK31: 0.05974316025 | AL31: 0.01949420443 | AM31: 0.01033591731 | AN31: 0.01636828645 | AO31: -0.03371917464 | AP31: -0.01458333333 | AQ31: 0.03171247357 | AR31: 0.05020491803 | AS31: -0.00243902439 | AT31: -0.4190709046 | AU31: 0.07062289562
A32: 1 | B32: SEPTEMBER | C32: 160.3 | D32: 166.9 | E32: 182.1 | F32: 172.2 | G32: 178.7 | H32: 190.7 | I32: 194.9 | J32: 195 | K32: 197.9 | L32: 188.7 | M32: 189.7 | N32: 196.8 | O32: 205.1 | P32: 203.6 | Q32: 119 | R32: 127.354 | T32: =IF(E32=0," ",((SUM(D33:D35)+SUM(E24:E32))-(SUM(C33:C35)+SUM(D24:D32)))/(SUM(C33:C35)+SUM(D24:D32))) -> 0.07733428368 | U32: -0.03445016776 | V32: 0.03788175411 | W32: 0.05616335 | X32: 0.0258963254 | Y32: 0.01218609914 | Z32: 0.01625317109 | AA32: -0.03071715676 | AB32: -0.01942468026 | AC32: 0.03218482906 | AD32: 0.04110061672 | AE32: 0.01035625518 | AF32: -0.3127101271 | AG32: -0.118932172 | AI32: -0.05436573311 | AJ32: 0.03774680604 | AK32: 0.06715165081 | AL32: 0.02202412166 | AM32: 0.0005130836326 | AN32: 0.01487179487 | AO32: -0.04648812532 | AP32: 0.005299417064 | AQ32: 0.03742751713 | AR32: 0.04217479675 | AS32: -0.007313505607 | AT32: -0.4155206287 | AU32: 0.07020168067
A33: =+A32+1 -> 2 | B33: OCTOBER | C33: 158.8 | D33: 168.1 | E33: 176.3 | F33: 172.6 | G33: 180.1 | H33: 189.9 | I33: 194.3 | J33: 194.3 | K33: 195.8 | L33: 187.9 | M33: 190.8 | N33: 196.6 | O33: 205.9 | P33: 204 | Q33: 119.8 | R33: 128.18 | T33: =IF(E33=0," ",((SUM(D34:D35)+SUM(E24:E33))-(SUM(C34:C35)+SUM(D24:D33)))/(SUM(C34:C35)+SUM(D24:D33))) -> 0.07641246516 | U33: -0.03991903215 | V33: 0.0434420201 | W33: 0.05704619144 | X33: 0.02338297399 | Y33: 0.01025150949 | Z33: 0.01689813819 | AA33: -0.03467230444 | AB33: -0.01476127902 | AC33: 0.03343262348 | AD33: 0.04250376425 | AE33: 0.00569471382 | AF33: -0.3467235649 | AG33: -0.06707242007 | AI33: -0.02098695406 | AJ33: 0.04345307068 | AK33: 0.05441421433 | AL33: 0.02317008952 | AM33: 0 | AN33: 0.007720020587 | AO33: -0.04034729316 | AP33: 0.01543374135 | AQ33: 0.03039832285 | AR33: 0.04730417091 | AS33: -0.009227780476 | AT33: -0.412745098 | AU33: 0.06994991653
A34: =+A33+1 -> 3 | B34: NOVEMBER | C34: 160 | D34: 171.6 | E34: 169.6 | F34: 174.7 | G34: 180.2 | H34: 189.4 | I34: 191.6 | J34: 193.2 | K34: 193.4 | L34: 187 | M34: 189.5 | N34: 197.8 | O34: 202.5 | P34: 203.3 | Q34: 119.6 | R34: 129.17 | T34: =IF(E34=0," ",((D35+SUM(E24:E34))-(C35+SUM(D24:D34)))/(C35+SUM(D24:D34))) -> 0.06911490605 | U34: -0.03661122367 | V34: 0.04352929668 | W34: 0.05863329584 | X34: 0.02018860406 | Y34: 0.009981339235 | Z34: 0.01628496541 | AA34: -0.03745983426 | AB34: -0.01089343758 | AC34: 0.03597122302 | AD34: 0.04080932785 | AE34: 0.004077429984 | AF34: -0.3812707658 | AG34: -0.008960487934 | AI34: 0.03007075472 | AJ34: 0.0314825415 | AK34: 0.05105438402 | AL34: 0.0116156283 | AM34: 0.008350730689 | AN34: 0.001035196687 | AO34: -0.03309203723 | AP34: 0.01336898396 | AQ34: 0.0437994723 | AR34: 0.02376137513 | AS34: 0.003950617284 | AT34: -0.4117068372 | AU34: 0.08001672241
A35: =+A34+1 -> 4 | B35: DECEMBER | C35: 160.3 | D35: 169.6 | E35: 166.1 | F35: 174.3 | G35: 181 | H35: 188.8 | I35: 190.9 | J35: 193.9 | K35: 190 | L35: 185.5 | M35: 190.7 | N35: 197.3 | O35: 199.1 | P35: 202.9 | Q35: 119.5 | R35: 129.667 | T35: =IF(E35=0," ",(SUM(E24:E35)-SUM(D24:D35))/SUM(D24:D35)) -> 0.06237464902 | U35: -0.03114970738 | V35: 0.04262470772 | W35: 0.05896369668 | X35: 0.01760423561 | Y35: 0.01036246965 | Z35: 0.0133030082 | AA35: -0.03777580147 | AB35: -0.00664583425 | AC35: 0.03650863979 | AD35: 0.03864238694 | AE35: 0.00489752243 | AF35: -0.4163902199 | AG35: 0.05617614035 | AI35: 0.04936785069 | AJ35: 0.03843947217 | AK35: 0.04309392265 | AL35: 0.01112288136 | AM35: 0.01571503405 | AN35: -0.02011346055 | AO35: -0.02368421053 | AP35: 0.02803234501 | AQ35: 0.03460933403 | AR35: 0.009123162696 | AS35: 0.01908588649 | AT35: -0.4110399211 | AU35: 0.08507949791

Sheet Hrly Labor Comp. Index (hidden)
B1: Table 1. SEASONALLY ADJUSTED: Employment Cost Index for total compensation, by ownership, occupational group, and industry
B3: ECI - Accommodation and food services
B4: https://www.bls.gov/news.release/pdf/eci.pdf
B6: Index is found toward the bottom of the sheet - listed under "Leisure and hospitality". (pg12)
B7: Note: this index is issued quarterly.
K8: September 2020 release set for 10/31/21 at 8:30am
B10: BLS Various Archive News Releases
B11: Employment Cost Index - Total Compensation
AC13: =COLUMN() -> 29
Q14: ANNUAL % CHANGE | AE14: PERIOD % CHANGE
B15: =NOW() -> 2022-05-16T09:01:57.150 | C15: 2008 | D15: 2009 | E15: 2010 | F15: 2011 | G15: 2012 | H15: 2013 | I15: 2014 | J15: 2015 | K15: 2016 | L15: 2017 | M15: 2018 | N15: 2019 | O15: 2020 | P15: 2021 | Q15: 09 VS 08 | R15: 10 VS 09 | S15: 11 VS 10 | T15: 12 VS 11 | U15: 13 VS 12 | V15: 14 VS 13 | W15: 15 VS 14 | X15: 16 VS 15 | Y15: 17 VS 16 | Z15: 18 VS 17 | AA15: 19 VS 18 | AB15: 20 VS 19 | AC15: 21 VS 20 | AE15: 09 VS 08 | AF15: 10 VS 09 | AG15: 11 VS 10 | AH15: 12 VS 11 | AI15: 13 VS 12 | AJ15: 14 VS 13 | AK15: 15 VS 14 | AL15: 16 VS 15 | AM15: 17 VS 16 | AN15: 18 VS 17 | AO15: 19 VS 18 | AP15: 20 VS 19 | AQ15: 21 VS 20
A16: 7 | B16: MARCH | C16: 109.3287156 | D16: 112.8684413 | E16: 113.7730814 | F16: 115.3 | G16: 116 | H16: 117.1 | I16: 118.6 | J16: 120.8 | K16: 123.7 | L16: 129.3 | M16: 133.5 | N16: 138 | O16: 143.7 | P16: 150.2 | R16: =IF(E16=0," ",((SUM(D17:D19)+E16)-(SUM(C17:C19)+D16))/(SUM(C17:C19)+D16)) -> 0.0147712701 | S16: 0.01188990016 | T16: 0.01005960984 | U16: 0.009710832974 | V16: 0.009617439624 | W16: 0.01375952583 | X16: 0.02631029442 | Y16: 0.03133265514 | Z16: 0.03590451766 | AA16: 0.03427918492 | AB16: 0.03940342478 | AC16: 0.04286979628 | AE16: =IF(D16=0," ",(D16-C16)/C16) -> 0.03237690752 | AF16: 0.00801499598 | AG16: 0.01342073665 | AH16: 0.00607111882 | AI16: 0.009482758621 | AJ16: 0.01280956447 | AK16: 0.01854974705 | AL16: 0.02400662252 | AM16: 0.04527081649 | AN16: 0.03248259861 | AO16: 0.03370786517 | AP16: 0.04130434783 | AQ16: 0.04523312457
A17: 10 | B17: JUNE | C17: 110.2033453 | D17: 112.7555729 | E17: 114.2281738 | F17: 115.6 | G17: 116.9 | H17: 117.7 | I17: 118.7 | J17: 122.1 | K17: 124.8 | L17: 130 | M17: 134 | N17: 139.2 | O17: 144.7 | P17: 153.6 | R17: =IF(E17=0," ",((SUM(D18:D19)+SUM(E16:E17))-(SUM(C18:C19)+SUM(D16:D17)))/(SUM(C18:C19)+SUM(D16:D17))) -> 0.01228471171 | S17: 0.01162985972 | T17: 0.009873529127 | U17: 0.008607703895 | V17: 0.01002773629 | W17: 0.01880016899 | X17: 0.02467343977 | Y17: 0.03622015378 | Z17: 0.03319664128 | AA17: 0.03628803629 | AB17: 0.03957687397 | AC17: 0.04842105263 | AE17: 0.02315925656 | AF17: 0.01306011608 | AG17: 0.01200952613 | AH17: 0.01124567474 | AI17: 0.006843455945 | AJ17: 0.00849617672 | AK17: 0.02864363943 | AL17: 0.02211302211 | AM17: 0.04166666667 | AN17: 0.03076923077 | AO17: 0.03880597015 | AP17: 0.03951149425 | AQ17: 0.06150656531
A18: 1 | B18: SEPTEMBER | C18: 111.4155821 | D18: 113.3193508 | E18: 114.4566301 | F18: 115.8 | G18: 116.6 | H18: 117.9 | I18: 119.5 | J18: 122.5 | K18: 126.2 | L18: 130.4 | M18: 134.8 | N18: 140 | O18: 146.5 | P18: 147.7 | R18: =IF(E18=0," ",((SUM(D19:D19)+SUM(E16:E18))-(SUM(C19:C19)+SUM(D16:D18)))/(SUM(C19:C19)+SUM(D16:D18))) -> 0.0105342939 | S18: 0.0120528038 | T18: 0.008667388949 | U18: 0.009667024705 | V18: 0.01063829787 | W18: 0.02168421053 | X18: 0.02596332166 | Y18: 0.03695521189 | Z18: 0.03331396475 | AA18: 0.03748828491 | AB18: 0.04155374887 | AC18: 0.03868169991 | AE18: 0.0170870948 | AF18: 0.01003605603 | AG18: 0.0117369338 | AH18: 0.006908462867 | AI18: 0.01114922813 | AJ18: 0.01357082273 | AK18: 0.02510460251 | AL18: 0.03020408163 | AM18: 0.03328050713 | AN18: 0.03374233129 | AO18: 0.03857566766 | AP18: 0.04642857143 | AQ18: 0.00819112628
A19: 4 | B19: DECEMBER | C19: 112.3069068 | D19: 113.5459895 | E19: 114.8 | F19: 116 | G19: 117.3 | H19: 118.2 | I19: 119.9 | J19: 123.2 | K19: 126.6 | L19: 131.2 | M19: 136.3 | N19: 141.6 | O19: 147.3 | P19: 148.8 | Q19: =IF(D19=0," ",(SUM(D16:D19)-SUM(C16:C19))/+SUM(C16:C19)) -> 0.02083408854 | R19: 0.0105384377 | S19: 0.01190163115 | T19: 0.008861033067 | U19: 0.008783204799 | V19: 0.01231684009 | W19: 0.02496328928 | X19: 0.02599263201 | Y19: 0.0390983443 | Z19: 0.0339796506 | AA19: 0.03750464166 | AB19: 0.04187544739 | AC19: 0.03108897286 | AE19: 0.01103300495 | AF19: 0.01104407605 | AG19: 0.01045296167 | AH19: 0.01120689655 | AI19: 0.007672634271 | AJ19: 0.01438240271 | AK19: 0.02752293578 | AL19: 0.0275974026 | AM19: 0.03633491311 | AN19: 0.03887195122 | AO19: 0.03888481291 | AP19: 0.04025423729 | AQ19: 0.01018329939

Sheet Sodexo Comp Guidelines (hidden)
A1: Budget Guidelines
A2: Executive Summary
A3: Plan Years 2022
C8: Medical Increase | D8: Admin Merit Increase
B9: FY22 | C9: 0.06 | D9: 0.02

Sheet Index Chart Data (hidden)
D13: PPI Food | E13: PPI Paper | F13: PPI Other | G13: CPI U | H13: CPI Fd H | I13: CPI FAH | J13: ECI
A14: =B14&" " &C14 -> 2019 JAN | B14: 2019 | C14: JAN | D14: ='PPI - Food'!BM25 -> 0.0006826760903 | E14: ='PPI - Paper'!AE20 -> 0.02141849429 | F14: ='PPI - Other controllable'!AE24 -> 0.03607060629 | G14: ='CPI - Index'!BM19 -> 0.0239826531 | H14: ='CPI - Index'!BM49 -> 0.004171651198 | I14: ='CPI - Index'!BM79 -> 0.02651794854 | J14: =IF('Hrly Labor Comp. Index'!$AA$16=" ",J13,'Hrly Labor Comp. Index'!$AA$16) -> 0.03427918492
A15: =B15&" " &C15 -> 2019 FEB | B15: =+B14 -> 2019 | C15: FEB | D15: ='PPI - Food'!BM26 -> 0.001806213374 | E15: ='PPI - Paper'!AE21 -> 0.02312101707 | F15: ='PPI - Other controllable'!AE25 -> 0.03337868866 | G15: ='CPI - Index'!BM20 -> 0.02339582858 | H15: ='CPI - Index'!BM50 -> 0.004726168932 | I15: ='CPI - Index'!BM80 -> 0.02681072985 | J15: =+J14 -> 0.03427918492
A16: 2019 MAR | B16: =+B15 -> 2019 | C16: MAR | D16: ='PPI - Food'!BM27 -> 0.000962000962 | E16: ='PPI - Paper'!AE22 -> 0.02552864775 | F16: ='PPI - Other controllable'!AE26 -> 0.03188872869 | G16: ='CPI - Index'!BM21 -> 0.02297670682 | H16: ='CPI - Index'!BM51 -> 0.005594715776 | I16: ='CPI - Index'!BM81 -> 0.02721027451 | J16: =+J15 -> 0.03427918492
A17: 2019 APR | B17: 2019 | C17: APR | D17: ='PPI - Food'!BM28 -> 0.00349103166 | E17: ='PPI - Paper'!AE23 -> 0.02693376785 | F17: ='PPI - Other controllable'!AE27 -> 0.03091301222 | G17: ='CPI - Index'!BM22 -> 0.02258584585 | H17: ='CPI - Index'!BM52 -> 0.005744474242 | I17: ='CPI - Index'!BM82 -> 0.02766543974 | J17: =IF('Hrly Labor Comp. Index'!$AA$17=" ",J16,'Hrly Labor Comp. Index'!$AA$17) -> 0.03628803629
A18: 2019 MAY | B18: 2019 | C18: MAY | D18: ='PPI - Food'!BM29 -> 0.004614582079 | E18: ='PPI - Paper'!AE24 -> 0.02613462519 | F18: ='PPI - Other controllable'!AE28 -> 0.02766781774 | G18: ='CPI - Index'!BM23 -> 0.02174227002 | H18: ='CPI - Index'!BM53 -> 0.006627305712 | I18: ='CPI - Index'!BM83 -> 0.0278830433 | J18: =+J17 -> 0.03628803629
A19: 2019 JUN | B19: 2019 | C19: JUN | D19: ='PPI - Food'!BM30 -> 0.007994857579 | E19: ='PPI - Paper'!AE25 -> 0.02584176691 | F19: ='PPI - Other controllable'!AE29 -> 0.02310078819 | G19: ='CPI - Index'!BM24 -> 0.02072365714 | H19: ='CPI - Index'!BM54 -> 0.007109959971 | I19: ='CPI - Index'!BM84 -> 0.028101419 | J19: =+J18 -> 0.03628803629
A20: 2019 JUL | B20: 2019 | C20: JUL | D20: ='PPI - Food'!BM31 -> 0.01049246231 | E20: ='PPI - Paper'!AE26 -> 0.02526857797 | F20: ='PPI - Other controllable'!AE30 -> 0.01882382403 | G20: ='CPI - Index'!BM25 -> 0.01978400092 | H20: ='CPI - Index'!BM55 -> 0.007341872322 | I20: ='CPI - Index'!BM85 -> 0.02843115672 | J20: =IF('Hrly Labor Comp. Index'!$AA$18=" ",J19,'Hrly Labor Comp. Index'!$AA$18) -> 0.03748828491
A21: 2019 AUG | B21: 2019 | C21: AUG | D21: ='PPI - Food'!BM32 -> 0.01331777581 | E21: ='PPI - Paper'!AE27 -> 0.02456518979 | F21: ='PPI - Other controllable'!AE31 -> 0.0144656441 | G21: ='CPI - Index'!BM26 -> 0.01899970649 | H21: ='CPI - Index'!BM56 -> 0.007327039055 | I21: ='CPI - Index'!BM86 -> 0.02889742992 | J21: =+J20 -> 0.03748828491
A22: 2019 SEP | B22: 2019 | C22: SEP | D22: ='PPI - Food'!BM33 -> 0.01638948174 | E22: ='PPI - Paper'!AE28 -> 0.02354096699 | F22: ='PPI - Other controllable'!AE32 -> 0.01035625518 | G22: ='CPI - Index'!BM27 -> 0.01853030816 | H22: ='CPI - Index'!BM57 -> 0.00747102134 | I22: ='CPI - Index'!BM87 -> 0.0294700678 | J22: =+J21 -> 0.03748828491
A23: 2019 OCT | B23: 2019 | C23: OCT | D23: ='PPI - Food'!BM34 -> 0.01925788647 | E23: ='PPI - Paper'!AE29 -> 0.02149517939 | F23: ='PPI - Other controllable'!AE33 -> 0.00569471382 | G23: ='CPI - Index'!BM28 -> 0.01790554355 | H23: ='CPI - Index'!BM58 -> 0.008207549205 | I23: ='CPI - Index'!BM88 -> 0.03014391883 | J23: =IF('Hrly Labor Comp. Index'!$AA$19=" ",J22,'Hrly Labor Comp. Index'!$AA$19) -> 0.03750464166
A24: 2019 NOV | B24: 2019 | C24: NOV | D24: ='PPI - Food'!BM35 -> 0.02158592082 | E24: ='PPI - Paper'!AE30 -> 0.01984289725 | F24: ='PPI - Other controllable'!AE34 -> 0.004077429984 | G24: ='CPI - Index'!BM29 -> 0.01780744559 | H24: ='CPI - Index'!BM59 -> 0.008700573973 | I24: ='CPI - Index'!BM89 -> 0.0306220594 | J24: =+J23 -> 0.03750464166
A25: 2019 DEC | B25: 2019 | C25: DEC | D25: ='PPI - Food'!BM36 -> 0.02008919603 | E25: ='PPI - Paper'!AE31 -> 0.01790997797 | F25: ='PPI - Other controllable'!AE35 -> 0.00489752243 | G25: ='CPI - Index'!BM30 -> 0.01812210075 | H25: ='CPI - Index'!BM60 -> 0.008818355643 | I25: ='CPI - Index'!BM90 -> 0.03086914406 | J25: =+J24 -> 0.03750464166
A26: 2020 JAN | B26: =+B25+1 -> 2020 | C26: JAN | D26: ='PPI - Food'!BN25 -> 0.0209478711 | E26: ='PPI - Paper'!AF20 -> 0.01509919638 | F26: ='PPI - Other controllable'!AF24 -> -0.0283127572 | G26: ='CPI - Index'!BN19 -> 0.01889910501 | H26: ='CPI - Index'!BN49 -> 0.008874760816 | I26: ='CPI - Index'!BN79 -> 0.03114462869 | J26: =IF('Hrly Labor Comp. Index'!$AB$16=" ",J25,'Hrly Labor Comp. Index'!$AB$16) -> 0.03940342478
A27: 2020 FEB | B27: =+B26 -> 2020 | C27: FEB | D27: ='PPI - Food'!BN26 -> 0.02019311671 | E27: ='PPI - Paper'!AF21 -> 0.01205045541 | F27: ='PPI - Other controllable'!AF25 -> -0.06204995268 | G27: ='CPI - Index'!BN20 -> 0.01957620745 | H27: ='CPI - Index'!BN50 -> 0.008563880885 | I27: ='CPI - Index'!BN80 -> 0.03121160293 | J27: =+J26 -> 0.03940342478
A28: 2020 MAR | B28: =+B27 -> 2020 | C28: MAR | D28: ='PPI - Food'!BN27 -> 0.02010251482 | E28: ='PPI - Paper'!AF22 -> 0.007860997598 | F28: ='PPI - Other controllable'!AF26 -> -0.09784663434 | G28: ='CPI - Index'!BN21 -> 0.01930320337 | H28: ='CPI - Index'!BN51 -> 0.008280190724 | I28: ='CPI - Index'!BN81 -> 0.03118776086 | J28: =+J27 -> 0.03940342478
A29: 2020 APR | B29: 2020 | C29: APR | D29: ='PPI - Food'!BN28 -> 0.01931381958 | E29: ='PPI - Paper'!AF23 -> 0.004697903055 | F29: ='PPI - Other controllable'!AF27 -> -0.1352859135 | G29: ='CPI - Index'!BN22 -> 0.01789833041 | H29: ='CPI - Index'!BN52 -> 0.01107884633 | I29: ='CPI - Index'!BN82 -> 0.03094062442 | J29: =IF('Hrly Labor Comp. Index'!$AB$17=" ",J28,'Hrly Labor Comp. Index'!$AB$17) -> 0.03957687397
A30: 2020 MAY | B30: 2020 | C30: MAY | D30: ='PPI - Food'!BN29 -> 0.0237258348 | E30: ='PPI - Paper'!AF24 -> 0.002484780718 | F30: ='PPI - Other controllable'!AF28 -> -0.1721919436 | G30: ='CPI - Index'!BN23 -> 0.01648728561 | H30: ='CPI - Index'!BN53 -> 0.01412290794 | I30: ='CPI - Index'!BN83 -> 0.03093399433 | J30: =+J29 -> 0.03957687397
A31: 2020 JUN | B31: 2020 | C31: JUN | D31: ='PPI - Food'!BN30 -> 0.02259864488 | E31: ='PPI - Paper'!AF25 -> 0.0001861388596 | F31: ='PPI - Other controllable'!AF29 -> -0.2076793837 | G31: ='CPI - Index'!BN24 -> 0.01564217135 | H31: ='CPI - Index'!BN54 -> 0.01805088622 | I31: ='CPI - Index'!BN84 -> 0.03097323137 | J31: =+J30 -> 0.03957687397
A32: 2020 JUL | B32: 2020 | C32: JUL | D32: ='PPI - Food'!BN31 -> 0.02104551241 | E32: ='PPI - Paper'!AF26 -> -0.001209039898 | F32: ='PPI - Other controllable'!AF30 -> -0.2435067595 | G32: ='CPI - Index'!BN25 -> 0.0149501361 | H32: ='CPI - Index'!BN55 -> 0.0213830911 | I32: ='CPI - Index'!BN85 -> 0.03117229675 | J32: =IF('Hrly Labor Comp. Index'!$AB$18=" ",J31,'Hrly Labor Comp. Index'!$AB$18) -> 0.04155374887
A33: 2020 AUG | B33: 2020 | C33: AUG | D33: ='PPI - Food'!BN32 -> 0.01941631924 | E33: ='PPI - Paper'!AF27 -> -0.002478161204 | F33: ='PPI - Other controllable'!AF31 -> -0.2784675271 | G33: ='CPI - Index'!BN26 -> 0.01458337502 | H33: ='CPI - Index'!BN56 -> 0.02485204524 | I33: ='CPI - Index'!BN86 -> 0.03140766387 | J33: =+J32 -> 0.04155374887
A34: 2020 SEP | B34: 2020 | C34: SEP | D34: ='PPI - Food'!BN33 -> 0.01810618067 | E34: ='PPI - Paper'!AF28 -> -0.003652685343 | F34: ='PPI - Other controllable'!AF32 -> -0.3127101271 | G34: ='CPI - Index'!BN27 -> 0.01430098506 | H34: ='CPI - Index'!BN57 -> 0.02774448898 | I34: ='CPI - Index'!BN87 -> 0.03186947546 | J34: =+J33 -> 0.04155374887
A35: 2020 OCT | B35: 2020 | C35: OCT | D35: ='PPI - Food'!BN34 -> 0.01751057354 | E35: ='PPI - Paper'!AF29 -> -0.004115735726 | F35: ='PPI - Other controllable'!AF33 -> -0.3467235649 | G35: ='CPI - Index'!BN28 -> 0.01381593194 | H35: ='CPI - Index'!BN58 -> 0.03018508822 | I35: ='CPI - Index'!BN88 -> 0.03231960105 | J35: =IF('Hrly Labor Comp. Index'!$AB$19=" ",J34,'Hrly Labor Comp. Index'!$AB$19) -> 0.04187544739
A36: 2020 NOV | B36: 2020 | C36: NOV | D36: ='PPI - Food'!BN35 -> 0.01482240706 | E36: ='PPI - Paper'!AF30 -> -0.004670873546 | F36: ='PPI - Other controllable'!AF34 -> -0.3812707658 | G36: ='CPI - Index'!BN29 -> 0.01309081076 | H36: ='CPI - Index'!BN59 -> 0.03233555197 | I36: ='CPI - Index'!BN89 -> 0.03283653379 | J36: =+J35 -> 0.04187544739
A37: 2020 DEC | B37: 2020 | C37: DEC | D37: ='PPI - Food'!BN36 -> 0.01287959352 | E37: ='PPI - Paper'!AF31 -> -0.004978508921 | F37: ='PPI - Other controllable'!AF35 -> -0.4163902199 | G37: ='CPI - Index'!BN30 -> 0.01233584396 | H37: ='CPI - Index'!BN60 -> 0.03498438972 | I37: ='CPI - Index'!BN90 -> 0.03352441138 | J37: =+J36 -> 0.04187544739
A38: 2021 JAN | B38: =+B37+1 -> 2021 | C38: JAN | D38: ='PPI - Food'!BO25 -> 0.01041625722 | E38: ='PPI - Paper'!AG20 -> -0.003679995052 | F38: ='PPI - Other controllable'!AG24 -> -0.3955192275 | G38: ='CPI - Index'!BO19 -> 0.01144935117 | H38: ='CPI - Index'!BO49 -> 0.03746715062 | I38: ='CPI - Index'!BO79 -> 0.0341657429 | J38: =IF('Hrly Labor Comp. Index'!$AC$16=" ",J37,'Hrly Labor Comp. Index'!$AC$16) -> 0.04286979628
A39: 2021 FEB | B39: =+B38 -> 2021 | C39: FEB | D39: ='PPI - Food'!BO26 -> 0.01158543769 | E39: ='PPI - Paper'!AG21 -> -0.001824704645 | F39: ='PPI - Other controllable'!AG25 -> -0.372493968 | G39: ='CPI - Index'!BO20 -> 0.01091897859 | H39: ='CPI - Index'!BO50 -> 0.03973569889 | I39: ='CPI - Index'!BO80 -> 0.03476740054 | J39: =+J38 -> 0.04286979628
A40: 2021 MAR | B40: =+B39 -> 2021 | C40: MAR | D40: ='PPI - Food'!BO27 -> 0.0134254534 | E40: ='PPI - Paper'!AG22 -> 0.001888018818 | F40: ='PPI - Other controllable'!AG26 -> -0.3467863162 | G40: ='CPI - Index'!BO21 -> 0.01182893569 | H40: ='CPI - Index'!BO51 -> 0.04157787723 | I40: ='CPI - Index'!BO81 -> 0.03536721915 | J40: =+J39 -> 0.04286979628
A41: 2021 APR | B41: 2021 | C41: APR | D41: ='PPI - Food'!BO28 -> 0.01631948531 | E41: ='PPI - Paper'!AG23 -> 0.005914594494 | F41: ='PPI - Other controllable'!AG27 -> -0.3171726755 | G41: ='CPI - Index'!BO22 -> 0.01501035398 | H41: ='CPI - Index'!BO52 -> 0.03910824013 | I41: ='CPI - Index'!BO82 -> 0.03625562967 | J41: =IF('Hrly Labor Comp. Index'!$AC$17=" ",J40,'Hrly Labor Comp. Index'!$AC$17) -> 0.04842105263
A42: 2021 MAY | B42: 2021 | C42: MAY | D42: ='PPI - Food'!BO29 -> 0.01123683184 | E42: ='PPI - Paper'!AG24 -> 0.01081298798 | F42: ='PPI - Other controllable'!AG28 -> -0.2843423593 | G42: ='CPI - Index'!BO23 -> 0.01906028512 | H42: ='CPI - Index'!BO53 -> 0.035540698 | I42: ='CPI - Index'!BO83 -> 0.03716906842 | J42: =+J41 -> 0.04842105263
A43: 2021 JUN | B43: 2021 | C43: JUN | D43: ='PPI - Food'!BO30 -> 0.01625287446 | E43: ='PPI - Paper'!AG25 -> 0.01712158809 | F43: ='PPI - Other controllable'!AG29 -> -0.2487199379 | G43: ='CPI - Index'!BO24 -> 0.0230170146 | H43: ='CPI - Index'!BO54 -> 0.03154801712 | I43: ='CPI - Index'!BO84 -> 0.03808753594 | J43: =+J42 -> 0.04842105263
A44: 2021 JUL | B44: 2021 | C44: JUL | D44: ='PPI - Food'!BO31 -> 0.0216867329 | E44: ='PPI - Paper'!AG26 -> 0.02487025886 | F44: ='PPI - Other controllable'!AG30 -> -0.2092548467 | G44: ='CPI - Index'!BO25 -> 0.02667926935 | H44: ='CPI - Index'!BO55 -> 0.0298220575 | I44: ='CPI - Index'!BO85 -> 0.03905098991 | J44: =IF('Hrly Labor Comp. Index'!$AC$18=" ",J43,'Hrly Labor Comp. Index'!$AC$18) -> 0.03868169991
A45: 2021 AUG | B45: 2021 | C45: AUG | D45: ='PPI - Food'!BO32 -> 0.0290885721 | E45: ='PPI - Paper'!AG27 -> 0.03291130986 | F45: ='PPI - Other controllable'!AG31 -> -0.1660060196 | G45: ='CPI - Index'!BO26 -> 0.02997720402 | H45: ='CPI - Index'!BO56 -> 0.02845284294 | I45: ='CPI - Index'!BO86 -> 0.04007915921 | J45: =+J44 -> 0.03868169991
A46: 2021 SEP | B46: 2021 | C46: SEP | D46: ='PPI - Food'!BO33 -> 0.03729345838 | E46: ='PPI - Paper'!AG28 -> 0.04212166403 | F46: ='PPI - Other controllable'!AG32 -> -0.118932172 | G46: ='CPI - Index'!BO27 -> 0.03333730598 | H46: ='CPI - Index'!BO57 -> 0.02886306715 | I46: ='CPI - Index'!BO87 -> 0.04083698036 | J46: =+J45 -> 0.03868169991
A47: 2021 OCT | B47: 2021 | C47: OCT | D47: ='PPI - Food'!BO34 -> 0.04305259887 | E47: ='PPI - Paper'!AG29 -> 0.05407867752 | F47: ='PPI - Other controllable'!AG33 -> -0.06707242007 | G47: ='CPI - Index'!BO28 -> 0.03755050072 | H47: ='CPI - Index'!BO58 ->  | I47: ='CPI - Index'!BO88 -> 0.04201917066 | J47: =IF('Hrly Labor Comp. Index'!$AC$19=" ",J46,'Hrly Labor Comp. Index'!$AC$19) -> 0.03108897286
A48: 2021 NOV | B48: 2021 | C48: NOV | D48: ='PPI - Food'!BO35 -> 0.05214427223 | E48: ='PPI - Paper'!AG30 -> 0.06700034186 | F48: ='PPI - Other controllable'!AG34 -> -0.008960487934 | G48: ='CPI - Index'!BO29 -> 0.0422518095 | H48: ='CPI - Index'!BO59 ->  | I48: ='CPI - Index'!BO89 -> 0.04365961603 | J48: =+J47 -> 0.03108897286
A49: 2021 DEC | B49: 2021 | C49: DEC | D49: ='PPI - Food'!BO36 -> 0.06338388552 | E49: ='PPI - Paper'!AG31 -> 0.07992106408 | F49: ='PPI - Other controllable'!AG35 -> 0.05617614035 | G49: ='CPI - Index'!BO30 -> 0.04697858864 | H49: ='CPI - Index'!BO60 ->  | I49: ='CPI - Index'!BO90 -> 0.04542271609 | J49: =+J48 -> 0.03108897286

Sheet Sheet1 (hidden)
A1: Indexes for Use:

Sheet Sheet2 (hidden)
B1: Document Type
B2: US Dollars
B3: Division Total
B4: FY 2016 Actual
B5: Pd 01 YTD
B6: OTHER SUBCONTRACTING COSTS : SUB0015_7110
